Workbook

Sheet BEGIN
B1: OVER DEZE SJABLOON
B2: Gebruik deze budgetwerkmap voor bedrijfskosten om geplande en werkelijke kosten en verschillen bij te houden.
B3: Vul de bedrijfsnaam in en voeg een logo toe.
B4: Voer in de tabellen op het werkblad Geplande kosten en Werkelijke kosten gegevens in.
B5: De tabellen op het werkblad Kostenverschillen en de grafieken in het werkblad Kostenanalyse worden automatisch bijgewerkt
B6: Opmerking:
B7: Kolom A van elk werkblad bevat aanvullende instructies. Deze tekst is opzettelijk verborgen. Als u tekst wilt verwijderen, selecteert u kolom A en drukt u op DELETE. Als u de tekst zichtbaar wilt maken, selecteert u kolom A en wijzigt u de tekenkleur.
B8: Als u meer wilt weten over tabellen, drukt u in een tabel op Shift en F10 en selecteert u de optie TABEL en vervolgens ALTERNATIEVE TEKST

Sheet GEPLANDE KOSTEN
A1: Voer geplande personeelskosten, kantoorkosten, marketingkosten en training- of reiskosten in de respectievelijke tabellen in dit werkblad in. Totalen worden automatisch berekend. Cellen in deze kolom bevatten handige instructies voor het gebruik van deze sjabloon. Druk op de pijl-omlaag-toets om aan de slag te gaan.
A2: Voer in de cel rechts de naam van het bedrijf in, en het logo in cel N2. De titel van dit werkblad staat in cel K2. | B2: Bedrijfsnaam | J2: Gedetailleerde kostenschattingen | N2: Tijdelijke aanduiding voor logo bevindt zich in deze cel.
A3: De tip staat in cel K3. | J3: Gekleurde cellen zijn berekeningen.
A4: De cel rechts bevat het label GEPLANDE KOSTEN, de cellen C4 t/m N4 bevatten de maanden, en cel O4 het label JAAR. De instructies voor het gebruiken van deze sjabloon staan in cel R4. | B4: GEPLANDE KOSTEN | C4: JAN | D4: FEB | E4: MRT | F4: APR | G4: MEI | H4: JUN | I4: JUL | J4: AUG | K4: SEPT | L4: OKT | M4: NOV | N4: DEC | O4: JAAR | R4: Tip: DEZE SJABLOON GEBRUIKEN Voer in de witte cellen op de werkbladen GEPLANDE KOSTEN en WERKELIJKE KOSTEN gegevens in, en de KOSTENVERSCHILLEN en KOSTENANALYSE worden voor u berekend. Als u een rij aan een werkblad toevoegt, moet u dit ook doen op de overige bladen.
A5: Voer de personeelskosten in in de tabel PersoneelGepland die in de cel rechts begint. De volgende aanwijzing staat in cel A10. | B5: Personeelskosten | C5: Jan | D5: Feb | E5: Mrt | F5: Apr | G5: Mei | H5: Jun | I5: Jul | J5: Aug | K5: Sep | L5: Okt | M5: Nov | N5: Dec | O5: JAAR
B6: Salaris | C6: € 85,000.00 | D6: € 85,000.00 | E6: € 85,000.00 | F6: € 87,500.00 | G6: € 87,500.00 | H6: € 87,500.00 | I6: € 87,500.00 | J6: € 92,400.00 | K6: € 92,400.00 | L6: € 92,400.00 | M6: € 92,400.00 | N6: € 92,400.00 | O6: =SUM(C6:N6) -> € 1,067,000.00
B7: Uitkeringen | C7: =C6*0.27 -> € 22,950.00 | D7: € 22,950.00 | E7: € 22,950.00 | F7: € 23,625.00 | G7: € 23,625.00 | H7: € 23,625.00 | I7: € 23,625.00 | J7: € 24,948.00 | K7: € 24,948.00 | L7: € 24,948.00 | M7: € 24,948.00 | N7: € 24,948.00 | O7: =SUM(C7:N7) -> € 288,090.00
B8: Subtotaal | C8: =SUBTOTAL(109,PersoneelGepland[Jan]) -> € 107,950.00 | D8: =SUBTOTAL(109,PersoneelGepland[Feb]) -> € 107,950.00 | E8: =SUBTOTAL(109,PersoneelGepland[Mrt]) -> € 107,950.00 | F8: =SUBTOTAL(109,PersoneelGepland[Apr]) -> € 111,125.00 | G8: =SUBTOTAL(109,PersoneelGepland[Mei]) -> € 111,125.00 | H8: =SUBTOTAL(109,PersoneelGepland[Jun]) -> € 111,125.00 | I8: =SUBTOTAL(109,PersoneelGepland[Jul]) -> € 111,125.00 | J8: =SUBTOTAL(109,PersoneelGepland[Aug]) -> € 117,348.00 | K8: =SUBTOTAL(109,PersoneelGepland[Sep]) -> € 117,348.00 | L8: =SUBTOTAL(109,PersoneelGepland[Okt]) -> € 117,348.00 | M8: =SUBTOTAL(109,PersoneelGepland[Nov]) -> € 117,348.00 | N8: =SUBTOTAL(109,PersoneelGepland[Dec]) -> € 117,348.00 | O8: =SUBTOTAL(109,PersoneelGepland[JAAR]) -> € 1,355,090.00
A10: Voer de kantoorkosten in in de tabel KantoorGepland die in de cel rechts begint. De volgende aanwijzing staat in cel A21. | B10: Kantoorkosten | C10: Jan | D10: Feb | E10: Mrt | F10: Apr | G10: Mei | H10: Jun | I10: Jul | J10: Aug | K10: Sep | L10: Okt | M10: Nov | N10: Dec | O10: JAAR
B11: Kantoorhuur | C11: € 9,800.00 | D11: € 9,800.00 | E11: € 9,800.00 | F11: € 9,800.00 | G11: € 9,800.00 | H11: € 9,800.00 | I11: € 9,800.00 | J11: € 9,800.00 | K11: € 9,800.00 | L11: € 9,800.00 | M11: € 9,800.00 | N11: € 9,800.00 | O11: =SUM(C11:N11) -> € 117,600.00
B12: Gas | D12: € 400.00 | E12: € 400.00 | F12: € 100.00 | G12: € 100.00 | H12: € 100.00 | I12: € 100.00 | J12: € 100.00 | K12: € 100.00 | L12: € 100.00 | M12: € 400.00 | N12: € 400.00 | O12: € 2,300.00
B13: Elektriciteit | C13: € 300.00 | D13: € 300.00 | E13: € 300.00 | F13: € 300.00 | G13: € 300.00 | H13: € 300.00 | I13: € 300.00 | J13: € 300.00 | K13: € 300.00 | L13: € 300.00 | M13: € 300.00 | N13: € 300.00 | O13: € 3,600.00
B14: Water | C14: € 40.00 | D14: € 40.00 | E14: € 40.00 | F14: € 40.00 | G14: € 40.00 | H14: € 40.00 | I14: € 40.00 | J14: € 40.00 | K14: € 40.00 | L14: € 40.00 | M14: € 40.00 | N14: € 40.00 | O14: € 480.00
B15: Telefoon | C15: € 250.00 | D15: € 250.00 | E15: € 250.00 | F15: € 250.00 | G15: € 250.00 | H15: € 250.00 | I15: € 250.00 | J15: € 250.00 | K15: € 250.00 | L15: € 250.00 | M15: € 250.00 | N15: € 250.00 | O15: € 3,000.00
B16: Internettoegang | C16: € 180.00 | D16: € 180.00 | E16: € 180.00 | F16: € 180.00 | G16: € 180.00 | H16: € 180.00 | I16: € 180.00 | J16: € 180.00 | K16: € 180.00 | L16: € 180.00 | M16: € 180.00 | N16: € 180.00 | O16: € 2,160.00
B17: Kantoorbenodigdheden | C17: € 200.00 | D17: € 200.00 | E17: € 200.00 | F17: € 200.00 | G17: € 200.00 | H17: € 200.00 | I17: € 200.00 | J17: € 200.00 | K17: € 200.00 | L17: € 200.00 | M17: € 200.00 | N17: € 200.00 | O17: € 2,400.00
B18: Beveiliging | C18: € 600.00 | D18: € 600.00 | E18: € 600.00 | F18: € 600.00 | G18: € 600.00 | H18: € 600.00 | I18: € 600.00 | J18: € 600.00 | K18: € 600.00 | L18: € 600.00 | M18: € 600.00 | N18: € 600.00 | O18: € 7,200.00
B19: Subtotaal | C19: =SUBTOTAL(109,KantoorGepland[Jan]) -> € 11,370.00 | D19: =SUBTOTAL(109,KantoorGepland[Feb]) -> € 11,770.00 | E19: =SUBTOTAL(109,KantoorGepland[Mrt]) -> € 11,770.00 | F19: =SUBTOTAL(109,KantoorGepland[Apr]) -> € 11,470.00 | G19: =SUBTOTAL(109,KantoorGepland[Mei]) -> € 11,470.00 | H19: =SUBTOTAL(109,KantoorGepland[Jun]) -> € 11,470.00 | I19: =SUBTOTAL(109,KantoorGepland[Jul]) -> € 11,470.00 | J19: =SUBTOTAL(109,KantoorGepland[Aug]) -> € 11,470.00 | K19: =SUBTOTAL(109,KantoorGepland[Sep]) -> € 11,470.00 | L19: =SUBTOTAL(109,KantoorGepland[Okt]) -> € 11,470.00 | M19: =SUBTOTAL(109,KantoorGepland[Nov]) -> € 11,770.00 | N19: =SUBTOTAL(109,KantoorGepland[Dec]) -> € 11,770.00 | O19: =SUBTOTAL(109,KantoorGepland[JAAR]) -> € 138,740.00
A21: Voer de marketingkosten in in de tabel MarketingGepland die in de cel rechts begint. De volgende aanwijzing staat in cel A30. | B21: Marketingkosten | C21: Jan | D21: Feb | E21: Mrt | F21: Apr | G21: Mei | H21: Jun | I21: Jul | J21: Aug | K21: Sep | L21: Okt | M21: Nov | N21: Dec | O21: JAAR
B22: Websitehosting | C22: € 500.00 | D22: € 500.00 | E22: € 500.00 | F22: € 500.00 | G22: € 500.00 | H22: € 500.00 | I22: € 500.00 | J22: € 500.00 | K22: € 500.00 | L22: € 500.00 | M22: € 500.00 | N22: € 500.00 | O22: =SUM(C22:N22) -> € 6,000.00
B23: Website-updates | C23: € 200.00 | D23: € 200.00 | E23: € 200.00 | F23: € 200.00 | G23: € 200.00 | H23: € 1,000.00 | I23: € 200.00 | J23: € 200.00 | K23: € 200.00 | L23: € 200.00 | M23: € 200.00 | N23: € 1,000.00 | O23: € 4,000.00
B24: Voorbereiding marketingmateriaal | C24: € 5,000.00 | D24: € 0.00 | E24: € 0.00 | F24: € 5,000.00 | G24: € 0.00 | H24: € 0.00 | I24: € 5,000.00 | J24: € 0.00 | K24: € 0.00 | L24: € 5,000.00 | M24: € 0.00 | N24: € 0.00 | O24: € 20,000.00
B25: Afdrukken marketingmateriaal | C25: € 200.00 | D25: € 200.00 | E25: € 200.00 | F25: € 200.00 | G25: € 200.00 | H25: € 200.00 | I25: € 200.00 | J25: € 200.00 | K25: € 200.00 | L25: € 200.00 | M25: € 200.00 | N25: € 200.00 | O25: € 2,400.00
B26: Marketingevenementen | C26: € 2,000.00 | D26: € 2,000.00 | E26: € 2,000.00 | F26: € 5,000.00 | G26: € 2,000.00 | H26: € 2,000.00 | I26: € 2,000.00 | J26: € 5,000.00 | K26: € 2,000.00 | L26: € 2,000.00 | M26: € 2,000.00 | N26: € 5,000.00 | O26: € 33,000.00
B27: Diverse kosten | C27: € 200.00 | D27: € 200.00 | E27: € 200.00 | F27: € 200.00 | G27: € 200.00 | H27: € 200.00 | I27: € 200.00 | J27: € 200.00 | K27: € 200.00 | L27: € 200.00 | M27: € 200.00 | N27: € 200.00 | O27: € 2,400.00
B28: Subtotaal | C28: =SUBTOTAL(109,MarketingGepland[Jan]) -> € 8,100.00 | D28: =SUBTOTAL(109,MarketingGepland[Feb]) -> € 3,100.00 | E28: =SUBTOTAL(109,MarketingGepland[Mrt]) -> € 3,100.00 | F28: =SUBTOTAL(109,MarketingGepland[Apr]) -> € 11,100.00 | G28: =SUBTOTAL(109,MarketingGepland[Mei]) -> € 3,100.00 | H28: =SUBTOTAL(109,MarketingGepland[Jun]) -> € 3,900.00 | I28: =SUBTOTAL(109,MarketingGepland[Jul]) -> € 8,100.00 | J28: =SUBTOTAL(109,MarketingGepland[Aug]) -> € 6,100.00 | K28: =SUBTOTAL(109,MarketingGepland[Sep]) -> € 3,100.00 | L28: =SUBTOTAL(109,MarketingGepland[Okt]) -> € 8,100.00 | M28: =SUBTOTAL(109,MarketingGepland[Nov]) -> € 3,100.00 | N28: =SUBTOTAL(109,MarketingGepland[Dec]) -> € 6,900.00 | O28: =SUBTOTAL(109,MarketingGepland[JAAR]) -> € 67,800.00
A30: Voer training- en reiskosten in in de tabel TrainingEnReizenGepland die in de cel rechts begint. De volgende aanwijzing staat in cel A35. | B30: Training/Reizen | C30: Jan | D30: Feb | E30: Mrt | F30: Apr | G30: Mei | H30: Jun | I30: Jul | J30: Aug | K30: Sep | L30: Okt | M30: Nov | N30: Dec | O30: JAAR
B31: Trainingscursussen | C31: € 2,000.00 | D31: € 2,000.00 | E31: € 2,000.00 | F31: € 2,000.00 | G31: € 2,000.00 | H31: € 2,000.00 | I31: € 2,000.00 | J31: € 2,000.00 | K31: € 2,000.00 | L31: € 2,000.00 | M31: € 2,000.00 | N31: € 2,000.00 | O31: =SUM(C31:N31) -> € 24,000.00
B32: Traininggerelateerde reiskosten | C32: € 2,000.00 | D32: € 2,000.00 | E32: € 2,000.00 | F32: € 2,000.00 | G32: € 2,000.00 | H32: € 2,000.00 | I32: € 2,000.00 | J32: € 2,000.00 | K32: € 2,000.00 | L32: € 2,000.00 | M32: € 2,000.00 | N32: € 2,000.00 | O32: =SUM(C32:N32) -> € 24,000.00
B33: Subtotaal | C33: =SUBTOTAL(109,TrainingEnReizenGepland[Jan]) -> € 4,000.00 | D33: =SUBTOTAL(109,TrainingEnReizenGepland[Feb]) -> € 4,000.00 | E33: =SUBTOTAL(109,TrainingEnReizenGepland[Mrt]) -> € 4,000.00 | F33: =SUBTOTAL(109,TrainingEnReizenGepland[Apr]) -> € 4,000.00 | G33: =SUBTOTAL(109,TrainingEnReizenGepland[Mei]) -> € 4,000.00 | H33: =SUBTOTAL(109,TrainingEnReizenGepland[Jun]) -> € 4,000.00 | I33: =SUBTOTAL(109,TrainingEnReizenGepland[Jul]) -> € 4,000.00 | J33: =SUBTOTAL(109,TrainingEnReizenGepland[Aug]) -> € 4,000.00 | K33: =SUBTOTAL(109,TrainingEnReizenGepland[Sep]) -> € 4,000.00 | L33: =SUBTOTAL(109,TrainingEnReizenGepland[Okt]) -> € 4,000.00 | M33: =SUBTOTAL(109,TrainingEnReizenGepland[Nov]) -> € 4,000.00 | N33: =SUBTOTAL(109,TrainingEnReizenGepland[Dec]) -> € 4,000.00 | O33: =SUBTOTAL(109,TrainingEnReizenGepland[JAAR]) -> € 48,000.00
A35: Totalen worden automatisch berekend in de tabel GeplandTotaal die in de cel rechts begint. | B35: TOTALEN | C35: Jan | D35: Feb | E35: Mrt | F35: Apr | G35: Mei | H35: Jun | I35: Jul | J35: Aug | K35: Sep | L35: Okt | M35: Nov | N35: Dec | O35: Jaar
B36: Geplande kosten per maand | C36: =TrainingEnReizenGepland[[#Totals],[Jan]]+MarketingGepland[[#Totals],[Jan]]+KantoorGepland[[#Totals],[Jan]]+PersoneelGepland[[#Totals],[Jan]] -> € 131,420.00 | D36: =TrainingEnReizenGepland[[#Totals],[Feb]]+MarketingGepland[[#Totals],[Feb]]+KantoorGepland[[#Totals],[Feb]]+PersoneelGepland[[#Totals],[Feb]] -> € 126,820.00 | E36: =TrainingEnReizenGepland[[#Totals],[Mrt]]+MarketingGepland[[#Totals],[Mrt]]+KantoorGepland[[#Totals],[Mrt]]+PersoneelGepland[[#Totals],[Mrt]] -> € 126,820.00 | F36: =TrainingEnReizenGepland[[#Totals],[Apr]]+MarketingGepland[[#Totals],[Apr]]+KantoorGepland[[#Totals],[Apr]]+PersoneelGepland[[#Totals],[Apr]] -> € 137,695.00 | G36: =TrainingEnReizenGepland[[#Totals],[Mei]]+MarketingGepland[[#Totals],[Mei]]+KantoorGepland[[#Totals],[Mei]]+PersoneelGepland[[#Totals],[Mei]] -> € 129,695.00 | H36: =TrainingEnReizenGepland[[#Totals],[Jun]]+MarketingGepland[[#Totals],[Jun]]+KantoorGepland[[#Totals],[Jun]]+PersoneelGepland[[#Totals],[Jun]] -> € 130,495.00 | I36: =TrainingEnReizenGepland[[#Totals],[Jul]]+MarketingGepland[[#Totals],[Jul]]+KantoorGepland[[#Totals],[Jul]]+PersoneelGepland[[#Totals],[Jul]] -> € 134,695.00 | J36: =TrainingEnReizenGepland[[#Totals],[Aug]]+MarketingGepland[[#Totals],[Aug]]+KantoorGepland[[#Totals],[Aug]]+PersoneelGepland[[#Totals],[Aug]] -> € 138,918.00 | K36: =TrainingEnReizenGepland[[#Totals],[Sep]]+MarketingGepland[[#Totals],[Sep]]+KantoorGepland[[#Totals],[Sep]]+PersoneelGepland[[#Totals],[Sep]] -> € 135,918.00 | L36: =TrainingEnReizenGepland[[#Totals],[Okt]]+MarketingGepland[[#Totals],[Okt]]+KantoorGepland[[#Totals],[Okt]]+PersoneelGepland[[#Totals],[Okt]] -> € 140,918.00 | M36: =TrainingEnReizenGepland[[#Totals],[Nov]]+MarketingGepland[[#Totals],[Nov]]+KantoorGepland[[#Totals],[Nov]]+PersoneelGepland[[#Totals],[Nov]] -> € 136,218.00 | N36: =TrainingEnReizenGepland[[#Totals],[Dec]]+MarketingGepland[[#Totals],[Dec]]+KantoorGepland[[#Totals],[Dec]]+PersoneelGepland[[#Totals],[Dec]] -> € 140,018.00 | O36: =TrainingEnReizenGepland[[#Totals],[JAAR]]+MarketingGepland[[#Totals],[JAAR]]+KantoorGepland[[#Totals],[JAAR]]+PersoneelGepland[[#Totals],[JAAR]] -> € 1,609,630.00
B37: TOTALE geplande kosten | C37: =SUM($C$36:C36) -> € 131,420.00 | D37: =SUM($C$36:D36) -> € 258,240.00 | E37: =SUM($C$36:E36) -> € 385,060.00 | F37: =SUM($C$36:F36) -> € 522,755.00 | G37: =SUM($C$36:G36) -> € 652,450.00 | H37: =SUM($C$36:H36) -> € 782,945.00 | I37: =SUM($C$36:I36) -> € 917,640.00 | J37: =SUM($C$36:J36) -> € 1,056,558.00 | K37: =SUM($C$36:K36) -> € 1,192,476.00 | L37: =SUM($C$36:L36) -> € 1,333,394.00 | M37: =SUM($C$36:M36) -> € 1,469,612.00 | N37: =SUM($C$36:N36) -> € 1,609,630.00

Sheet WERKELIJKE KOSTEN
A1: Voer werkelijke personeelskosten, kantoorkosten, marketingkosten en training- of reiskosten in de respectievelijke tabellen in dit werkblad in. Totalen worden automatisch berekend. Cellen in deze kolom bevatten handige instructies voor het gebruik van deze sjabloon. Druk op de pijl-omlaag-toets om aan de slag te gaan.
A2: Bedrijfsnaam wordt automatisch bijgewerkt in de cel rechts. De titel van dit werkblad staat in cel K2. Voer het logo in cel N2 in. | B2: ='GEPLANDE KOSTEN'!B2:D3 -> Bedrijfsnaam | J2: =werkbladtitel -> Gedetailleerde kostenschattingen | N2: Tijdelijke aanduiding voor logo bevindt zich in deze cel.
A3: De tip staat in cel K3. | J3: Gekleurde cellen zijn berekeningen.
A4: De cel rechts bevat het label WERKELIJKE KOSTEN, de cellen C4 t/m N4 bevatten de maanden, en cel O4 het label JAAR. | B4: WERKELIJKE KOSTEN | C4: JAN | D4: FEB | E4: MRT | F4: APR | G4: MEI | H4: JUN | I4: JUL | J4: AUG | K4: SEPT | L4: OKT | M4: NOV | N4: DEC | O4: JAAR
A5: Voer de personeelskosten in in de tabel PersoneelWerkelijk die in de cel rechts begint. De volgende aanwijzing staat in cel A10. | B5: Personeelskosten | C5: Jan | D5: Feb | E5: Mrt | F5: Apr | G5: Mei | H5: Jun | I5: Jul | J5: Aug | K5: Sep | L5: Okt | M5: Nov | N5: Dec | O5: JAAR
B6: Salaris | C6: € 85,000.00 | D6: € 85,000.00 | E6: € 85,000.00 | F6: € 88,000.00 | G6: € 88,000.00 | H6: € 88,000.00 | O6: =SUM(C6:N6) -> € 519,000.00
B7: Uitkeringen | C7: =C6*0.27 -> € 22,950.00 | D7: € 22,950.00 | E7: € 22,950.00 | F7: € 23,760.00 | G7: € 23,760.00 | H7: € 23,760.00 | I7: € 0.00 | J7: € 0.00 | K7: € 0.00 | L7: € 0.00 | M7: € 0.00 | N7: € 0.00 | O7: =SUM(C7:N7) -> € 140,130.00
B8: Subtotaal | C8: =SUBTOTAL(109,PersoneelWerkelijk[Jan]) -> € 107,950.00 | D8: =SUBTOTAL(109,PersoneelWerkelijk[Feb]) -> € 107,950.00 | E8: =SUBTOTAL(109,PersoneelWerkelijk[Mrt]) -> € 107,950.00 | F8: =SUBTOTAL(109,PersoneelWerkelijk[Apr]) -> € 111,760.00 | G8: =SUBTOTAL(109,PersoneelWerkelijk[Mei]) -> € 111,760.00 | H8: =SUBTOTAL(109,PersoneelWerkelijk[Jun]) -> € 111,760.00 | I8: =SUBTOTAL(109,PersoneelWerkelijk[Jul]) -> € 0.00 | J8: =SUBTOTAL(109,PersoneelWerkelijk[Aug]) -> € 0.00 | K8: =SUBTOTAL(109,PersoneelWerkelijk[Sep]) -> € 0.00 | L8: =SUBTOTAL(109,PersoneelWerkelijk[Okt]) -> € 0.00 | M8: =SUBTOTAL(109,PersoneelWerkelijk[Nov]) -> € 0.00 | N8: =SUBTOTAL(109,PersoneelWerkelijk[Dec]) -> € 0.00 | O8: =SUBTOTAL(109,PersoneelWerkelijk[JAAR]) -> € 659,130.00
A10: Voer de kantoorkosten in in de tabel KantoorWerkelijk die in de cel rechts begint. De volgende aanwijzing staat in cel A21. | B10: Kantoorkosten | C10: Jan | D10: Feb | E10: Mrt | F10: Apr | G10: Mei | H10: Jun | I10: Jul | J10: Aug | K10: Sep | L10: Okt | M10: Nov | N10: Dec | O10: JAAR
B11: Kantoorhuur | C11: € 9,800.00 | D11: € 9,800.00 | E11: € 9,800.00 | F11: € 9,800.00 | G11: € 9,800.00 | H11: € 9,800.00 | O11: =SUM(C11:N11) -> € 58,800.00
B12: Gas | C12: € 4.00 | D12: € 430.00 | E12: € 385.00 | F12: € 230.00 | G12: € 87.00 | H12: € 88.00 | O12: € 1,224.00
B13: Elektriciteit | C13: € 288.00 | D13: € 278.00 | E13: € 268.00 | F13: € 299.00 | G13: € 306.00 | H13: € 290.00 | O13: € 1,729.00
B14: Water | C14: € 35.00 | D14: € 33.00 | E14: € 34.00 | F14: € 36.00 | G14: € 34.00 | H14: € 36.00 | O14: € 208.00
B15: Telefoon | C15: € 224.00 | D15: € 235.00 | E15: € 265.00 | F15: € 245.00 | G15: € 245.00 | H15: € 220.00 | O15: € 1,434.00
B16: Internettoegang | C16: € 180.00 | D16: € 180.00 | E16: € 180.00 | F16: € 180.00 | G16: € 180.00 | H16: € 180.00 | O16: € 1,080.00
B17: Kantoorbenodigdheden | C17: € 256.00 | D17: € 142.00 | E17: € 160.00 | F17: € 221.00 | G17: € 256.00 | H17: € 240.00 | O17: € 1,275.00
B18: Beveiliging | C18: € 600.00 | D18: € 600.00 | E18: € 600.00 | F18: € 600.00 | G18: € 600.00 | H18: € 600.00 | O18: € 3,600.00
B19: Subtotaal | C19: =SUBTOTAL(109,KantoorWerkelijk[Jan]) -> € 11,387.00 | D19: =SUBTOTAL(109,KantoorWerkelijk[Feb]) -> € 11,698.00 | E19: =SUBTOTAL(109,KantoorWerkelijk[Mrt]) -> € 11,692.00 | F19: =SUBTOTAL(109,KantoorWerkelijk[Apr]) -> € 11,611.00 | G19: =SUBTOTAL(109,KantoorWerkelijk[Mei]) -> € 11,508.00 | H19: =SUBTOTAL(109,KantoorWerkelijk[Jun]) -> € 11,454.00 | I19: =SUBTOTAL(109,KantoorWerkelijk[Jul]) -> € 0.00 | J19: =SUBTOTAL(109,KantoorWerkelijk[Aug]) -> € 0.00 | K19: =SUBTOTAL(109,KantoorWerkelijk[Sep]) -> € 0.00 | L19: =SUBTOTAL(109,KantoorWerkelijk[Okt]) -> € 0.00 | M19: =SUBTOTAL(109,KantoorWerkelijk[Nov]) -> € 0.00 | N19: =SUBTOTAL(109,KantoorWerkelijk[Dec]) -> € 0.00 | O19: =SUBTOTAL(109,KantoorWerkelijk[JAAR]) -> € 69,350.00
A21: Voer de marketingkosten in in de tabel MarketingWerkelijk die in de cel rechts begint. De volgende aanwijzing staat in cel A30. | B21: Marketingkosten | C21: Jan | D21: Feb | E21: Mrt | F21: Apr | G21: Mei | H21: Jun | I21: Jul | J21: Aug | K21: Sep | L21: Okt | M21: Nov | N21: Dec | O21: JAAR
B22: Websitehosting | C22: € 500.00 | D22: € 500.00 | E22: € 500.00 | F22: € 500.00 | G22: € 500.00 | H22: € 500.00 | O22: =SUM(C22:N22) -> € 3,000.00
B23: Website-updates | C23: € 200.00 | D23: € 200.00 | E23: € 200.00 | F23: € 200.00 | G23: € 200.00 | H23: € 1,500.00 | O23: € 2,500.00
B24: Voorbereiding marketingmateriaal | C24: € 4,800.00 | D24: € 0.00 | E24: € 0.00 | F24: € 5,500.00 | G24: € 0.00 | H24: € 0.00 | O24: € 10,300.00
B25: Afdrukken marketingmateriaal | C25: € 100.00 | D25: € 500.00 | E25: € 100.00 | F25: € 100.00 | G25: € 600.00 | H25: € 180.00 | O25: € 1,580.00
B26: Marketingevenementen | C26: € 1,800.00 | D26: € 2,200.00 | E26: € 2,200.00 | F26: € 4,700.00 | G26: € 1,500.00 | H26: € 2,300.00 | O26: € 14,700.00
B27: Diverse kosten | C27: € 145.00 | D27: € 156.00 | E27: € 123.00 | F27: € 223.00 | G27: € 187.00 | H27: € 245.00 | O27: € 1,079.00
B28: Subtotaal | C28: =SUBTOTAL(109,MarketingWerkelijik[Jan]) -> € 7,545.00 | D28: =SUBTOTAL(109,MarketingWerkelijik[Feb]) -> € 3,556.00 | E28: =SUBTOTAL(109,MarketingWerkelijik[Mrt]) -> € 3,123.00 | F28: =SUBTOTAL(109,MarketingWerkelijik[Apr]) -> € 11,223.00 | G28: =SUBTOTAL(109,MarketingWerkelijik[Mei]) -> € 2,987.00 | H28: =SUBTOTAL(109,MarketingWerkelijik[Jun]) -> € 4,725.00 | I28: =SUBTOTAL(109,MarketingWerkelijik[Jul]) -> € 0.00 | J28: =SUBTOTAL(109,MarketingWerkelijik[Aug]) -> € 0.00 | K28: =SUBTOTAL(109,MarketingWerkelijik[Sep]) -> € 0.00 | L28: =SUBTOTAL(109,MarketingWerkelijik[Okt]) -> € 0.00 | M28: =SUBTOTAL(109,MarketingWerkelijik[Nov]) -> € 0.00 | N28: =SUBTOTAL(109,MarketingWerkelijik[Dec]) -> € 0.00 | O28: =SUBTOTAL(109,MarketingWerkelijik[JAAR]) -> € 33,159.00
A30: Voer training- en reiskosten in in de tabel TrainingEnReizenWerkelijk die in de cel rechts begint. De volgende aanwijzing staat in cel A35. | B30: Training/Reizen | C30: Jan | D30: Feb | E30: Mrt | F30: Apr | G30: Mei | H30: Jun | I30: Jul | J30: Aug | K30: Sep | L30: Okt | M30: Nov | N30: Dec | O30: JAAR
B31: Trainingscursussen | C31: € 1,600.00 | D31: € 2,400.00 | E31: € 1,400.00 | F31: € 1,600.00 | G31: € 1,200.00 | H31: € 2,800.00 | O31: =SUM(C31:N31) -> € 11,000.00
B32: Traininggerelateerde reiskosten | C32: € 1,200.00 | D32: € 2,200.00 | E32: € 1,400.00 | F32: € 1,200.00 | G32: € 800.00 | H32: € 3,500.00 | O32: =SUM(C32:N32) -> € 10,300.00
B33: Subtotaal | C33: =SUBTOTAL(109,TrainingEnReizenWerkelijk[Jan]) -> € 2,800.00 | D33: =SUBTOTAL(109,TrainingEnReizenWerkelijk[Feb]) -> € 4,600.00 | E33: =SUBTOTAL(109,TrainingEnReizenWerkelijk[Mrt]) -> € 2,800.00 | F33: =SUBTOTAL(109,TrainingEnReizenWerkelijk[Apr]) -> € 2,800.00 | G33: =SUBTOTAL(109,TrainingEnReizenWerkelijk[Mei]) -> € 2,000.00 | H33: =SUBTOTAL(109,TrainingEnReizenWerkelijk[Jun]) -> € 6,300.00 | I33: =SUBTOTAL(109,TrainingEnReizenWerkelijk[Jul]) -> € 0.00 | J33: =SUBTOTAL(109,TrainingEnReizenWerkelijk[Aug]) -> € 0.00 | K33: =SUBTOTAL(109,TrainingEnReizenWerkelijk[Sep]) -> € 0.00 | L33: =SUBTOTAL(109,TrainingEnReizenWerkelijk[Okt]) -> € 0.00 | M33: =SUBTOTAL(109,TrainingEnReizenWerkelijk[Nov]) -> € 0.00 | N33: =SUBTOTAL(109,TrainingEnReizenWerkelijk[Dec]) -> € 0.00 | O33: =SUBTOTAL(109,TrainingEnReizenWerkelijk[JAAR]) -> € 21,300.00
A35: Totalen worden automatisch berekend in de tabel WerkelijkTotaal die in de cel rechts begint. | B35: TOTALE geplande kosten | C35: Jan | D35: Feb | E35: Mrt | F35: Apr | G35: Mei | H35: Jun | I35: Jul | J35: Aug | K35: Sep | L35: Okt | M35: Nov | N35: Dec | O35: Jaar
B36: Werkelijke kosten per maand | C36: =TrainingEnReizenWerkelijk[[#Totals],[Jan]]+MarketingWerkelijik[[#Totals],[Jan]]+KantoorWerkelijk[[#Totals],[Jan]]+PersoneelWerkelijk[[#Totals],[Jan]] -> € 129,682.00 | D36: =TrainingEnReizenWerkelijk[[#Totals],[Feb]]+MarketingWerkelijik[[#Totals],[Feb]]+KantoorWerkelijk[[#Totals],[Feb]]+PersoneelWerkelijk[[#Totals],[Feb]] -> € 127,804.00 | E36: =TrainingEnReizenWerkelijk[[#Totals],[Mrt]]+MarketingWerkelijik[[#Totals],[Mrt]]+KantoorWerkelijk[[#Totals],[Mrt]]+PersoneelWerkelijk[[#Totals],[Mrt]] -> € 125,565.00 | F36: =TrainingEnReizenWerkelijk[[#Totals],[Apr]]+MarketingWerkelijik[[#Totals],[Apr]]+KantoorWerkelijk[[#Totals],[Apr]]+PersoneelWerkelijk[[#Totals],[Apr]] -> € 137,394.00 | G36: =TrainingEnReizenWerkelijk[[#Totals],[Mei]]+MarketingWerkelijik[[#Totals],[Mei]]+KantoorWerkelijk[[#Totals],[Mei]]+PersoneelWerkelijk[[#Totals],[Mei]] -> € 128,255.00 | H36: =TrainingEnReizenWerkelijk[[#Totals],[Jun]]+MarketingWerkelijik[[#Totals],[Jun]]+KantoorWerkelijk[[#Totals],[Jun]]+PersoneelWerkelijk[[#Totals],[Jun]] -> € 134,239.00 | I36: =TrainingEnReizenWerkelijk[[#Totals],[Jul]]+MarketingWerkelijik[[#Totals],[Jul]]+KantoorWerkelijk[[#Totals],[Jul]]+PersoneelWerkelijk[[#Totals],[Jul]] -> € 0.00 | J36: =TrainingEnReizenWerkelijk[[#Totals],[Aug]]+MarketingWerkelijik[[#Totals],[Aug]]+KantoorWerkelijk[[#Totals],[Aug]]+PersoneelWerkelijk[[#Totals],[Aug]] -> € 0.00 | K36: =TrainingEnReizenWerkelijk[[#Totals],[Sep]]+MarketingWerkelijik[[#Totals],[Sep]]+KantoorWerkelijk[[#Totals],[Sep]]+PersoneelWerkelijk[[#Totals],[Sep]] -> € 0.00 | L36: =TrainingEnReizenWerkelijk[[#Totals],[Okt]]+MarketingWerkelijik[[#Totals],[Okt]]+KantoorWerkelijk[[#Totals],[Okt]]+PersoneelWerkelijk[[#Totals],[Okt]] -> € 0.00 | M36: =TrainingEnReizenWerkelijk[[#Totals],[Nov]]+MarketingWerkelijik[[#Totals],[Nov]]+KantoorWerkelijk[[#Totals],[Nov]]+PersoneelWerkelijk[[#Totals],[Nov]] -> € 0.00 | N36: =TrainingEnReizenWerkelijk[[#Totals],[Dec]]+MarketingWerkelijik[[#Totals],[Dec]]+KantoorWerkelijk[[#Totals],[Dec]]+PersoneelWerkelijk[[#Totals],[Dec]] -> € 0.00 | O36: =TrainingEnReizenWerkelijk[[#Totals],[JAAR]]+MarketingWerkelijik[[#Totals],[JAAR]]+KantoorWerkelijk[[#Totals],[JAAR]]+PersoneelWerkelijk[[#Totals],[JAAR]] -> € 782,939.00
B37: TOTALE werkelijke kosten | C37: =SUM($C$36:C36) -> € 129,682.00 | D37: =SUM($C$36:D36) -> € 257,486.00 | E37: =SUM($C$36:E36) -> € 383,051.00 | F37: =SUM($C$36:F36) -> € 520,445.00 | G37: =SUM($C$36:G36) -> € 648,700.00 | H37: =SUM($C$36:H36) -> € 782,939.00 | I37: =SUM($C$36:I36) -> € 782,939.00 | J37: =SUM($C$36:J36) -> € 782,939.00 | K37: =SUM($C$36:K36) -> € 782,939.00 | L37: =SUM($C$36:L36) -> € 782,939.00 | M37: =SUM($C$36:M36) -> € 782,939.00 | N37: =SUM($C$36:N36) -> € 782,939.00

Sheet KOSTENVERSCHILLEN
A1: In de tabellen op dit werkblad worden automatisch de verschillen berekend tussen geplande en werkelijke personeelskosten, kantoorkosten, marketingkosten en training- of reiskosten. Cellen in deze kolom bevatten handige instructies voor het gebruik van deze sjabloon. Druk op de pijl-omlaag-toets om aan de slag te gaan.
A2: Bedrijfsnaam wordt automatisch bijgewerkt in de cel rechts. De titel van dit werkblad staat in cel K2. Voer het logo in cel N2 in. | B2: ='GEPLANDE KOSTEN'!B2:D3 -> Bedrijfsnaam | J2: =werkbladtitel -> Gedetailleerde kostenschattingen | N2: Tijdelijke aanduiding voor logo bevindt zich in deze cel.
A3: De tip staat in cel K3. | J3: Gekleurde cellen zijn berekeningen.
A4: De cel rechts bevat het label KOSTENVERSCHILLEN, de cellen C4 t/m N4 bevatten de maanden, en cel O4 het label JAAR. | B4: KOSTENVERSCHILLEN | C4: JAN | D4: FEB | E4: MRT | F4: APR | G4: MEI | H4: JUN | I4: JUL | J4: AUG | K4: SEPT | L4: OKT | M4: NOV | N4: DEC | O4: JAAR
A5: Het verschil in personeelskosten wordt automatisch berekend in de tabel PersoneelVerschillen die in de cel rechts begint. De volgende aanwijzing staat in cel A10. | B5: Personeelskosten | C5: Jan | D5: Feb | E5: Mrt | F5: Apr | G5: Mei | H5: Jun | I5: Jul | J5: Aug | K5: Sep | L5: Okt | M5: Nov | N5: Dec | O5: JAAR
B6: Salaris | C6: =INDEX(PersoneelGepland[],MATCH(INDEX(PersoneelVerschillen[],ROW()-ROW(PersoneelVerschillen[[#Headers],[Jan]]),1),INDEX(PersoneelGepland[],,1),0),MATCH(PersoneelVerschillen[[#Headers],[Jan]],PersoneelGepland[#Headers],0))-INDEX(PersoneelWerkelijk[],MATCH(INDEX(PersoneelVerschillen[],ROW()-ROW(PersoneelVerschillen[[#Headers],[Jan]]),1),INDEX(PersoneelGepland[],,1),0),MATCH(PersoneelVerschillen[[#Headers],[Jan]],PersoneelWerkelijk[#Headers],0)) -> € 0.00 | D6: =INDEX(PersoneelGepland[],MATCH(INDEX(PersoneelVerschillen[],ROW()-ROW(PersoneelVerschillen[[#Headers],[Feb]]),1),INDEX(PersoneelGepland[],,1),0),MATCH(PersoneelVerschillen[[#Headers],[Feb]],PersoneelGepland[#Headers],0))-INDEX(PersoneelWerkelijk[],MATCH(INDEX(PersoneelVerschillen[],ROW()-ROW(PersoneelVerschillen[[#Headers],[Feb]]),1),INDEX(PersoneelGepland[],,1),0),MATCH(PersoneelVerschillen[[#Headers],[Feb]],PersoneelWerkelijk[#Headers],0)) -> € 0.00 | E6: =INDEX(PersoneelGepland[],MATCH(INDEX(PersoneelVerschillen[],ROW()-ROW(PersoneelVerschillen[[#Headers],[Mrt]]),1),INDEX(PersoneelGepland[],,1),0),MATCH(PersoneelVerschillen[[#Headers],[Mrt]],PersoneelGepland[#Headers],0))-INDEX(PersoneelWerkelijk[],MATCH(INDEX(PersoneelVerschillen[],ROW()-ROW(PersoneelVerschillen[[#Headers],[Mrt]]),1),INDEX(PersoneelGepland[],,1),0),MATCH(PersoneelVerschillen[[#Headers],[Mrt]],PersoneelWerkelijk[#Headers],0)) -> € 0.00 | F6: =INDEX(PersoneelGepland[],MATCH(INDEX(PersoneelVerschillen[],ROW()-ROW(PersoneelVerschillen[[#Headers],[Apr]]),1),INDEX(PersoneelGepland[],,1),0),MATCH(PersoneelVerschillen[[#Headers],[Apr]],PersoneelGepland[#Headers],0))-INDEX(PersoneelWerkelijk[],MATCH(INDEX(PersoneelVerschillen[],ROW()-ROW(PersoneelVerschillen[[#Headers],[Apr]]),1),INDEX(PersoneelGepland[],,1),0),MATCH(PersoneelVerschillen[[#Headers],[Apr]],PersoneelWerkelijk[#Headers],0)) -> € -500.00 | G6: =INDEX(PersoneelGepland[],MATCH(INDEX(PersoneelVerschillen[],ROW()-ROW(PersoneelVerschillen[[#Headers],[Mei]]),1),INDEX(PersoneelGepland[],,1),0),MATCH(PersoneelVerschillen[[#Headers],[Mei]],PersoneelGepland[#Headers],0))-INDEX(PersoneelWerkelijk[],MATCH(INDEX(PersoneelVerschillen[],ROW()-ROW(PersoneelVerschillen[[#Headers],[Mei]]),1),INDEX(PersoneelGepland[],,1),0),MATCH(PersoneelVerschillen[[#Headers],[Mei]],PersoneelWerkelijk[#Headers],0)) -> € -500.00 | H6: =INDEX(PersoneelGepland[],MATCH(INDEX(PersoneelVerschillen[],ROW()-ROW(PersoneelVerschillen[[#Headers],[Jun]]),1),INDEX(PersoneelGepland[],,1),0),MATCH(PersoneelVerschillen[[#Headers],[Jun]],PersoneelGepland[#Headers],0))-INDEX(PersoneelWerkelijk[],MATCH(INDEX(PersoneelVerschillen[],ROW()-ROW(PersoneelVerschillen[[#Headers],[Jun]]),1),INDEX(PersoneelGepland[],,1),0),MATCH(PersoneelVerschillen[[#Headers],[Jun]],PersoneelWerkelijk[#Headers],0)) -> € -500.00 | I6: =INDEX(PersoneelGepland[],MATCH(INDEX(PersoneelVerschillen[],ROW()-ROW(PersoneelVerschillen[[#Headers],[Jul]]),1),INDEX(PersoneelGepland[],,1),0),MATCH(PersoneelVerschillen[[#Headers],[Jul]],PersoneelGepland[#Headers],0))-INDEX(PersoneelWerkelijk[],MATCH(INDEX(PersoneelVerschillen[],ROW()-ROW(PersoneelVerschillen[[#Headers],[Jul]]),1),INDEX(PersoneelGepland[],,1),0),MATCH(PersoneelVerschillen[[#Headers],[Jul]],PersoneelWerkelijk[#Headers],0)) -> € 87,500.00 | J6: =INDEX(PersoneelGepland[],MATCH(INDEX(PersoneelVerschillen[],ROW()-ROW(PersoneelVerschillen[[#Headers],[Aug]]),1),INDEX(PersoneelGepland[],,1),0),MATCH(PersoneelVerschillen[[#Headers],[Aug]],PersoneelGepland[#Headers],0))-INDEX(PersoneelWerkelijk[],MATCH(INDEX(PersoneelVerschillen[],ROW()-ROW(PersoneelVerschillen[[#Headers],[Aug]]),1),INDEX(PersoneelGepland[],,1),0),MATCH(PersoneelVerschillen[[#Headers],[Aug]],PersoneelWerkelijk[#Headers],0)) -> € 92,400.00 | K6: =INDEX(PersoneelGepland[],MATCH(INDEX(PersoneelVerschillen[],ROW()-ROW(PersoneelVerschillen[[#Headers],[Sep]]),1),INDEX(PersoneelGepland[],,1),0),MATCH(PersoneelVerschillen[[#Headers],[Sep]],PersoneelGepland[#Headers],0))-INDEX(PersoneelWerkelijk[],MATCH(INDEX(PersoneelVerschillen[],ROW()-ROW(PersoneelVerschillen[[#Headers],[Sep]]),1),INDEX(PersoneelGepland[],,1),0),MATCH(PersoneelVerschillen[[#Headers],[Sep]],PersoneelWerkelijk[#Headers],0)) -> € 92,400.00 | L6: =INDEX(PersoneelGepland[],MATCH(INDEX(PersoneelVerschillen[],ROW()-ROW(PersoneelVerschillen[[#Headers],[Okt]]),1),INDEX(PersoneelGepland[],,1),0),MATCH(PersoneelVerschillen[[#Headers],[Okt]],PersoneelGepland[#Headers],0))-INDEX(PersoneelWerkelijk[],MATCH(INDEX(PersoneelVerschillen[],ROW()-ROW(PersoneelVerschillen[[#Headers],[Okt]]),1),INDEX(PersoneelGepland[],,1),0),MATCH(PersoneelVerschillen[[#Headers],[Okt]],PersoneelWerkelijk[#Headers],0)) -> € 92,400.00 | M6: =INDEX(PersoneelGepland[],MATCH(INDEX(PersoneelVerschillen[],ROW()-ROW(PersoneelVerschillen[[#Headers],[Nov]]),1),INDEX(PersoneelGepland[],,1),0),MATCH(PersoneelVerschillen[[#Headers],[Nov]],PersoneelGepland[#Headers],0))-INDEX(PersoneelWerkelijk[],MATCH(INDEX(PersoneelVerschillen[],ROW()-ROW(PersoneelVerschillen[[#Headers],[Nov]]),1),INDEX(PersoneelGepland[],,1),0),MATCH(PersoneelVerschillen[[#Headers],[Nov]],PersoneelWerkelijk[#Headers],0)) -> € 92,400.00 | N6: =INDEX(PersoneelGepland[],MATCH(INDEX(PersoneelVerschillen[],ROW()-ROW(PersoneelVerschillen[[#Headers],[Dec]]),1),INDEX(PersoneelGepland[],,1),0),MATCH(PersoneelVerschillen[[#Headers],[Dec]],PersoneelGepland[#Headers],0))-INDEX(PersoneelWerkelijk[],MATCH(INDEX(PersoneelVerschillen[],ROW()-ROW(PersoneelVerschillen[[#Headers],[Dec]]),1),INDEX(PersoneelGepland[],,1),0),MATCH(PersoneelVerschillen[[#Headers],[Dec]],PersoneelWerkelijk[#Headers],0)) -> € 92,400.00 | O6: =SUM(PersoneelVerschillen[[#This Row],[Jan]:[Dec]]) -> € 548,000.00
B7: Uitkeringen | C7: =INDEX(PersoneelGepland[],MATCH(INDEX(PersoneelVerschillen[],ROW()-ROW(PersoneelVerschillen[[#Headers],[Jan]]),1),INDEX(PersoneelGepland[],,1),0),MATCH(PersoneelVerschillen[[#Headers],[Jan]],PersoneelGepland[#Headers],0))-INDEX(PersoneelWerkelijk[],MATCH(INDEX(PersoneelVerschillen[],ROW()-ROW(PersoneelVerschillen[[#Headers],[Jan]]),1),INDEX(PersoneelGepland[],,1),0),MATCH(PersoneelVerschillen[[#Headers],[Jan]],PersoneelWerkelijk[#Headers],0)) -> € 0.00 | D7: =INDEX(PersoneelGepland[],MATCH(INDEX(PersoneelVerschillen[],ROW()-ROW(PersoneelVerschillen[[#Headers],[Feb]]),1),INDEX(PersoneelGepland[],,1),0),MATCH(PersoneelVerschillen[[#Headers],[Feb]],PersoneelGepland[#Headers],0))-INDEX(PersoneelWerkelijk[],MATCH(INDEX(PersoneelVerschillen[],ROW()-ROW(PersoneelVerschillen[[#Headers],[Feb]]),1),INDEX(PersoneelGepland[],,1),0),MATCH(PersoneelVerschillen[[#Headers],[Feb]],PersoneelWerkelijk[#Headers],0)) -> € 0.00 | E7: =INDEX(PersoneelGepland[],MATCH(INDEX(PersoneelVerschillen[],ROW()-ROW(PersoneelVerschillen[[#Headers],[Mrt]]),1),INDEX(PersoneelGepland[],,1),0),MATCH(PersoneelVerschillen[[#Headers],[Mrt]],PersoneelGepland[#Headers],0))-INDEX(PersoneelWerkelijk[],MATCH(INDEX(PersoneelVerschillen[],ROW()-ROW(PersoneelVerschillen[[#Headers],[Mrt]]),1),INDEX(PersoneelGepland[],,1),0),MATCH(PersoneelVerschillen[[#Headers],[Mrt]],PersoneelWerkelijk[#Headers],0)) -> € 0.00 | F7: =INDEX(PersoneelGepland[],MATCH(INDEX(PersoneelVerschillen[],ROW()-ROW(PersoneelVerschillen[[#Headers],[Apr]]),1),INDEX(PersoneelGepland[],,1),0),MATCH(PersoneelVerschillen[[#Headers],[Apr]],PersoneelGepland[#Headers],0))-INDEX(PersoneelWerkelijk[],MATCH(INDEX(PersoneelVerschillen[],ROW()-ROW(PersoneelVerschillen[[#Headers],[Apr]]),1),INDEX(PersoneelGepland[],,1),0),MATCH(PersoneelVerschillen[[#Headers],[Apr]],PersoneelWerkelijk[#Headers],0)) -> € -135.00 | G7: =INDEX(PersoneelGepland[],MATCH(INDEX(PersoneelVerschillen[],ROW()-ROW(PersoneelVerschillen[[#Headers],[Mei]]),1),INDEX(PersoneelGepland[],,1),0),MATCH(PersoneelVerschillen[[#Headers],[Mei]],PersoneelGepland[#Headers],0))-INDEX(PersoneelWerkelijk[],MATCH(INDEX(PersoneelVerschillen[],ROW()-ROW(PersoneelVerschillen[[#Headers],[Mei]]),1),INDEX(PersoneelGepland[],,1),0),MATCH(PersoneelVerschillen[[#Headers],[Mei]],PersoneelWerkelijk[#Headers],0)) -> € -135.00 | H7: =INDEX(PersoneelGepland[],MATCH(INDEX(PersoneelVerschillen[],ROW()-ROW(PersoneelVerschillen[[#Headers],[Jun]]),1),INDEX(PersoneelGepland[],,1),0),MATCH(PersoneelVerschillen[[#Headers],[Jun]],PersoneelGepland[#Headers],0))-INDEX(PersoneelWerkelijk[],MATCH(INDEX(PersoneelVerschillen[],ROW()-ROW(PersoneelVerschillen[[#Headers],[Jun]]),1),INDEX(PersoneelGepland[],,1),0),MATCH(PersoneelVerschillen[[#Headers],[Jun]],PersoneelWerkelijk[#Headers],0)) -> € -135.00 | I7: =INDEX(PersoneelGepland[],MATCH(INDEX(PersoneelVerschillen[],ROW()-ROW(PersoneelVerschillen[[#Headers],[Jul]]),1),INDEX(PersoneelGepland[],,1),0),MATCH(PersoneelVerschillen[[#Headers],[Jul]],PersoneelGepland[#Headers],0))-INDEX(PersoneelWerkelijk[],MATCH(INDEX(PersoneelVerschillen[],ROW()-ROW(PersoneelVerschillen[[#Headers],[Jul]]),1),INDEX(PersoneelGepland[],,1),0),MATCH(PersoneelVerschillen[[#Headers],[Jul]],PersoneelWerkelijk[#Headers],0)) -> € 23,625.00 | J7: =INDEX(PersoneelGepland[],MATCH(INDEX(PersoneelVerschillen[],ROW()-ROW(PersoneelVerschillen[[#Headers],[Aug]]),1),INDEX(PersoneelGepland[],,1),0),MATCH(PersoneelVerschillen[[#Headers],[Aug]],PersoneelGepland[#Headers],0))-INDEX(PersoneelWerkelijk[],MATCH(INDEX(PersoneelVerschillen[],ROW()-ROW(PersoneelVerschillen[[#Headers],[Aug]]),1),INDEX(PersoneelGepland[],,1),0),MATCH(PersoneelVerschillen[[#Headers],[Aug]],PersoneelWerkelijk[#Headers],0)) -> € 24,948.00 | K7: =INDEX(PersoneelGepland[],MATCH(INDEX(PersoneelVerschillen[],ROW()-ROW(PersoneelVerschillen[[#Headers],[Sep]]),1),INDEX(PersoneelGepland[],,1),0),MATCH(PersoneelVerschillen[[#Headers],[Sep]],PersoneelGepland[#Headers],0))-INDEX(PersoneelWerkelijk[],MATCH(INDEX(PersoneelVerschillen[],ROW()-ROW(PersoneelVerschillen[[#Headers],[Sep]]),1),INDEX(PersoneelGepland[],,1),0),MATCH(PersoneelVerschillen[[#Headers],[Sep]],PersoneelWerkelijk[#Headers],0)) -> € 24,948.00 | L7: =INDEX(PersoneelGepland[],MATCH(INDEX(PersoneelVerschillen[],ROW()-ROW(PersoneelVerschillen[[#Headers],[Okt]]),1),INDEX(PersoneelGepland[],,1),0),MATCH(PersoneelVerschillen[[#Headers],[Okt]],PersoneelGepland[#Headers],0))-INDEX(PersoneelWerkelijk[],MATCH(INDEX(PersoneelVerschillen[],ROW()-ROW(PersoneelVerschillen[[#Headers],[Okt]]),1),INDEX(PersoneelGepland[],,1),0),MATCH(PersoneelVerschillen[[#Headers],[Okt]],PersoneelWerkelijk[#Headers],0)) -> € 24,948.00 | M7: =INDEX(PersoneelGepland[],MATCH(INDEX(PersoneelVerschillen[],ROW()-ROW(PersoneelVerschillen[[#Headers],[Nov]]),1),INDEX(PersoneelGepland[],,1),0),MATCH(PersoneelVerschillen[[#Headers],[Nov]],PersoneelGepland[#Headers],0))-INDEX(PersoneelWerkelijk[],MATCH(INDEX(PersoneelVerschillen[],ROW()-ROW(PersoneelVerschillen[[#Headers],[Nov]]),1),INDEX(PersoneelGepland[],,1),0),MATCH(PersoneelVerschillen[[#Headers],[Nov]],PersoneelWerkelijk[#Headers],0)) -> € 24,948.00 | N7: =INDEX(PersoneelGepland[],MATCH(INDEX(PersoneelVerschillen[],ROW()-ROW(PersoneelVerschillen[[#Headers],[Dec]]),1),INDEX(PersoneelGepland[],,1),0),MATCH(PersoneelVerschillen[[#Headers],[Dec]],PersoneelGepland[#Headers],0))-INDEX(PersoneelWerkelijk[],MATCH(INDEX(PersoneelVerschillen[],ROW()-ROW(PersoneelVerschillen[[#Headers],[Dec]]),1),INDEX(PersoneelGepland[],,1),0),MATCH(PersoneelVerschillen[[#Headers],[Dec]],PersoneelWerkelijk[#Headers],0)) -> € 24,948.00 | O7: =SUM(PersoneelVerschillen[[#This Row],[Jan]:[Dec]]) -> € 147,960.00
B8: Subtotaal | C8: =SUBTOTAL(109,PersoneelVerschillen[Jan]) -> € 0.00 | D8: =SUBTOTAL(109,PersoneelVerschillen[Feb]) -> € 0.00 | E8: =SUBTOTAL(109,PersoneelVerschillen[Mrt]) -> € 0.00 | F8: =SUBTOTAL(109,PersoneelVerschillen[Apr]) -> € -635.00 | G8: =SUBTOTAL(109,PersoneelVerschillen[Mei]) -> € -635.00 | H8: =SUBTOTAL(109,PersoneelVerschillen[Jun]) -> € -635.00 | I8: =SUBTOTAL(109,PersoneelVerschillen[Jul]) -> € 111,125.00 | J8: =SUBTOTAL(109,PersoneelVerschillen[Aug]) -> € 117,348.00 | K8: =SUBTOTAL(109,PersoneelVerschillen[Sep]) -> € 117,348.00 | L8: =SUBTOTAL(109,PersoneelVerschillen[Okt]) -> € 117,348.00 | M8: =SUBTOTAL(109,PersoneelVerschillen[Nov]) -> € 117,348.00 | N8: =SUBTOTAL(109,PersoneelVerschillen[Dec]) -> € 117,348.00 | O8: =SUBTOTAL(109,PersoneelVerschillen[JAAR]) -> € 695,960.00
A10: Het verschil in kantoorkosten wordt automatisch berekend in de tabel KantoorVerschillen die in de cel rechts begint. De volgende aanwijzing staat in cel A21. | B10: Kantoorkosten | C10: Jan | D10: Feb | E10: Mrt | F10: Apr | G10: Mei | H10: Jun | I10: Jul | J10: Aug | K10: Sep | L10: Okt | M10: Nov | N10: Dec | O10: JAAR
B11: Kantoorhuur | C11: =INDEX(KantoorGepland[],MATCH(INDEX(KantoorVerschillen[],ROW()-ROW(KantoorVerschillen[[#Headers],[Jan]]),1),INDEX(KantoorGepland[],,1),0),MATCH(KantoorVerschillen[[#Headers],[Jan]],KantoorGepland[#Headers],0))-INDEX(KantoorWerkelijk[],MATCH(INDEX(KantoorVerschillen[],ROW()-ROW(KantoorVerschillen[[#Headers],[Jan]]),1),INDEX(KantoorGepland[],,1),0),MATCH(KantoorVerschillen[[#Headers],[Jan]],KantoorWerkelijk[#Headers],0)) -> € 0.00 | D11: =INDEX(KantoorGepland[],MATCH(INDEX(KantoorVerschillen[],ROW()-ROW(KantoorVerschillen[[#Headers],[Feb]]),1),INDEX(KantoorGepland[],,1),0),MATCH(KantoorVerschillen[[#Headers],[Feb]],KantoorGepland[#Headers],0))-INDEX(KantoorWerkelijk[],MATCH(INDEX(KantoorVerschillen[],ROW()-ROW(KantoorVerschillen[[#Headers],[Feb]]),1),INDEX(KantoorGepland[],,1),0),MATCH(KantoorVerschillen[[#Headers],[Feb]],KantoorWerkelijk[#Headers],0)) -> € 0.00 | E11: =INDEX(KantoorGepland[],MATCH(INDEX(KantoorVerschillen[],ROW()-ROW(KantoorVerschillen[[#Headers],[Mrt]]),1),INDEX(KantoorGepland[],,1),0),MATCH(KantoorVerschillen[[#Headers],[Mrt]],KantoorGepland[#Headers],0))-INDEX(KantoorWerkelijk[],MATCH(INDEX(KantoorVerschillen[],ROW()-ROW(KantoorVerschillen[[#Headers],[Mrt]]),1),INDEX(KantoorGepland[],,1),0),MATCH(KantoorVerschillen[[#Headers],[Mrt]],KantoorWerkelijk[#Headers],0)) -> € 0.00 | F11: =INDEX(KantoorGepland[],MATCH(INDEX(KantoorVerschillen[],ROW()-ROW(KantoorVerschillen[[#Headers],[Apr]]),1),INDEX(KantoorGepland[],,1),0),MATCH(KantoorVerschillen[[#Headers],[Apr]],KantoorGepland[#Headers],0))-INDEX(KantoorWerkelijk[],MATCH(INDEX(KantoorVerschillen[],ROW()-ROW(KantoorVerschillen[[#Headers],[Apr]]),1),INDEX(KantoorGepland[],,1),0),MATCH(KantoorVerschillen[[#Headers],[Apr]],KantoorWerkelijk[#Headers],0)) -> € 0.00 | G11: =INDEX(KantoorGepland[],MATCH(INDEX(KantoorVerschillen[],ROW()-ROW(KantoorVerschillen[[#Headers],[Mei]]),1),INDEX(KantoorGepland[],,1),0),MATCH(KantoorVerschillen[[#Headers],[Mei]],KantoorGepland[#Headers],0))-INDEX(KantoorWerkelijk[],MATCH(INDEX(KantoorVerschillen[],ROW()-ROW(KantoorVerschillen[[#Headers],[Mei]]),1),INDEX(KantoorGepland[],,1),0),MATCH(KantoorVerschillen[[#Headers],[Mei]],KantoorWerkelijk[#Headers],0)) -> € 0.00 | H11: =INDEX(KantoorGepland[],MATCH(INDEX(KantoorVerschillen[],ROW()-ROW(KantoorVerschillen[[#Headers],[Jun]]),1),INDEX(KantoorGepland[],,1),0),MATCH(KantoorVerschillen[[#Headers],[Jun]],KantoorGepland[#Headers],0))-INDEX(KantoorWerkelijk[],MATCH(INDEX(KantoorVerschillen[],ROW()-ROW(KantoorVerschillen[[#Headers],[Jun]]),1),INDEX(KantoorGepland[],,1),0),MATCH(KantoorVerschillen[[#Headers],[Jun]],KantoorWerkelijk[#Headers],0)) -> € 0.00 | I11: =INDEX(KantoorGepland[],MATCH(INDEX(KantoorVerschillen[],ROW()-ROW(KantoorVerschillen[[#Headers],[Jul]]),1),INDEX(KantoorGepland[],,1),0),MATCH(KantoorVerschillen[[#Headers],[Jul]],KantoorGepland[#Headers],0))-INDEX(KantoorWerkelijk[],MATCH(INDEX(KantoorVerschillen[],ROW()-ROW(KantoorVerschillen[[#Headers],[Jul]]),1),INDEX(KantoorGepland[],,1),0),MATCH(KantoorVerschillen[[#Headers],[Jul]],KantoorWerkelijk[#Headers],0)) -> € 9,800.00 | J11: =INDEX(KantoorGepland[],MATCH(INDEX(KantoorVerschillen[],ROW()-ROW(KantoorVerschillen[[#Headers],[Aug]]),1),INDEX(KantoorGepland[],,1),0),MATCH(KantoorVerschillen[[#Headers],[Aug]],KantoorGepland[#Headers],0))-INDEX(KantoorWerkelijk[],MATCH(INDEX(KantoorVerschillen[],ROW()-ROW(KantoorVerschillen[[#Headers],[Aug]]),1),INDEX(KantoorGepland[],,1),0),MATCH(KantoorVerschillen[[#Headers],[Aug]],KantoorWerkelijk[#Headers],0)) -> € 9,800.00 | K11: =INDEX(KantoorGepland[],MATCH(INDEX(KantoorVerschillen[],ROW()-ROW(KantoorVerschillen[[#Headers],[Sep]]),1),INDEX(KantoorGepland[],,1),0),MATCH(KantoorVerschillen[[#Headers],[Sep]],KantoorGepland[#Headers],0))-INDEX(KantoorWerkelijk[],MATCH(INDEX(KantoorVerschillen[],ROW()-ROW(KantoorVerschillen[[#Headers],[Sep]]),1),INDEX(KantoorGepland[],,1),0),MATCH(KantoorVerschillen[[#Headers],[Sep]],KantoorWerkelijk[#Headers],0)) -> € 9,800.00 | L11: =INDEX(KantoorGepland[],MATCH(INDEX(KantoorVerschillen[],ROW()-ROW(KantoorVerschillen[[#Headers],[Okt]]),1),INDEX(KantoorGepland[],,1),0),MATCH(KantoorVerschillen[[#Headers],[Okt]],KantoorGepland[#Headers],0))-INDEX(KantoorWerkelijk[],MATCH(INDEX(KantoorVerschillen[],ROW()-ROW(KantoorVerschillen[[#Headers],[Okt]]),1),INDEX(KantoorGepland[],,1),0),MATCH(KantoorVerschillen[[#Headers],[Okt]],KantoorWerkelijk[#Headers],0)) -> € 9,800.00 | M11: =INDEX(KantoorGepland[],MATCH(INDEX(KantoorVerschillen[],ROW()-ROW(KantoorVerschillen[[#Headers],[Nov]]),1),INDEX(KantoorGepland[],,1),0),MATCH(KantoorVerschillen[[#Headers],[Nov]],KantoorGepland[#Headers],0))-INDEX(KantoorWerkelijk[],MATCH(INDEX(KantoorVerschillen[],ROW()-ROW(KantoorVerschillen[[#Headers],[Nov]]),1),INDEX(KantoorGepland[],,1),0),MATCH(KantoorVerschillen[[#Headers],[Nov]],KantoorWerkelijk[#Headers],0)) -> € 9,800.00 | N11: =INDEX(KantoorGepland[],MATCH(INDEX(KantoorVerschillen[],ROW()-ROW(KantoorVerschillen[[#Headers],[Dec]]),1),INDEX(KantoorGepland[],,1),0),MATCH(KantoorVerschillen[[#Headers],[Dec]],KantoorGepland[#Headers],0))-INDEX(KantoorWerkelijk[],MATCH(INDEX(KantoorVerschillen[],ROW()-ROW(KantoorVerschillen[[#Headers],[Dec]]),1),INDEX(KantoorGepland[],,1),0),MATCH(KantoorVerschillen[[#Headers],[Dec]],KantoorWerkelijk[#Headers],0)) -> € 9,800.00 | O11: =SUM(KantoorVerschillen[[#This Row],[Jan]:[Dec]]) -> € 58,800.00
B12: Gas | C12: =INDEX(KantoorGepland[],MATCH(INDEX(KantoorVerschillen[],ROW()-ROW(KantoorVerschillen[[#Headers],[Jan]]),1),INDEX(KantoorGepland[],,1),0),MATCH(KantoorVerschillen[[#Headers],[Jan]],KantoorGepland[#Headers],0))-INDEX(KantoorWerkelijk[],MATCH(INDEX(KantoorVerschillen[],ROW()-ROW(KantoorVerschillen[[#Headers],[Jan]]),1),INDEX(KantoorGepland[],,1),0),MATCH(KantoorVerschillen[[#Headers],[Jan]],KantoorWerkelijk[#Headers],0)) -> € -4.00 | D12: =INDEX(KantoorGepland[],MATCH(INDEX(KantoorVerschillen[],ROW()-ROW(KantoorVerschillen[[#Headers],[Feb]]),1),INDEX(KantoorGepland[],,1),0),MATCH(KantoorVerschillen[[#Headers],[Feb]],KantoorGepland[#Headers],0))-INDEX(KantoorWerkelijk[],MATCH(INDEX(KantoorVerschillen[],ROW()-ROW(KantoorVerschillen[[#Headers],[Feb]]),1),INDEX(KantoorGepland[],,1),0),MATCH(KantoorVerschillen[[#Headers],[Feb]],KantoorWerkelijk[#Headers],0)) -> € -30.00 | E12: =INDEX(KantoorGepland[],MATCH(INDEX(KantoorVerschillen[],ROW()-ROW(KantoorVerschillen[[#Headers],[Mrt]]),1),INDEX(KantoorGepland[],,1),0),MATCH(KantoorVerschillen[[#Headers],[Mrt]],KantoorGepland[#Headers],0))-INDEX(KantoorWerkelijk[],MATCH(INDEX(KantoorVerschillen[],ROW()-ROW(KantoorVerschillen[[#Headers],[Mrt]]),1),INDEX(KantoorGepland[],,1),0),MATCH(KantoorVerschillen[[#Headers],[Mrt]],KantoorWerkelijk[#Headers],0)) -> € 15.00 | F12: =INDEX(KantoorGepland[],MATCH(INDEX(KantoorVerschillen[],ROW()-ROW(KantoorVerschillen[[#Headers],[Apr]]),1),INDEX(KantoorGepland[],,1),0),MATCH(KantoorVerschillen[[#Headers],[Apr]],KantoorGepland[#Headers],0))-INDEX(KantoorWerkelijk[],MATCH(INDEX(KantoorVerschillen[],ROW()-ROW(KantoorVerschillen[[#Headers],[Apr]]),1),INDEX(KantoorGepland[],,1),0),MATCH(KantoorVerschillen[[#Headers],[Apr]],KantoorWerkelijk[#Headers],0)) -> € -130.00 | G12: =INDEX(KantoorGepland[],MATCH(INDEX(KantoorVerschillen[],ROW()-ROW(KantoorVerschillen[[#Headers],[Mei]]),1),INDEX(KantoorGepland[],,1),0),MATCH(KantoorVerschillen[[#Headers],[Mei]],KantoorGepland[#Headers],0))-INDEX(KantoorWerkelijk[],MATCH(INDEX(KantoorVerschillen[],ROW()-ROW(KantoorVerschillen[[#Headers],[Mei]]),1),INDEX(KantoorGepland[],,1),0),MATCH(KantoorVerschillen[[#Headers],[Mei]],KantoorWerkelijk[#Headers],0)) -> € 13.00 | H12: =INDEX(KantoorGepland[],MATCH(INDEX(KantoorVerschillen[],ROW()-ROW(KantoorVerschillen[[#Headers],[Jun]]),1),INDEX(KantoorGepland[],,1),0),MATCH(KantoorVerschillen[[#Headers],[Jun]],KantoorGepland[#Headers],0))-INDEX(KantoorWerkelijk[],MATCH(INDEX(KantoorVerschillen[],ROW()-ROW(KantoorVerschillen[[#Headers],[Jun]]),1),INDEX(KantoorGepland[],,1),0),MATCH(KantoorVerschillen[[#Headers],[Jun]],KantoorWerkelijk[#Headers],0)) -> € 12.00 | I12: =INDEX(KantoorGepland[],MATCH(INDEX(KantoorVerschillen[],ROW()-ROW(KantoorVerschillen[[#Headers],[Jul]]),1),INDEX(KantoorGepland[],,1),0),MATCH(KantoorVerschillen[[#Headers],[Jul]],KantoorGepland[#Headers],0))-INDEX(KantoorWerkelijk[],MATCH(INDEX(KantoorVerschillen[],ROW()-ROW(KantoorVerschillen[[#Headers],[Jul]]),1),INDEX(KantoorGepland[],,1),0),MATCH(KantoorVerschillen[[#Headers],[Jul]],KantoorWerkelijk[#Headers],0)) -> € 100.00 | J12: =INDEX(KantoorGepland[],MATCH(INDEX(KantoorVerschillen[],ROW()-ROW(KantoorVerschillen[[#Headers],[Aug]]),1),INDEX(KantoorGepland[],,1),0),MATCH(KantoorVerschillen[[#Headers],[Aug]],KantoorGepland[#Headers],0))-INDEX(KantoorWerkelijk[],MATCH(INDEX(KantoorVerschillen[],ROW()-ROW(KantoorVerschillen[[#Headers],[Aug]]),1),INDEX(KantoorGepland[],,1),0),MATCH(KantoorVerschillen[[#Headers],[Aug]],KantoorWerkelijk[#Headers],0)) -> € 100.00 | K12: =INDEX(KantoorGepland[],MATCH(INDEX(KantoorVerschillen[],ROW()-ROW(KantoorVerschillen[[#Headers],[Sep]]),1),INDEX(KantoorGepland[],,1),0),MATCH(KantoorVerschillen[[#Headers],[Sep]],KantoorGepland[#Headers],0))-INDEX(KantoorWerkelijk[],MATCH(INDEX(KantoorVerschillen[],ROW()-ROW(KantoorVerschillen[[#Headers],[Sep]]),1),INDEX(KantoorGepland[],,1),0),MATCH(KantoorVerschillen[[#Headers],[Sep]],KantoorWerkelijk[#Headers],0)) -> € 100.00 | L12: =INDEX(KantoorGepland[],MATCH(INDEX(KantoorVerschillen[],ROW()-ROW(KantoorVerschillen[[#Headers],[Okt]]),1),INDEX(KantoorGepland[],,1),0),MATCH(KantoorVerschillen[[#Headers],[Okt]],KantoorGepland[#Headers],0))-INDEX(KantoorWerkelijk[],MATCH(INDEX(KantoorVerschillen[],ROW()-ROW(KantoorVerschillen[[#Headers],[Okt]]),1),INDEX(KantoorGepland[],,1),0),MATCH(KantoorVerschillen[[#Headers],[Okt]],KantoorWerkelijk[#Headers],0)) -> € 100.00 | M12: =INDEX(KantoorGepland[],MATCH(INDEX(KantoorVerschillen[],ROW()-ROW(KantoorVerschillen[[#Headers],[Nov]]),1),INDEX(KantoorGepland[],,1),0),MATCH(KantoorVerschillen[[#Headers],[Nov]],KantoorGepland[#Headers],0))-INDEX(KantoorWerkelijk[],MATCH(INDEX(KantoorVerschillen[],ROW()-ROW(KantoorVerschillen[[#Headers],[Nov]]),1),INDEX(KantoorGepland[],,1),0),MATCH(KantoorVerschillen[[#Headers],[Nov]],KantoorWerkelijk[#Headers],0)) -> € 400.00 | N12: =INDEX(KantoorGepland[],MATCH(INDEX(KantoorVerschillen[],ROW()-ROW(KantoorVerschillen[[#Headers],[Dec]]),1),INDEX(KantoorGepland[],,1),0),MATCH(KantoorVerschillen[[#Headers],[Dec]],KantoorGepland[#Headers],0))-INDEX(KantoorWerkelijk[],MATCH(INDEX(KantoorVerschillen[],ROW()-ROW(KantoorVerschillen[[#Headers],[Dec]]),1),INDEX(KantoorGepland[],,1),0),MATCH(KantoorVerschillen[[#Headers],[Dec]],KantoorWerkelijk[#Headers],0)) -> € 400.00 | O12: =SUM(KantoorVerschillen[[#This Row],[Jan]:[Dec]]) -> € 1,076.00
B13: Elektriciteit | C13: =INDEX(KantoorGepland[],MATCH(INDEX(KantoorVerschillen[],ROW()-ROW(KantoorVerschillen[[#Headers],[Jan]]),1),INDEX(KantoorGepland[],,1),0),MATCH(KantoorVerschillen[[#Headers],[Jan]],KantoorGepland[#Headers],0))-INDEX(KantoorWerkelijk[],MATCH(INDEX(KantoorVerschillen[],ROW()-ROW(KantoorVerschillen[[#Headers],[Jan]]),1),INDEX(KantoorGepland[],,1),0),MATCH(KantoorVerschillen[[#Headers],[Jan]],KantoorWerkelijk[#Headers],0)) -> € 12.00 | D13: =INDEX(KantoorGepland[],MATCH(INDEX(KantoorVerschillen[],ROW()-ROW(KantoorVerschillen[[#Headers],[Feb]]),1),INDEX(KantoorGepland[],,1),0),MATCH(KantoorVerschillen[[#Headers],[Feb]],KantoorGepland[#Headers],0))-INDEX(KantoorWerkelijk[],MATCH(INDEX(KantoorVerschillen[],ROW()-ROW(KantoorVerschillen[[#Headers],[Feb]]),1),INDEX(KantoorGepland[],,1),0),MATCH(KantoorVerschillen[[#Headers],[Feb]],KantoorWerkelijk[#Headers],0)) -> € 22.00 | E13: =INDEX(KantoorGepland[],MATCH(INDEX(KantoorVerschillen[],ROW()-ROW(KantoorVerschillen[[#Headers],[Mrt]]),1),INDEX(KantoorGepland[],,1),0),MATCH(KantoorVerschillen[[#Headers],[Mrt]],KantoorGepland[#Headers],0))-INDEX(KantoorWerkelijk[],MATCH(INDEX(KantoorVerschillen[],ROW()-ROW(KantoorVerschillen[[#Headers],[Mrt]]),1),INDEX(KantoorGepland[],,1),0),MATCH(KantoorVerschillen[[#Headers],[Mrt]],KantoorWerkelijk[#Headers],0)) -> € 32.00 | F13: =INDEX(KantoorGepland[],MATCH(INDEX(KantoorVerschillen[],ROW()-ROW(KantoorVerschillen[[#Headers],[Apr]]),1),INDEX(KantoorGepland[],,1),0),MATCH(KantoorVerschillen[[#Headers],[Apr]],KantoorGepland[#Headers],0))-INDEX(KantoorWerkelijk[],MATCH(INDEX(KantoorVerschillen[],ROW()-ROW(KantoorVerschillen[[#Headers],[Apr]]),1),INDEX(KantoorGepland[],,1),0),MATCH(KantoorVerschillen[[#Headers],[Apr]],KantoorWerkelijk[#Headers],0)) -> € 1.00 | G13: =INDEX(KantoorGepland[],MATCH(INDEX(KantoorVerschillen[],ROW()-ROW(KantoorVerschillen[[#Headers],[Mei]]),1),INDEX(KantoorGepland[],,1),0),MATCH(KantoorVerschillen[[#Headers],[Mei]],KantoorGepland[#Headers],0))-INDEX(KantoorWerkelijk[],MATCH(INDEX(KantoorVerschillen[],ROW()-ROW(KantoorVerschillen[[#Headers],[Mei]]),1),INDEX(KantoorGepland[],,1),0),MATCH(KantoorVerschillen[[#Headers],[Mei]],KantoorWerkelijk[#Headers],0)) -> € -6.00 | H13: =INDEX(KantoorGepland[],MATCH(INDEX(KantoorVerschillen[],ROW()-ROW(KantoorVerschillen[[#Headers],[Jun]]),1),INDEX(KantoorGepland[],,1),0),MATCH(KantoorVerschillen[[#Headers],[Jun]],KantoorGepland[#Headers],0))-INDEX(KantoorWerkelijk[],MATCH(INDEX(KantoorVerschillen[],ROW()-ROW(KantoorVerschillen[[#Headers],[Jun]]),1),INDEX(KantoorGepland[],,1),0),MATCH(KantoorVerschillen[[#Headers],[Jun]],KantoorWerkelijk[#Headers],0)) -> € 10.00 | I13: =INDEX(KantoorGepland[],MATCH(INDEX(KantoorVerschillen[],ROW()-ROW(KantoorVerschillen[[#Headers],[Jul]]),1),INDEX(KantoorGepland[],,1),0),MATCH(KantoorVerschillen[[#Headers],[Jul]],KantoorGepland[#Headers],0))-INDEX(KantoorWerkelijk[],MATCH(INDEX(KantoorVerschillen[],ROW()-ROW(KantoorVerschillen[[#Headers],[Jul]]),1),INDEX(KantoorGepland[],,1),0),MATCH(KantoorVerschillen[[#Headers],[Jul]],KantoorWerkelijk[#Headers],0)) -> € 300.00 | J13: =INDEX(KantoorGepland[],MATCH(INDEX(KantoorVerschillen[],ROW()-ROW(KantoorVerschillen[[#Headers],[Aug]]),1),INDEX(KantoorGepland[],,1),0),MATCH(KantoorVerschillen[[#Headers],[Aug]],KantoorGepland[#Headers],0))-INDEX(KantoorWerkelijk[],MATCH(INDEX(KantoorVerschillen[],ROW()-ROW(KantoorVerschillen[[#Headers],[Aug]]),1),INDEX(KantoorGepland[],,1),0),MATCH(KantoorVerschillen[[#Headers],[Aug]],KantoorWerkelijk[#Headers],0)) -> € 300.00 | K13: =INDEX(KantoorGepland[],MATCH(INDEX(KantoorVerschillen[],ROW()-ROW(KantoorVerschillen[[#Headers],[Sep]]),1),INDEX(KantoorGepland[],,1),0),MATCH(KantoorVerschillen[[#Headers],[Sep]],KantoorGepland[#Headers],0))-INDEX(KantoorWerkelijk[],MATCH(INDEX(KantoorVerschillen[],ROW()-ROW(KantoorVerschillen[[#Headers],[Sep]]),1),INDEX(KantoorGepland[],,1),0),MATCH(KantoorVerschillen[[#Headers],[Sep]],KantoorWerkelijk[#Headers],0)) -> € 300.00 | L13: =INDEX(KantoorGepland[],MATCH(INDEX(KantoorVerschillen[],ROW()-ROW(KantoorVerschillen[[#Headers],[Okt]]),1),INDEX(KantoorGepland[],,1),0),MATCH(KantoorVerschillen[[#Headers],[Okt]],KantoorGepland[#Headers],0))-INDEX(KantoorWerkelijk[],MATCH(INDEX(KantoorVerschillen[],ROW()-ROW(KantoorVerschillen[[#Headers],[Okt]]),1),INDEX(KantoorGepland[],,1),0),MATCH(KantoorVerschillen[[#Headers],[Okt]],KantoorWerkelijk[#Headers],0)) -> € 300.00 | M13: =INDEX(KantoorGepland[],MATCH(INDEX(KantoorVerschillen[],ROW()-ROW(KantoorVerschillen[[#Headers],[Nov]]),1),INDEX(KantoorGepland[],,1),0),MATCH(KantoorVerschillen[[#Headers],[Nov]],KantoorGepland[#Headers],0))-INDEX(KantoorWerkelijk[],MATCH(INDEX(KantoorVerschillen[],ROW()-ROW(KantoorVerschillen[[#Headers],[Nov]]),1),INDEX(KantoorGepland[],,1),0),MATCH(KantoorVerschillen[[#Headers],[Nov]],KantoorWerkelijk[#Headers],0)) -> € 300.00 | N13: =INDEX(KantoorGepland[],MATCH(INDEX(KantoorVerschillen[],ROW()-ROW(KantoorVerschillen[[#Headers],[Dec]]),1),INDEX(KantoorGepland[],,1),0),MATCH(KantoorVerschillen[[#Headers],[Dec]],KantoorGepland[#Headers],0))-INDEX(KantoorWerkelijk[],MATCH(INDEX(KantoorVerschillen[],ROW()-ROW(KantoorVerschillen[[#Headers],[Dec]]),1),INDEX(KantoorGepland[],,1),0),MATCH(KantoorVerschillen[[#Headers],[Dec]],KantoorWerkelijk[#Headers],0)) -> € 300.00 | O13: =SUM(KantoorVerschillen[[#This Row],[Jan]:[Dec]]) -> € 1,871.00
B14: Water | C14: =INDEX(KantoorGepland[],MATCH(INDEX(KantoorVerschillen[],ROW()-ROW(KantoorVerschillen[[#Headers],[Jan]]),1),INDEX(KantoorGepland[],,1),0),MATCH(KantoorVerschillen[[#Headers],[Jan]],KantoorGepland[#Headers],0))-INDEX(KantoorWerkelijk[],MATCH(INDEX(KantoorVerschillen[],ROW()-ROW(KantoorVerschillen[[#Headers],[Jan]]),1),INDEX(KantoorGepland[],,1),0),MATCH(KantoorVerschillen[[#Headers],[Jan]],KantoorWerkelijk[#Headers],0)) -> € 5.00 | D14: =INDEX(KantoorGepland[],MATCH(INDEX(KantoorVerschillen[],ROW()-ROW(KantoorVerschillen[[#Headers],[Feb]]),1),INDEX(KantoorGepland[],,1),0),MATCH(KantoorVerschillen[[#Headers],[Feb]],KantoorGepland[#Headers],0))-INDEX(KantoorWerkelijk[],MATCH(INDEX(KantoorVerschillen[],ROW()-ROW(KantoorVerschillen[[#Headers],[Feb]]),1),INDEX(KantoorGepland[],,1),0),MATCH(KantoorVerschillen[[#Headers],[Feb]],KantoorWerkelijk[#Headers],0)) -> € 7.00 | E14: =INDEX(KantoorGepland[],MATCH(INDEX(KantoorVerschillen[],ROW()-ROW(KantoorVerschillen[[#Headers],[Mrt]]),1),INDEX(KantoorGepland[],,1),0),MATCH(KantoorVerschillen[[#Headers],[Mrt]],KantoorGepland[#Headers],0))-INDEX(KantoorWerkelijk[],MATCH(INDEX(KantoorVerschillen[],ROW()-ROW(KantoorVerschillen[[#Headers],[Mrt]]),1),INDEX(KantoorGepland[],,1),0),MATCH(KantoorVerschillen[[#Headers],[Mrt]],KantoorWerkelijk[#Headers],0)) -> € 6.00 | F14: =INDEX(KantoorGepland[],MATCH(INDEX(KantoorVerschillen[],ROW()-ROW(KantoorVerschillen[[#Headers],[Apr]]),1),INDEX(KantoorGepland[],,1),0),MATCH(KantoorVerschillen[[#Headers],[Apr]],KantoorGepland[#Headers],0))-INDEX(KantoorWerkelijk[],MATCH(INDEX(KantoorVerschillen[],ROW()-ROW(KantoorVerschillen[[#Headers],[Apr]]),1),INDEX(KantoorGepland[],,1),0),MATCH(KantoorVerschillen[[#Headers],[Apr]],KantoorWerkelijk[#Headers],0)) -> € 4.00 | G14: =INDEX(KantoorGepland[],MATCH(INDEX(KantoorVerschillen[],ROW()-ROW(KantoorVerschillen[[#Headers],[Mei]]),1),INDEX(KantoorGepland[],,1),0),MATCH(KantoorVerschillen[[#Headers],[Mei]],KantoorGepland[#Headers],0))-INDEX(KantoorWerkelijk[],MATCH(INDEX(KantoorVerschillen[],ROW()-ROW(KantoorVerschillen[[#Headers],[Mei]]),1),INDEX(KantoorGepland[],,1),0),MATCH(KantoorVerschillen[[#Headers],[Mei]],KantoorWerkelijk[#Headers],0)) -> € 6.00 | H14: =INDEX(KantoorGepland[],MATCH(INDEX(KantoorVerschillen[],ROW()-ROW(KantoorVerschillen[[#Headers],[Jun]]),1),INDEX(KantoorGepland[],,1),0),MATCH(KantoorVerschillen[[#Headers],[Jun]],KantoorGepland[#Headers],0))-INDEX(KantoorWerkelijk[],MATCH(INDEX(KantoorVerschillen[],ROW()-ROW(KantoorVerschillen[[#Headers],[Jun]]),1),INDEX(KantoorGepland[],,1),0),MATCH(KantoorVerschillen[[#Headers],[Jun]],KantoorWerkelijk[#Headers],0)) -> € 4.00 | I14: =INDEX(KantoorGepland[],MATCH(INDEX(KantoorVerschillen[],ROW()-ROW(KantoorVerschillen[[#Headers],[Jul]]),1),INDEX(KantoorGepland[],,1),0),MATCH(KantoorVerschillen[[#Headers],[Jul]],KantoorGepland[#Headers],0))-INDEX(KantoorWerkelijk[],MATCH(INDEX(KantoorVerschillen[],ROW()-ROW(KantoorVerschillen[[#Headers],[Jul]]),1),INDEX(KantoorGepland[],,1),0),MATCH(KantoorVerschillen[[#Headers],[Jul]],KantoorWerkelijk[#Headers],0)) -> € 40.00 | J14: =INDEX(KantoorGepland[],MATCH(INDEX(KantoorVerschillen[],ROW()-ROW(KantoorVerschillen[[#Headers],[Aug]]),1),INDEX(KantoorGepland[],,1),0),MATCH(KantoorVerschillen[[#Headers],[Aug]],KantoorGepland[#Headers],0))-INDEX(KantoorWerkelijk[],MATCH(INDEX(KantoorVerschillen[],ROW()-ROW(KantoorVerschillen[[#Headers],[Aug]]),1),INDEX(KantoorGepland[],,1),0),MATCH(KantoorVerschillen[[#Headers],[Aug]],KantoorWerkelijk[#Headers],0)) -> € 40.00 | K14: =INDEX(KantoorGepland[],MATCH(INDEX(KantoorVerschillen[],ROW()-ROW(KantoorVerschillen[[#Headers],[Sep]]),1),INDEX(KantoorGepland[],,1),0),MATCH(KantoorVerschillen[[#Headers],[Sep]],KantoorGepland[#Headers],0))-INDEX(KantoorWerkelijk[],MATCH(INDEX(KantoorVerschillen[],ROW()-ROW(KantoorVerschillen[[#Headers],[Sep]]),1),INDEX(KantoorGepland[],,1),0),MATCH(KantoorVerschillen[[#Headers],[Sep]],KantoorWerkelijk[#Headers],0)) -> € 40.00 | L14: =INDEX(KantoorGepland[],MATCH(INDEX(KantoorVerschillen[],ROW()-ROW(KantoorVerschillen[[#Headers],[Okt]]),1),INDEX(KantoorGepland[],,1),0),MATCH(KantoorVerschillen[[#Headers],[Okt]],KantoorGepland[#Headers],0))-INDEX(KantoorWerkelijk[],MATCH(INDEX(KantoorVerschillen[],ROW()-ROW(KantoorVerschillen[[#Headers],[Okt]]),1),INDEX(KantoorGepland[],,1),0),MATCH(KantoorVerschillen[[#Headers],[Okt]],KantoorWerkelijk[#Headers],0)) -> € 40.00 | M14: =INDEX(KantoorGepland[],MATCH(INDEX(KantoorVerschillen[],ROW()-ROW(KantoorVerschillen[[#Headers],[Nov]]),1),INDEX(KantoorGepland[],,1),0),MATCH(KantoorVerschillen[[#Headers],[Nov]],KantoorGepland[#Headers],0))-INDEX(KantoorWerkelijk[],MATCH(INDEX(KantoorVerschillen[],ROW()-ROW(KantoorVerschillen[[#Headers],[Nov]]),1),INDEX(KantoorGepland[],,1),0),MATCH(KantoorVerschillen[[#Headers],[Nov]],KantoorWerkelijk[#Headers],0)) -> € 40.00 | N14: =INDEX(KantoorGepland[],MATCH(INDEX(KantoorVerschillen[],ROW()-ROW(KantoorVerschillen[[#Headers],[Dec]]),1),INDEX(KantoorGepland[],,1),0),MATCH(KantoorVerschillen[[#Headers],[Dec]],KantoorGepland[#Headers],0))-INDEX(KantoorWerkelijk[],MATCH(INDEX(KantoorVerschillen[],ROW()-ROW(KantoorVerschillen[[#Headers],[Dec]]),1),INDEX(KantoorGepland[],,1),0),MATCH(KantoorVerschillen[[#Headers],[Dec]],KantoorWerkelijk[#Headers],0)) -> € 40.00 | O14: =SUM(KantoorVerschillen[[#This Row],[Jan]:[Dec]]) -> € 272.00
B15: Telefoon | C15: =INDEX(KantoorGepland[],MATCH(INDEX(KantoorVerschillen[],ROW()-ROW(KantoorVerschillen[[#Headers],[Jan]]),1),INDEX(KantoorGepland[],,1),0),MATCH(KantoorVerschillen[[#Headers],[Jan]],KantoorGepland[#Headers],0))-INDEX(KantoorWerkelijk[],MATCH(INDEX(KantoorVerschillen[],ROW()-ROW(KantoorVerschillen[[#Headers],[Jan]]),1),INDEX(KantoorGepland[],,1),0),MATCH(KantoorVerschillen[[#Headers],[Jan]],KantoorWerkelijk[#Headers],0)) -> € 26.00 | D15: =INDEX(KantoorGepland[],MATCH(INDEX(KantoorVerschillen[],ROW()-ROW(KantoorVerschillen[[#Headers],[Feb]]),1),INDEX(KantoorGepland[],,1),0),MATCH(KantoorVerschillen[[#Headers],[Feb]],KantoorGepland[#Headers],0))-INDEX(KantoorWerkelijk[],MATCH(INDEX(KantoorVerschillen[],ROW()-ROW(KantoorVerschillen[[#Headers],[Feb]]),1),INDEX(KantoorGepland[],,1),0),MATCH(KantoorVerschillen[[#Headers],[Feb]],KantoorWerkelijk[#Headers],0)) -> € 15.00 | E15: =INDEX(KantoorGepland[],MATCH(INDEX(KantoorVerschillen[],ROW()-ROW(KantoorVerschillen[[#Headers],[Mrt]]),1),INDEX(KantoorGepland[],,1),0),MATCH(KantoorVerschillen[[#Headers],[Mrt]],KantoorGepland[#Headers],0))-INDEX(KantoorWerkelijk[],MATCH(INDEX(KantoorVerschillen[],ROW()-ROW(KantoorVerschillen[[#Headers],[Mrt]]),1),INDEX(KantoorGepland[],,1),0),MATCH(KantoorVerschillen[[#Headers],[Mrt]],KantoorWerkelijk[#Headers],0)) -> € -15.00 | F15: =INDEX(KantoorGepland[],MATCH(INDEX(KantoorVerschillen[],ROW()-ROW(KantoorVerschillen[[#Headers],[Apr]]),1),INDEX(KantoorGepland[],,1),0),MATCH(KantoorVerschillen[[#Headers],[Apr]],KantoorGepland[#Headers],0))-INDEX(KantoorWerkelijk[],MATCH(INDEX(KantoorVerschillen[],ROW()-ROW(KantoorVerschillen[[#Headers],[Apr]]),1),INDEX(KantoorGepland[],,1),0),MATCH(KantoorVerschillen[[#Headers],[Apr]],KantoorWerkelijk[#Headers],0)) -> € 5.00 | G15: =INDEX(KantoorGepland[],MATCH(INDEX(KantoorVerschillen[],ROW()-ROW(KantoorVerschillen[[#Headers],[Mei]]),1),INDEX(KantoorGepland[],,1),0),MATCH(KantoorVerschillen[[#Headers],[Mei]],KantoorGepland[#Headers],0))-INDEX(KantoorWerkelijk[],MATCH(INDEX(KantoorVerschillen[],ROW()-ROW(KantoorVerschillen[[#Headers],[Mei]]),1),INDEX(KantoorGepland[],,1),0),MATCH(KantoorVerschillen[[#Headers],[Mei]],KantoorWerkelijk[#Headers],0)) -> € 5.00 | H15: =INDEX(KantoorGepland[],MATCH(INDEX(KantoorVerschillen[],ROW()-ROW(KantoorVerschillen[[#Headers],[Jun]]),1),INDEX(KantoorGepland[],,1),0),MATCH(KantoorVerschillen[[#Headers],[Jun]],KantoorGepland[#Headers],0))-INDEX(KantoorWerkelijk[],MATCH(INDEX(KantoorVerschillen[],ROW()-ROW(KantoorVerschillen[[#Headers],[Jun]]),1),INDEX(KantoorGepland[],,1),0),MATCH(KantoorVerschillen[[#Headers],[Jun]],KantoorWerkelijk[#Headers],0)) -> € 30.00 | I15: =INDEX(KantoorGepland[],MATCH(INDEX(KantoorVerschillen[],ROW()-ROW(KantoorVerschillen[[#Headers],[Jul]]),1),INDEX(KantoorGepland[],,1),0),MATCH(KantoorVerschillen[[#Headers],[Jul]],KantoorGepland[#Headers],0))-INDEX(KantoorWerkelijk[],MATCH(INDEX(KantoorVerschillen[],ROW()-ROW(KantoorVerschillen[[#Headers],[Jul]]),1),INDEX(KantoorGepland[],,1),0),MATCH(KantoorVerschillen[[#Headers],[Jul]],KantoorWerkelijk[#Headers],0)) -> € 250.00 | J15: =INDEX(KantoorGepland[],MATCH(INDEX(KantoorVerschillen[],ROW()-ROW(KantoorVerschillen[[#Headers],[Aug]]),1),INDEX(KantoorGepland[],,1),0),MATCH(KantoorVerschillen[[#Headers],[Aug]],KantoorGepland[#Headers],0))-INDEX(KantoorWerkelijk[],MATCH(INDEX(KantoorVerschillen[],ROW()-ROW(KantoorVerschillen[[#Headers],[Aug]]),1),INDEX(KantoorGepland[],,1),0),MATCH(KantoorVerschillen[[#Headers],[Aug]],KantoorWerkelijk[#Headers],0)) -> € 250.00 | K15: =INDEX(KantoorGepland[],MATCH(INDEX(KantoorVerschillen[],ROW()-ROW(KantoorVerschillen[[#Headers],[Sep]]),1),INDEX(KantoorGepland[],,1),0),MATCH(KantoorVerschillen[[#Headers],[Sep]],KantoorGepland[#Headers],0))-INDEX(KantoorWerkelijk[],MATCH(INDEX(KantoorVerschillen[],ROW()-ROW(KantoorVerschillen[[#Headers],[Sep]]),1),INDEX(KantoorGepland[],,1),0),MATCH(KantoorVerschillen[[#Headers],[Sep]],KantoorWerkelijk[#Headers],0)) -> € 250.00 | L15: =INDEX(KantoorGepland[],MATCH(INDEX(KantoorVerschillen[],ROW()-ROW(KantoorVerschillen[[#Headers],[Okt]]),1),INDEX(KantoorGepland[],,1),0),MATCH(KantoorVerschillen[[#Headers],[Okt]],KantoorGepland[#Headers],0))-INDEX(KantoorWerkelijk[],MATCH(INDEX(KantoorVerschillen[],ROW()-ROW(KantoorVerschillen[[#Headers],[Okt]]),1),INDEX(KantoorGepland[],,1),0),MATCH(KantoorVerschillen[[#Headers],[Okt]],KantoorWerkelijk[#Headers],0)) -> € 250.00 | M15: =INDEX(KantoorGepland[],MATCH(INDEX(KantoorVerschillen[],ROW()-ROW(KantoorVerschillen[[#Headers],[Nov]]),1),INDEX(KantoorGepland[],,1),0),MATCH(KantoorVerschillen[[#Headers],[Nov]],KantoorGepland[#Headers],0))-INDEX(KantoorWerkelijk[],MATCH(INDEX(KantoorVerschillen[],ROW()-ROW(KantoorVerschillen[[#Headers],[Nov]]),1),INDEX(KantoorGepland[],,1),0),MATCH(KantoorVerschillen[[#Headers],[Nov]],KantoorWerkelijk[#Headers],0)) -> € 250.00 | N15: =INDEX(KantoorGepland[],MATCH(INDEX(KantoorVerschillen[],ROW()-ROW(KantoorVerschillen[[#Headers],[Dec]]),1),INDEX(KantoorGepland[],,1),0),MATCH(KantoorVerschillen[[#Headers],[Dec]],KantoorGepland[#Headers],0))-INDEX(KantoorWerkelijk[],MATCH(INDEX(KantoorVerschillen[],ROW()-ROW(KantoorVerschillen[[#Headers],[Dec]]),1),INDEX(KantoorGepland[],,1),0),MATCH(KantoorVerschillen[[#Headers],[Dec]],KantoorWerkelijk[#Headers],0)) -> € 250.00 | O15: =SUM(KantoorVerschillen[[#This Row],[Jan]:[Dec]]) -> € 1,566.00
B16: Internettoegang | C16: =INDEX(KantoorGepland[],MATCH(INDEX(KantoorVerschillen[],ROW()-ROW(KantoorVerschillen[[#Headers],[Jan]]),1),INDEX(KantoorGepland[],,1),0),MATCH(KantoorVerschillen[[#Headers],[Jan]],KantoorGepland[#Headers],0))-INDEX(KantoorWerkelijk[],MATCH(INDEX(KantoorVerschillen[],ROW()-ROW(KantoorVerschillen[[#Headers],[Jan]]),1),INDEX(KantoorGepland[],,1),0),MATCH(KantoorVerschillen[[#Headers],[Jan]],KantoorWerkelijk[#Headers],0)) -> € 0.00 | D16: =INDEX(KantoorGepland[],MATCH(INDEX(KantoorVerschillen[],ROW()-ROW(KantoorVerschillen[[#Headers],[Feb]]),1),INDEX(KantoorGepland[],,1),0),MATCH(KantoorVerschillen[[#Headers],[Feb]],KantoorGepland[#Headers],0))-INDEX(KantoorWerkelijk[],MATCH(INDEX(KantoorVerschillen[],ROW()-ROW(KantoorVerschillen[[#Headers],[Feb]]),1),INDEX(KantoorGepland[],,1),0),MATCH(KantoorVerschillen[[#Headers],[Feb]],KantoorWerkelijk[#Headers],0)) -> € 0.00 | E16: =INDEX(KantoorGepland[],MATCH(INDEX(KantoorVerschillen[],ROW()-ROW(KantoorVerschillen[[#Headers],[Mrt]]),1),INDEX(KantoorGepland[],,1),0),MATCH(KantoorVerschillen[[#Headers],[Mrt]],KantoorGepland[#Headers],0))-INDEX(KantoorWerkelijk[],MATCH(INDEX(KantoorVerschillen[],ROW()-ROW(KantoorVerschillen[[#Headers],[Mrt]]),1),INDEX(KantoorGepland[],,1),0),MATCH(KantoorVerschillen[[#Headers],[Mrt]],KantoorWerkelijk[#Headers],0)) -> € 0.00 | F16: =INDEX(KantoorGepland[],MATCH(INDEX(KantoorVerschillen[],ROW()-ROW(KantoorVerschillen[[#Headers],[Apr]]),1),INDEX(KantoorGepland[],,1),0),MATCH(KantoorVerschillen[[#Headers],[Apr]],KantoorGepland[#Headers],0))-INDEX(KantoorWerkelijk[],MATCH(INDEX(KantoorVerschillen[],ROW()-ROW(KantoorVerschillen[[#Headers],[Apr]]),1),INDEX(KantoorGepland[],,1),0),MATCH(KantoorVerschillen[[#Headers],[Apr]],KantoorWerkelijk[#Headers],0)) -> € 0.00 | G16: =INDEX(KantoorGepland[],MATCH(INDEX(KantoorVerschillen[],ROW()-ROW(KantoorVerschillen[[#Headers],[Mei]]),1),INDEX(KantoorGepland[],,1),0),MATCH(KantoorVerschillen[[#Headers],[Mei]],KantoorGepland[#Headers],0))-INDEX(KantoorWerkelijk[],MATCH(INDEX(KantoorVerschillen[],ROW()-ROW(KantoorVerschillen[[#Headers],[Mei]]),1),INDEX(KantoorGepland[],,1),0),MATCH(KantoorVerschillen[[#Headers],[Mei]],KantoorWerkelijk[#Headers],0)) -> € 0.00 | H16: =INDEX(KantoorGepland[],MATCH(INDEX(KantoorVerschillen[],ROW()-ROW(KantoorVerschillen[[#Headers],[Jun]]),1),INDEX(KantoorGepland[],,1),0),MATCH(KantoorVerschillen[[#Headers],[Jun]],KantoorGepland[#Headers],0))-INDEX(KantoorWerkelijk[],MATCH(INDEX(KantoorVerschillen[],ROW()-ROW(KantoorVerschillen[[#Headers],[Jun]]),1),INDEX(KantoorGepland[],,1),0),MATCH(KantoorVerschillen[[#Headers],[Jun]],KantoorWerkelijk[#Headers],0)) -> € 0.00 | I16: =INDEX(KantoorGepland[],MATCH(INDEX(KantoorVerschillen[],ROW()-ROW(KantoorVerschillen[[#Headers],[Jul]]),1),INDEX(KantoorGepland[],,1),0),MATCH(KantoorVerschillen[[#Headers],[Jul]],KantoorGepland[#Headers],0))-INDEX(KantoorWerkelijk[],MATCH(INDEX(KantoorVerschillen[],ROW()-ROW(KantoorVerschillen[[#Headers],[Jul]]),1),INDEX(KantoorGepland[],,1),0),MATCH(KantoorVerschillen[[#Headers],[Jul]],KantoorWerkelijk[#Headers],0)) -> € 180.00 | J16: =INDEX(KantoorGepland[],MATCH(INDEX(KantoorVerschillen[],ROW()-ROW(KantoorVerschillen[[#Headers],[Aug]]),1),INDEX(KantoorGepland[],,1),0),MATCH(KantoorVerschillen[[#Headers],[Aug]],KantoorGepland[#Headers],0))-INDEX(KantoorWerkelijk[],MATCH(INDEX(KantoorVerschillen[],ROW()-ROW(KantoorVerschillen[[#Headers],[Aug]]),1),INDEX(KantoorGepland[],,1),0),MATCH(KantoorVerschillen[[#Headers],[Aug]],KantoorWerkelijk[#Headers],0)) -> € 180.00 | K16: =INDEX(KantoorGepland[],MATCH(INDEX(KantoorVerschillen[],ROW()-ROW(KantoorVerschillen[[#Headers],[Sep]]),1),INDEX(KantoorGepland[],,1),0),MATCH(KantoorVerschillen[[#Headers],[Sep]],KantoorGepland[#Headers],0))-INDEX(KantoorWerkelijk[],MATCH(INDEX(KantoorVerschillen[],ROW()-ROW(KantoorVerschillen[[#Headers],[Sep]]),1),INDEX(KantoorGepland[],,1),0),MATCH(KantoorVerschillen[[#Headers],[Sep]],KantoorWerkelijk[#Headers],0)) -> € 180.00 | L16: =INDEX(KantoorGepland[],MATCH(INDEX(KantoorVerschillen[],ROW()-ROW(KantoorVerschillen[[#Headers],[Okt]]),1),INDEX(KantoorGepland[],,1),0),MATCH(KantoorVerschillen[[#Headers],[Okt]],KantoorGepland[#Headers],0))-INDEX(KantoorWerkelijk[],MATCH(INDEX(KantoorVerschillen[],ROW()-ROW(KantoorVerschillen[[#Headers],[Okt]]),1),INDEX(KantoorGepland[],,1),0),MATCH(KantoorVerschillen[[#Headers],[Okt]],KantoorWerkelijk[#Headers],0)) -> € 180.00 | M16: =INDEX(KantoorGepland[],MATCH(INDEX(KantoorVerschillen[],ROW()-ROW(KantoorVerschillen[[#Headers],[Nov]]),1),INDEX(KantoorGepland[],,1),0),MATCH(KantoorVerschillen[[#Headers],[Nov]],KantoorGepland[#Headers],0))-INDEX(KantoorWerkelijk[],MATCH(INDEX(KantoorVerschillen[],ROW()-ROW(KantoorVerschillen[[#Headers],[Nov]]),1),INDEX(KantoorGepland[],,1),0),MATCH(KantoorVerschillen[[#Headers],[Nov]],KantoorWerkelijk[#Headers],0)) -> € 180.00 | N16: =INDEX(KantoorGepland[],MATCH(INDEX(KantoorVerschillen[],ROW()-ROW(KantoorVerschillen[[#Headers],[Dec]]),1),INDEX(KantoorGepland[],,1),0),MATCH(KantoorVerschillen[[#Headers],[Dec]],KantoorGepland[#Headers],0))-INDEX(KantoorWerkelijk[],MATCH(INDEX(KantoorVerschillen[],ROW()-ROW(KantoorVerschillen[[#Headers],[Dec]]),1),INDEX(KantoorGepland[],,1),0),MATCH(KantoorVerschillen[[#Headers],[Dec]],KantoorWerkelijk[#Headers],0)) -> € 180.00 | O16: =SUM(KantoorVerschillen[[#This Row],[Jan]:[Dec]]) -> € 1,080.00
B17: Kantoorbenodigdheden | C17: =INDEX(KantoorGepland[],MATCH(INDEX(KantoorVerschillen[],ROW()-ROW(KantoorVerschillen[[#Headers],[Jan]]),1),INDEX(KantoorGepland[],,1),0),MATCH(KantoorVerschillen[[#Headers],[Jan]],KantoorGepland[#Headers],0))-INDEX(KantoorWerkelijk[],MATCH(INDEX(KantoorVerschillen[],ROW()-ROW(KantoorVerschillen[[#Headers],[Jan]]),1),INDEX(KantoorGepland[],,1),0),MATCH(KantoorVerschillen[[#Headers],[Jan]],KantoorWerkelijk[#Headers],0)) -> € -56.00 | D17: =INDEX(KantoorGepland[],MATCH(INDEX(KantoorVerschillen[],ROW()-ROW(KantoorVerschillen[[#Headers],[Feb]]),1),INDEX(KantoorGepland[],,1),0),MATCH(KantoorVerschillen[[#Headers],[Feb]],KantoorGepland[#Headers],0))-INDEX(KantoorWerkelijk[],MATCH(INDEX(KantoorVerschillen[],ROW()-ROW(KantoorVerschillen[[#Headers],[Feb]]),1),INDEX(KantoorGepland[],,1),0),MATCH(KantoorVerschillen[[#Headers],[Feb]],KantoorWerkelijk[#Headers],0)) -> € 58.00 | E17: =INDEX(KantoorGepland[],MATCH(INDEX(KantoorVerschillen[],ROW()-ROW(KantoorVerschillen[[#Headers],[Mrt]]),1),INDEX(KantoorGepland[],,1),0),MATCH(KantoorVerschillen[[#Headers],[Mrt]],KantoorGepland[#Headers],0))-INDEX(KantoorWerkelijk[],MATCH(INDEX(KantoorVerschillen[],ROW()-ROW(KantoorVerschillen[[#Headers],[Mrt]]),1),INDEX(KantoorGepland[],,1),0),MATCH(KantoorVerschillen[[#Headers],[Mrt]],KantoorWerkelijk[#Headers],0)) -> € 40.00 | F17: =INDEX(KantoorGepland[],MATCH(INDEX(KantoorVerschillen[],ROW()-ROW(KantoorVerschillen[[#Headers],[Apr]]),1),INDEX(KantoorGepland[],,1),0),MATCH(KantoorVerschillen[[#Headers],[Apr]],KantoorGepland[#Headers],0))-INDEX(KantoorWerkelijk[],MATCH(INDEX(KantoorVerschillen[],ROW()-ROW(KantoorVerschillen[[#Headers],[Apr]]),1),INDEX(KantoorGepland[],,1),0),MATCH(KantoorVerschillen[[#Headers],[Apr]],KantoorWerkelijk[#Headers],0)) -> € -21.00 | G17: =INDEX(KantoorGepland[],MATCH(INDEX(KantoorVerschillen[],ROW()-ROW(KantoorVerschillen[[#Headers],[Mei]]),1),INDEX(KantoorGepland[],,1),0),MATCH(KantoorVerschillen[[#Headers],[Mei]],KantoorGepland[#Headers],0))-INDEX(KantoorWerkelijk[],MATCH(INDEX(KantoorVerschillen[],ROW()-ROW(KantoorVerschillen[[#Headers],[Mei]]),1),INDEX(KantoorGepland[],,1),0),MATCH(KantoorVerschillen[[#Headers],[Mei]],KantoorWerkelijk[#Headers],0)) -> € -56.00 | H17: =INDEX(KantoorGepland[],MATCH(INDEX(KantoorVerschillen[],ROW()-ROW(KantoorVerschillen[[#Headers],[Jun]]),1),INDEX(KantoorGepland[],,1),0),MATCH(KantoorVerschillen[[#Headers],[Jun]],KantoorGepland[#Headers],0))-INDEX(KantoorWerkelijk[],MATCH(INDEX(KantoorVerschillen[],ROW()-ROW(KantoorVerschillen[[#Headers],[Jun]]),1),INDEX(KantoorGepland[],,1),0),MATCH(KantoorVerschillen[[#Headers],[Jun]],KantoorWerkelijk[#Headers],0)) -> € -40.00 | I17: =INDEX(KantoorGepland[],MATCH(INDEX(KantoorVerschillen[],ROW()-ROW(KantoorVerschillen[[#Headers],[Jul]]),1),INDEX(KantoorGepland[],,1),0),MATCH(KantoorVerschillen[[#Headers],[Jul]],KantoorGepland[#Headers],0))-INDEX(KantoorWerkelijk[],MATCH(INDEX(KantoorVerschillen[],ROW()-ROW(KantoorVerschillen[[#Headers],[Jul]]),1),INDEX(KantoorGepland[],,1),0),MATCH(KantoorVerschillen[[#Headers],[Jul]],KantoorWerkelijk[#Headers],0)) -> € 200.00 | J17: =INDEX(KantoorGepland[],MATCH(INDEX(KantoorVerschillen[],ROW()-ROW(KantoorVerschillen[[#Headers],[Aug]]),1),INDEX(KantoorGepland[],,1),0),MATCH(KantoorVerschillen[[#Headers],[Aug]],KantoorGepland[#Headers],0))-INDEX(KantoorWerkelijk[],MATCH(INDEX(KantoorVerschillen[],ROW()-ROW(KantoorVerschillen[[#Headers],[Aug]]),1),INDEX(KantoorGepland[],,1),0),MATCH(KantoorVerschillen[[#Headers],[Aug]],KantoorWerkelijk[#Headers],0)) -> € 200.00 | K17: =INDEX(KantoorGepland[],MATCH(INDEX(KantoorVerschillen[],ROW()-ROW(KantoorVerschillen[[#Headers],[Sep]]),1),INDEX(KantoorGepland[],,1),0),MATCH(KantoorVerschillen[[#Headers],[Sep]],KantoorGepland[#Headers],0))-INDEX(KantoorWerkelijk[],MATCH(INDEX(KantoorVerschillen[],ROW()-ROW(KantoorVerschillen[[#Headers],[Sep]]),1),INDEX(KantoorGepland[],,1),0),MATCH(KantoorVerschillen[[#Headers],[Sep]],KantoorWerkelijk[#Headers],0)) -> € 200.00 | L17: =INDEX(KantoorGepland[],MATCH(INDEX(KantoorVerschillen[],ROW()-ROW(KantoorVerschillen[[#Headers],[Okt]]),1),INDEX(KantoorGepland[],,1),0),MATCH(KantoorVerschillen[[#Headers],[Okt]],KantoorGepland[#Headers],0))-INDEX(KantoorWerkelijk[],MATCH(INDEX(KantoorVerschillen[],ROW()-ROW(KantoorVerschillen[[#Headers],[Okt]]),1),INDEX(KantoorGepland[],,1),0),MATCH(KantoorVerschillen[[#Headers],[Okt]],KantoorWerkelijk[#Headers],0)) -> € 200.00 | M17: =INDEX(KantoorGepland[],MATCH(INDEX(KantoorVerschillen[],ROW()-ROW(KantoorVerschillen[[#Headers],[Nov]]),1),INDEX(KantoorGepland[],,1),0),MATCH(KantoorVerschillen[[#Headers],[Nov]],KantoorGepland[#Headers],0))-INDEX(KantoorWerkelijk[],MATCH(INDEX(KantoorVerschillen[],ROW()-ROW(KantoorVerschillen[[#Headers],[Nov]]),1),INDEX(KantoorGepland[],,1),0),MATCH(KantoorVerschillen[[#Headers],[Nov]],KantoorWerkelijk[#Headers],0)) -> € 200.00 | N17: =INDEX(KantoorGepland[],MATCH(INDEX(KantoorVerschillen[],ROW()-ROW(KantoorVerschillen[[#Headers],[Dec]]),1),INDEX(KantoorGepland[],,1),0),MATCH(KantoorVerschillen[[#Headers],[Dec]],KantoorGepland[#Headers],0))-INDEX(KantoorWerkelijk[],MATCH(INDEX(KantoorVerschillen[],ROW()-ROW(KantoorVerschillen[[#Headers],[Dec]]),1),INDEX(KantoorGepland[],,1),0),MATCH(KantoorVerschillen[[#Headers],[Dec]],KantoorWerkelijk[#Headers],0)) -> € 200.00 | O17: =SUM(KantoorVerschillen[[#This Row],[Jan]:[Dec]]) -> € 1,125.00
B18: Beveiliging | C18: =INDEX(KantoorGepland[],MATCH(INDEX(KantoorVerschillen[],ROW()-ROW(KantoorVerschillen[[#Headers],[Jan]]),1),INDEX(KantoorGepland[],,1),0),MATCH(KantoorVerschillen[[#Headers],[Jan]],KantoorGepland[#Headers],0))-INDEX(KantoorWerkelijk[],MATCH(INDEX(KantoorVerschillen[],ROW()-ROW(KantoorVerschillen[[#Headers],[Jan]]),1),INDEX(KantoorGepland[],,1),0),MATCH(KantoorVerschillen[[#Headers],[Jan]],KantoorWerkelijk[#Headers],0)) -> € 0.00 | D18: =INDEX(KantoorGepland[],MATCH(INDEX(KantoorVerschillen[],ROW()-ROW(KantoorVerschillen[[#Headers],[Feb]]),1),INDEX(KantoorGepland[],,1),0),MATCH(KantoorVerschillen[[#Headers],[Feb]],KantoorGepland[#Headers],0))-INDEX(KantoorWerkelijk[],MATCH(INDEX(KantoorVerschillen[],ROW()-ROW(KantoorVerschillen[[#Headers],[Feb]]),1),INDEX(KantoorGepland[],,1),0),MATCH(KantoorVerschillen[[#Headers],[Feb]],KantoorWerkelijk[#Headers],0)) -> € 0.00 | E18: =INDEX(KantoorGepland[],MATCH(INDEX(KantoorVerschillen[],ROW()-ROW(KantoorVerschillen[[#Headers],[Mrt]]),1),INDEX(KantoorGepland[],,1),0),MATCH(KantoorVerschillen[[#Headers],[Mrt]],KantoorGepland[#Headers],0))-INDEX(KantoorWerkelijk[],MATCH(INDEX(KantoorVerschillen[],ROW()-ROW(KantoorVerschillen[[#Headers],[Mrt]]),1),INDEX(KantoorGepland[],,1),0),MATCH(KantoorVerschillen[[#Headers],[Mrt]],KantoorWerkelijk[#Headers],0)) -> € 0.00 | F18: =INDEX(KantoorGepland[],MATCH(INDEX(KantoorVerschillen[],ROW()-ROW(KantoorVerschillen[[#Headers],[Apr]]),1),INDEX(KantoorGepland[],,1),0),MATCH(KantoorVerschillen[[#Headers],[Apr]],KantoorGepland[#Headers],0))-INDEX(KantoorWerkelijk[],MATCH(INDEX(KantoorVerschillen[],ROW()-ROW(KantoorVerschillen[[#Headers],[Apr]]),1),INDEX(KantoorGepland[],,1),0),MATCH(KantoorVerschillen[[#Headers],[Apr]],KantoorWerkelijk[#Headers],0)) -> € 0.00 | G18: =INDEX(KantoorGepland[],MATCH(INDEX(KantoorVerschillen[],ROW()-ROW(KantoorVerschillen[[#Headers],[Mei]]),1),INDEX(KantoorGepland[],,1),0),MATCH(KantoorVerschillen[[#Headers],[Mei]],KantoorGepland[#Headers],0))-INDEX(KantoorWerkelijk[],MATCH(INDEX(KantoorVerschillen[],ROW()-ROW(KantoorVerschillen[[#Headers],[Mei]]),1),INDEX(KantoorGepland[],,1),0),MATCH(KantoorVerschillen[[#Headers],[Mei]],KantoorWerkelijk[#Headers],0)) -> € 0.00 | H18: =INDEX(KantoorGepland[],MATCH(INDEX(KantoorVerschillen[],ROW()-ROW(KantoorVerschillen[[#Headers],[Jun]]),1),INDEX(KantoorGepland[],,1),0),MATCH(KantoorVerschillen[[#Headers],[Jun]],KantoorGepland[#Headers],0))-INDEX(KantoorWerkelijk[],MATCH(INDEX(KantoorVerschillen[],ROW()-ROW(KantoorVerschillen[[#Headers],[Jun]]),1),INDEX(KantoorGepland[],,1),0),MATCH(KantoorVerschillen[[#Headers],[Jun]],KantoorWerkelijk[#Headers],0)) -> € 0.00 | I18: =INDEX(KantoorGepland[],MATCH(INDEX(KantoorVerschillen[],ROW()-ROW(KantoorVerschillen[[#Headers],[Jul]]),1),INDEX(KantoorGepland[],,1),0),MATCH(KantoorVerschillen[[#Headers],[Jul]],KantoorGepland[#Headers],0))-INDEX(KantoorWerkelijk[],MATCH(INDEX(KantoorVerschillen[],ROW()-ROW(KantoorVerschillen[[#Headers],[Jul]]),1),INDEX(KantoorGepland[],,1),0),MATCH(KantoorVerschillen[[#Headers],[Jul]],KantoorWerkelijk[#Headers],0)) -> € 600.00 | J18: =INDEX(KantoorGepland[],MATCH(INDEX(KantoorVerschillen[],ROW()-ROW(KantoorVerschillen[[#Headers],[Aug]]),1),INDEX(KantoorGepland[],,1),0),MATCH(KantoorVerschillen[[#Headers],[Aug]],KantoorGepland[#Headers],0))-INDEX(KantoorWerkelijk[],MATCH(INDEX(KantoorVerschillen[],ROW()-ROW(KantoorVerschillen[[#Headers],[Aug]]),1),INDEX(KantoorGepland[],,1),0),MATCH(KantoorVerschillen[[#Headers],[Aug]],KantoorWerkelijk[#Headers],0)) -> € 600.00 | K18: =INDEX(KantoorGepland[],MATCH(INDEX(KantoorVerschillen[],ROW()-ROW(KantoorVerschillen[[#Headers],[Sep]]),1),INDEX(KantoorGepland[],,1),0),MATCH(KantoorVerschillen[[#Headers],[Sep]],KantoorGepland[#Headers],0))-INDEX(KantoorWerkelijk[],MATCH(INDEX(KantoorVerschillen[],ROW()-ROW(KantoorVerschillen[[#Headers],[Sep]]),1),INDEX(KantoorGepland[],,1),0),MATCH(KantoorVerschillen[[#Headers],[Sep]],KantoorWerkelijk[#Headers],0)) -> € 600.00 | L18: =INDEX(KantoorGepland[],MATCH(INDEX(KantoorVerschillen[],ROW()-ROW(KantoorVerschillen[[#Headers],[Okt]]),1),INDEX(KantoorGepland[],,1),0),MATCH(KantoorVerschillen[[#Headers],[Okt]],KantoorGepland[#Headers],0))-INDEX(KantoorWerkelijk[],MATCH(INDEX(KantoorVerschillen[],ROW()-ROW(KantoorVerschillen[[#Headers],[Okt]]),1),INDEX(KantoorGepland[],,1),0),MATCH(KantoorVerschillen[[#Headers],[Okt]],KantoorWerkelijk[#Headers],0)) -> € 600.00 | M18: =INDEX(KantoorGepland[],MATCH(INDEX(KantoorVerschillen[],ROW()-ROW(KantoorVerschillen[[#Headers],[Nov]]),1),INDEX(KantoorGepland[],,1),0),MATCH(KantoorVerschillen[[#Headers],[Nov]],KantoorGepland[#Headers],0))-INDEX(KantoorWerkelijk[],MATCH(INDEX(KantoorVerschillen[],ROW()-ROW(KantoorVerschillen[[#Headers],[Nov]]),1),INDEX(KantoorGepland[],,1),0),MATCH(KantoorVerschillen[[#Headers],[Nov]],KantoorWerkelijk[#Headers],0)) -> € 600.00 | N18: =INDEX(KantoorGepland[],MATCH(INDEX(KantoorVerschillen[],ROW()-ROW(KantoorVerschillen[[#Headers],[Dec]]),1),INDEX(KantoorGepland[],,1),0),MATCH(KantoorVerschillen[[#Headers],[Dec]],KantoorGepland[#Headers],0))-INDEX(KantoorWerkelijk[],MATCH(INDEX(KantoorVerschillen[],ROW()-ROW(KantoorVerschillen[[#Headers],[Dec]]),1),INDEX(KantoorGepland[],,1),0),MATCH(KantoorVerschillen[[#Headers],[Dec]],KantoorWerkelijk[#Headers],0)) -> € 600.00 | O18: =SUM(KantoorVerschillen[[#This Row],[Jan]:[Dec]]) -> € 3,600.00
B19: Subtotaal | C19: =SUBTOTAL(109,KantoorVerschillen[Jan]) -> € -17.00 | D19: =SUBTOTAL(109,KantoorVerschillen[Feb]) -> € 72.00 | E19: =SUBTOTAL(109,KantoorVerschillen[Mrt]) -> € 78.00 | F19: =SUBTOTAL(109,KantoorVerschillen[Apr]) -> € -141.00 | G19: =SUBTOTAL(109,KantoorVerschillen[Mei]) -> € -38.00 | H19: =SUBTOTAL(109,KantoorVerschillen[Jun]) -> € 16.00 | I19: =SUBTOTAL(109,KantoorVerschillen[Jul]) -> € 11,470.00 | J19: =SUBTOTAL(109,KantoorVerschillen[Aug]) -> € 11,470.00 | K19: =SUBTOTAL(109,KantoorVerschillen[Sep]) -> € 11,470.00 | L19: =SUBTOTAL(109,KantoorVerschillen[Okt]) -> € 11,470.00 | M19: =SUBTOTAL(109,KantoorVerschillen[Nov]) -> € 11,770.00 | N19: =SUBTOTAL(109,KantoorVerschillen[Dec]) -> € 11,770.00 | O19: =SUBTOTAL(109,KantoorVerschillen[JAAR]) -> € 69,390.00
A21: Het verschil in marketingkosten wordt automatisch berekend in de tabel MarketingVerschillen die in de cel rechts begint. De volgende aanwijzing staat in cel A30. | B21: Marketingkosten | C21: Jan | D21: Feb | E21: Mrt | F21: Apr | G21: Mei | H21: Jun | I21: Jul | J21: Aug | K21: Sep | L21: Okt | M21: Nov | N21: Dec | O21: JAAR
B22: Websitehosting | C22: =INDEX(MarketingGepland[],MATCH(INDEX(MarketingVerschillen[],ROW()-ROW(MarketingVerschillen[[#Headers],[Jan]]),1),INDEX(MarketingGepland[],,1),0),MATCH(MarketingVerschillen[[#Headers],[Jan]],MarketingGepland[#Headers],0))-INDEX(MarketingWerkelijik[],MATCH(INDEX(MarketingVerschillen[],ROW()-ROW(MarketingVerschillen[[#Headers],[Jan]]),1),INDEX(MarketingGepland[],,1),0),MATCH(MarketingVerschillen[[#Headers],[Jan]],MarketingWerkelijik[#Headers],0)) -> € 0.00 | D22: =INDEX(MarketingGepland[],MATCH(INDEX(MarketingVerschillen[],ROW()-ROW(MarketingVerschillen[[#Headers],[Feb]]),1),INDEX(MarketingGepland[],,1),0),MATCH(MarketingVerschillen[[#Headers],[Feb]],MarketingGepland[#Headers],0))-INDEX(MarketingWerkelijik[],MATCH(INDEX(MarketingVerschillen[],ROW()-ROW(MarketingVerschillen[[#Headers],[Feb]]),1),INDEX(MarketingGepland[],,1),0),MATCH(MarketingVerschillen[[#Headers],[Feb]],MarketingWerkelijik[#Headers],0)) -> € 0.00 | E22: =INDEX(MarketingGepland[],MATCH(INDEX(MarketingVerschillen[],ROW()-ROW(MarketingVerschillen[[#Headers],[Mrt]]),1),INDEX(MarketingGepland[],,1),0),MATCH(MarketingVerschillen[[#Headers],[Mrt]],MarketingGepland[#Headers],0))-INDEX(MarketingWerkelijik[],MATCH(INDEX(MarketingVerschillen[],ROW()-ROW(MarketingVerschillen[[#Headers],[Mrt]]),1),INDEX(MarketingGepland[],,1),0),MATCH(MarketingVerschillen[[#Headers],[Mrt]],MarketingWerkelijik[#Headers],0)) -> € 0.00 | F22: =INDEX(MarketingGepland[],MATCH(INDEX(MarketingVerschillen[],ROW()-ROW(MarketingVerschillen[[#Headers],[Apr]]),1),INDEX(MarketingGepland[],,1),0),MATCH(MarketingVerschillen[[#Headers],[Apr]],MarketingGepland[#Headers],0))-INDEX(MarketingWerkelijik[],MATCH(INDEX(MarketingVerschillen[],ROW()-ROW(MarketingVerschillen[[#Headers],[Apr]]),1),INDEX(MarketingGepland[],,1),0),MATCH(MarketingVerschillen[[#Headers],[Apr]],MarketingWerkelijik[#Headers],0)) -> € 0.00 | G22: =INDEX(MarketingGepland[],MATCH(INDEX(MarketingVerschillen[],ROW()-ROW(MarketingVerschillen[[#Headers],[Mei]]),1),INDEX(MarketingGepland[],,1),0),MATCH(MarketingVerschillen[[#Headers],[Mei]],MarketingGepland[#Headers],0))-INDEX(MarketingWerkelijik[],MATCH(INDEX(MarketingVerschillen[],ROW()-ROW(MarketingVerschillen[[#Headers],[Mei]]),1),INDEX(MarketingGepland[],,1),0),MATCH(MarketingVerschillen[[#Headers],[Mei]],MarketingWerkelijik[#Headers],0)) -> € 0.00 | H22: =INDEX(MarketingGepland[],MATCH(INDEX(MarketingVerschillen[],ROW()-ROW(MarketingVerschillen[[#Headers],[Jun]]),1),INDEX(MarketingGepland[],,1),0),MATCH(MarketingVerschillen[[#Headers],[Jun]],MarketingGepland[#Headers],0))-INDEX(MarketingWerkelijik[],MATCH(INDEX(MarketingVerschillen[],ROW()-ROW(MarketingVerschillen[[#Headers],[Jun]]),1),INDEX(MarketingGepland[],,1),0),MATCH(MarketingVerschillen[[#Headers],[Jun]],MarketingWerkelijik[#Headers],0)) -> € 0.00 | I22: =INDEX(MarketingGepland[],MATCH(INDEX(MarketingVerschillen[],ROW()-ROW(MarketingVerschillen[[#Headers],[Jul]]),1),INDEX(MarketingGepland[],,1),0),MATCH(MarketingVerschillen[[#Headers],[Jul]],MarketingGepland[#Headers],0))-INDEX(MarketingWerkelijik[],MATCH(INDEX(MarketingVerschillen[],ROW()-ROW(MarketingVerschillen[[#Headers],[Jul]]),1),INDEX(MarketingGepland[],,1),0),MATCH(MarketingVerschillen[[#Headers],[Jul]],MarketingWerkelijik[#Headers],0)) -> € 500.00 | J22: =INDEX(MarketingGepland[],MATCH(INDEX(MarketingVerschillen[],ROW()-ROW(MarketingVerschillen[[#Headers],[Aug]]),1),INDEX(MarketingGepland[],,1),0),MATCH(MarketingVerschillen[[#Headers],[Aug]],MarketingGepland[#Headers],0))-INDEX(MarketingWerkelijik[],MATCH(INDEX(MarketingVerschillen[],ROW()-ROW(MarketingVerschillen[[#Headers],[Aug]]),1),INDEX(MarketingGepland[],,1),0),MATCH(MarketingVerschillen[[#Headers],[Aug]],MarketingWerkelijik[#Headers],0)) -> € 500.00 | K22: =INDEX(MarketingGepland[],MATCH(INDEX(MarketingVerschillen[],ROW()-ROW(MarketingVerschillen[[#Headers],[Sep]]),1),INDEX(MarketingGepland[],,1),0),MATCH(MarketingVerschillen[[#Headers],[Sep]],MarketingGepland[#Headers],0))-INDEX(MarketingWerkelijik[],MATCH(INDEX(MarketingVerschillen[],ROW()-ROW(MarketingVerschillen[[#Headers],[Sep]]),1),INDEX(MarketingGepland[],,1),0),MATCH(MarketingVerschillen[[#Headers],[Sep]],MarketingWerkelijik[#Headers],0)) -> € 500.00 | L22: =INDEX(MarketingGepland[],MATCH(INDEX(MarketingVerschillen[],ROW()-ROW(MarketingVerschillen[[#Headers],[Okt]]),1),INDEX(MarketingGepland[],,1),0),MATCH(MarketingVerschillen[[#Headers],[Okt]],MarketingGepland[#Headers],0))-INDEX(MarketingWerkelijik[],MATCH(INDEX(MarketingVerschillen[],ROW()-ROW(MarketingVerschillen[[#Headers],[Okt]]),1),INDEX(MarketingGepland[],,1),0),MATCH(MarketingVerschillen[[#Headers],[Okt]],MarketingWerkelijik[#Headers],0)) -> € 500.00 | M22: =INDEX(MarketingGepland[],MATCH(INDEX(MarketingVerschillen[],ROW()-ROW(MarketingVerschillen[[#Headers],[Nov]]),1),INDEX(MarketingGepland[],,1),0),MATCH(MarketingVerschillen[[#Headers],[Nov]],MarketingGepland[#Headers],0))-INDEX(MarketingWerkelijik[],MATCH(INDEX(MarketingVerschillen[],ROW()-ROW(MarketingVerschillen[[#Headers],[Nov]]),1),INDEX(MarketingGepland[],,1),0),MATCH(MarketingVerschillen[[#Headers],[Nov]],MarketingWerkelijik[#Headers],0)) -> € 500.00 | N22: =INDEX(MarketingGepland[],MATCH(INDEX(MarketingVerschillen[],ROW()-ROW(MarketingVerschillen[[#Headers],[Dec]]),1),INDEX(MarketingGepland[],,1),0),MATCH(MarketingVerschillen[[#Headers],[Dec]],MarketingGepland[#Headers],0))-INDEX(MarketingWerkelijik[],MATCH(INDEX(MarketingVerschillen[],ROW()-ROW(MarketingVerschillen[[#Headers],[Dec]]),1),INDEX(MarketingGepland[],,1),0),MATCH(MarketingVerschillen[[#Headers],[Dec]],MarketingWerkelijik[#Headers],0)) -> € 500.00 | O22: =SUM(MarketingVerschillen[[#This Row],[Jan]:[Dec]]) -> € 3,000.00
B23: Website-updates | C23: =INDEX(MarketingGepland[],MATCH(INDEX(MarketingVerschillen[],ROW()-ROW(MarketingVerschillen[[#Headers],[Jan]]),1),INDEX(MarketingGepland[],,1),0),MATCH(MarketingVerschillen[[#Headers],[Jan]],MarketingGepland[#Headers],0))-INDEX(MarketingWerkelijik[],MATCH(INDEX(MarketingVerschillen[],ROW()-ROW(MarketingVerschillen[[#Headers],[Jan]]),1),INDEX(MarketingGepland[],,1),0),MATCH(MarketingVerschillen[[#Headers],[Jan]],MarketingWerkelijik[#Headers],0)) -> € 0.00 | D23: =INDEX(MarketingGepland[],MATCH(INDEX(MarketingVerschillen[],ROW()-ROW(MarketingVerschillen[[#Headers],[Feb]]),1),INDEX(MarketingGepland[],,1),0),MATCH(MarketingVerschillen[[#Headers],[Feb]],MarketingGepland[#Headers],0))-INDEX(MarketingWerkelijik[],MATCH(INDEX(MarketingVerschillen[],ROW()-ROW(MarketingVerschillen[[#Headers],[Feb]]),1),INDEX(MarketingGepland[],,1),0),MATCH(MarketingVerschillen[[#Headers],[Feb]],MarketingWerkelijik[#Headers],0)) -> € 0.00 | E23: =INDEX(MarketingGepland[],MATCH(INDEX(MarketingVerschillen[],ROW()-ROW(MarketingVerschillen[[#Headers],[Mrt]]),1),INDEX(MarketingGepland[],,1),0),MATCH(MarketingVerschillen[[#Headers],[Mrt]],MarketingGepland[#Headers],0))-INDEX(MarketingWerkelijik[],MATCH(INDEX(MarketingVerschillen[],ROW()-ROW(MarketingVerschillen[[#Headers],[Mrt]]),1),INDEX(MarketingGepland[],,1),0),MATCH(MarketingVerschillen[[#Headers],[Mrt]],MarketingWerkelijik[#Headers],0)) -> € 0.00 | F23: =INDEX(MarketingGepland[],MATCH(INDEX(MarketingVerschillen[],ROW()-ROW(MarketingVerschillen[[#Headers],[Apr]]),1),INDEX(MarketingGepland[],,1),0),MATCH(MarketingVerschillen[[#Headers],[Apr]],MarketingGepland[#Headers],0))-INDEX(MarketingWerkelijik[],MATCH(INDEX(MarketingVerschillen[],ROW()-ROW(MarketingVerschillen[[#Headers],[Apr]]),1),INDEX(MarketingGepland[],,1),0),MATCH(MarketingVerschillen[[#Headers],[Apr]],MarketingWerkelijik[#Headers],0)) -> € 0.00 | G23: =INDEX(MarketingGepland[],MATCH(INDEX(MarketingVerschillen[],ROW()-ROW(MarketingVerschillen[[#Headers],[Mei]]),1),INDEX(MarketingGepland[],,1),0),MATCH(MarketingVerschillen[[#Headers],[Mei]],MarketingGepland[#Headers],0))-INDEX(MarketingWerkelijik[],MATCH(INDEX(MarketingVerschillen[],ROW()-ROW(MarketingVerschillen[[#Headers],[Mei]]),1),INDEX(MarketingGepland[],,1),0),MATCH(MarketingVerschillen[[#Headers],[Mei]],MarketingWerkelijik[#Headers],0)) -> € 0.00 | H23: =INDEX(MarketingGepland[],MATCH(INDEX(MarketingVerschillen[],ROW()-ROW(MarketingVerschillen[[#Headers],[Jun]]),1),INDEX(MarketingGepland[],,1),0),MATCH(MarketingVerschillen[[#Headers],[Jun]],MarketingGepland[#Headers],0))-INDEX(MarketingWerkelijik[],MATCH(INDEX(MarketingVerschillen[],ROW()-ROW(MarketingVerschillen[[#Headers],[Jun]]),1),INDEX(MarketingGepland[],,1),0),MATCH(MarketingVerschillen[[#Headers],[Jun]],MarketingWerkelijik[#Headers],0)) -> € -500.00 | I23: =INDEX(MarketingGepland[],MATCH(INDEX(MarketingVerschillen[],ROW()-ROW(MarketingVerschillen[[#Headers],[Jul]]),1),INDEX(MarketingGepland[],,1),0),MATCH(MarketingVerschillen[[#Headers],[Jul]],MarketingGepland[#Headers],0))-INDEX(MarketingWerkelijik[],MATCH(INDEX(MarketingVerschillen[],ROW()-ROW(MarketingVerschillen[[#Headers],[Jul]]),1),INDEX(MarketingGepland[],,1),0),MATCH(MarketingVerschillen[[#Headers],[Jul]],MarketingWerkelijik[#Headers],0)) -> € 200.00 | J23: =INDEX(MarketingGepland[],MATCH(INDEX(MarketingVerschillen[],ROW()-ROW(MarketingVerschillen[[#Headers],[Aug]]),1),INDEX(MarketingGepland[],,1),0),MATCH(MarketingVerschillen[[#Headers],[Aug]],MarketingGepland[#Headers],0))-INDEX(MarketingWerkelijik[],MATCH(INDEX(MarketingVerschillen[],ROW()-ROW(MarketingVerschillen[[#Headers],[Aug]]),1),INDEX(MarketingGepland[],,1),0),MATCH(MarketingVerschillen[[#Headers],[Aug]],MarketingWerkelijik[#Headers],0)) -> € 200.00 | K23: =INDEX(MarketingGepland[],MATCH(INDEX(MarketingVerschillen[],ROW()-ROW(MarketingVerschillen[[#Headers],[Sep]]),1),INDEX(MarketingGepland[],,1),0),MATCH(MarketingVerschillen[[#Headers],[Sep]],MarketingGepland[#Headers],0))-INDEX(MarketingWerkelijik[],MATCH(INDEX(MarketingVerschillen[],ROW()-ROW(MarketingVerschillen[[#Headers],[Sep]]),1),INDEX(MarketingGepland[],,1),0),MATCH(MarketingVerschillen[[#Headers],[Sep]],MarketingWerkelijik[#Headers],0)) -> € 200.00 | L23: =INDEX(MarketingGepland[],MATCH(INDEX(MarketingVerschillen[],ROW()-ROW(MarketingVerschillen[[#Headers],[Okt]]),1),INDEX(MarketingGepland[],,1),0),MATCH(MarketingVerschillen[[#Headers],[Okt]],MarketingGepland[#Headers],0))-INDEX(MarketingWerkelijik[],MATCH(INDEX(MarketingVerschillen[],ROW()-ROW(MarketingVerschillen[[#Headers],[Okt]]),1),INDEX(MarketingGepland[],,1),0),MATCH(MarketingVerschillen[[#Headers],[Okt]],MarketingWerkelijik[#Headers],0)) -> € 200.00 | M23: =INDEX(MarketingGepland[],MATCH(INDEX(MarketingVerschillen[],ROW()-ROW(MarketingVerschillen[[#Headers],[Nov]]),1),INDEX(MarketingGepland[],,1),0),MATCH(MarketingVerschillen[[#Headers],[Nov]],MarketingGepland[#Headers],0))-INDEX(MarketingWerkelijik[],MATCH(INDEX(MarketingVerschillen[],ROW()-ROW(MarketingVerschillen[[#Headers],[Nov]]),1),INDEX(MarketingGepland[],,1),0),MATCH(MarketingVerschillen[[#Headers],[Nov]],MarketingWerkelijik[#Headers],0)) -> € 200.00 | N23: =INDEX(MarketingGepland[],MATCH(INDEX(MarketingVerschillen[],ROW()-ROW(MarketingVerschillen[[#Headers],[Dec]]),1),INDEX(MarketingGepland[],,1),0),MATCH(MarketingVerschillen[[#Headers],[Dec]],MarketingGepland[#Headers],0))-INDEX(MarketingWerkelijik[],MATCH(INDEX(MarketingVerschillen[],ROW()-ROW(MarketingVerschillen[[#Headers],[Dec]]),1),INDEX(MarketingGepland[],,1),0),MATCH(MarketingVerschillen[[#Headers],[Dec]],MarketingWerkelijik[#Headers],0)) -> € 1,000.00 | O23: =SUM(MarketingVerschillen[[#This Row],[Jan]:[Dec]]) -> € 1,500.00
B24: Voorbereiding marketingmateriaal | C24: =INDEX(MarketingGepland[],MATCH(INDEX(MarketingVerschillen[],ROW()-ROW(MarketingVerschillen[[#Headers],[Jan]]),1),INDEX(MarketingGepland[],,1),0),MATCH(MarketingVerschillen[[#Headers],[Jan]],MarketingGepland[#Headers],0))-INDEX(MarketingWerkelijik[],MATCH(INDEX(MarketingVerschillen[],ROW()-ROW(MarketingVerschillen[[#Headers],[Jan]]),1),INDEX(MarketingGepland[],,1),0),MATCH(MarketingVerschillen[[#Headers],[Jan]],MarketingWerkelijik[#Headers],0)) -> € 200.00 | D24: =INDEX(MarketingGepland[],MATCH(INDEX(MarketingVerschillen[],ROW()-ROW(MarketingVerschillen[[#Headers],[Feb]]),1),INDEX(MarketingGepland[],,1),0),MATCH(MarketingVerschillen[[#Headers],[Feb]],MarketingGepland[#Headers],0))-INDEX(MarketingWerkelijik[],MATCH(INDEX(MarketingVerschillen[],ROW()-ROW(MarketingVerschillen[[#Headers],[Feb]]),1),INDEX(MarketingGepland[],,1),0),MATCH(MarketingVerschillen[[#Headers],[Feb]],MarketingWerkelijik[#Headers],0)) -> € 0.00 | E24: =INDEX(MarketingGepland[],MATCH(INDEX(MarketingVerschillen[],ROW()-ROW(MarketingVerschillen[[#Headers],[Mrt]]),1),INDEX(MarketingGepland[],,1),0),MATCH(MarketingVerschillen[[#Headers],[Mrt]],MarketingGepland[#Headers],0))-INDEX(MarketingWerkelijik[],MATCH(INDEX(MarketingVerschillen[],ROW()-ROW(MarketingVerschillen[[#Headers],[Mrt]]),1),INDEX(MarketingGepland[],,1),0),MATCH(MarketingVerschillen[[#Headers],[Mrt]],MarketingWerkelijik[#Headers],0)) -> € 0.00 | F24: =INDEX(MarketingGepland[],MATCH(INDEX(MarketingVerschillen[],ROW()-ROW(MarketingVerschillen[[#Headers],[Apr]]),1),INDEX(MarketingGepland[],,1),0),MATCH(MarketingVerschillen[[#Headers],[Apr]],MarketingGepland[#Headers],0))-INDEX(MarketingWerkelijik[],MATCH(INDEX(MarketingVerschillen[],ROW()-ROW(MarketingVerschillen[[#Headers],[Apr]]),1),INDEX(MarketingGepland[],,1),0),MATCH(MarketingVerschillen[[#Headers],[Apr]],MarketingWerkelijik[#Headers],0)) -> € -500.00 | G24: =INDEX(MarketingGepland[],MATCH(INDEX(MarketingVerschillen[],ROW()-ROW(MarketingVerschillen[[#Headers],[Mei]]),1),INDEX(MarketingGepland[],,1),0),MATCH(MarketingVerschillen[[#Headers],[Mei]],MarketingGepland[#Headers],0))-INDEX(MarketingWerkelijik[],MATCH(INDEX(MarketingVerschillen[],ROW()-ROW(MarketingVerschillen[[#Headers],[Mei]]),1),INDEX(MarketingGepland[],,1),0),MATCH(MarketingVerschillen[[#Headers],[Mei]],MarketingWerkelijik[#Headers],0)) -> € 0.00 | H24: =INDEX(MarketingGepland[],MATCH(INDEX(MarketingVerschillen[],ROW()-ROW(MarketingVerschillen[[#Headers],[Jun]]),1),INDEX(MarketingGepland[],,1),0),MATCH(MarketingVerschillen[[#Headers],[Jun]],MarketingGepland[#Headers],0))-INDEX(MarketingWerkelijik[],MATCH(INDEX(MarketingVerschillen[],ROW()-ROW(MarketingVerschillen[[#Headers],[Jun]]),1),INDEX(MarketingGepland[],,1),0),MATCH(MarketingVerschillen[[#Headers],[Jun]],MarketingWerkelijik[#Headers],0)) -> € 0.00 | I24: =INDEX(MarketingGepland[],MATCH(INDEX(MarketingVerschillen[],ROW()-ROW(MarketingVerschillen[[#Headers],[Jul]]),1),INDEX(MarketingGepland[],,1),0),MATCH(MarketingVerschillen[[#Headers],[Jul]],MarketingGepland[#Headers],0))-INDEX(MarketingWerkelijik[],MATCH(INDEX(MarketingVerschillen[],ROW()-ROW(MarketingVerschillen[[#Headers],[Jul]]),1),INDEX(MarketingGepland[],,1),0),MATCH(MarketingVerschillen[[#Headers],[Jul]],MarketingWerkelijik[#Headers],0)) -> € 5,000.00 | J24: =INDEX(MarketingGepland[],MATCH(INDEX(MarketingVerschillen[],ROW()-ROW(MarketingVerschillen[[#Headers],[Aug]]),1),INDEX(MarketingGepland[],,1),0),MATCH(MarketingVerschillen[[#Headers],[Aug]],MarketingGepland[#Headers],0))-INDEX(MarketingWerkelijik[],MATCH(INDEX(MarketingVerschillen[],ROW()-ROW(MarketingVerschillen[[#Headers],[Aug]]),1),INDEX(MarketingGepland[],,1),0),MATCH(MarketingVerschillen[[#Headers],[Aug]],MarketingWerkelijik[#Headers],0)) -> € 0.00 | K24: =INDEX(MarketingGepland[],MATCH(INDEX(MarketingVerschillen[],ROW()-ROW(MarketingVerschillen[[#Headers],[Sep]]),1),INDEX(MarketingGepland[],,1),0),MATCH(MarketingVerschillen[[#Headers],[Sep]],MarketingGepland[#Headers],0))-INDEX(MarketingWerkelijik[],MATCH(INDEX(MarketingVerschillen[],ROW()-ROW(MarketingVerschillen[[#Headers],[Sep]]),1),INDEX(MarketingGepland[],,1),0),MATCH(MarketingVerschillen[[#Headers],[Sep]],MarketingWerkelijik[#Headers],0)) -> € 0.00 | L24: =INDEX(MarketingGepland[],MATCH(INDEX(MarketingVerschillen[],ROW()-ROW(MarketingVerschillen[[#Headers],[Okt]]),1),INDEX(MarketingGepland[],,1),0),MATCH(MarketingVerschillen[[#Headers],[Okt]],MarketingGepland[#Headers],0))-INDEX(MarketingWerkelijik[],MATCH(INDEX(MarketingVerschillen[],ROW()-ROW(MarketingVerschillen[[#Headers],[Okt]]),1),INDEX(MarketingGepland[],,1),0),MATCH(MarketingVerschillen[[#Headers],[Okt]],MarketingWerkelijik[#Headers],0)) -> € 5,000.00 | M24: =INDEX(MarketingGepland[],MATCH(INDEX(MarketingVerschillen[],ROW()-ROW(MarketingVerschillen[[#Headers],[Nov]]),1),INDEX(MarketingGepland[],,1),0),MATCH(MarketingVerschillen[[#Headers],[Nov]],MarketingGepland[#Headers],0))-INDEX(MarketingWerkelijik[],MATCH(INDEX(MarketingVerschillen[],ROW()-ROW(MarketingVerschillen[[#Headers],[Nov]]),1),INDEX(MarketingGepland[],,1),0),MATCH(MarketingVerschillen[[#Headers],[Nov]],MarketingWerkelijik[#Headers],0)) -> € 0.00 | N24: =INDEX(MarketingGepland[],MATCH(INDEX(MarketingVerschillen[],ROW()-ROW(MarketingVerschillen[[#Headers],[Dec]]),1),INDEX(MarketingGepland[],,1),0),MATCH(MarketingVerschillen[[#Headers],[Dec]],MarketingGepland[#Headers],0))-INDEX(MarketingWerkelijik[],MATCH(INDEX(MarketingVerschillen[],ROW()-ROW(MarketingVerschillen[[#Headers],[Dec]]),1),INDEX(MarketingGepland[],,1),0),MATCH(MarketingVerschillen[[#Headers],[Dec]],MarketingWerkelijik[#Headers],0)) -> € 0.00 | O24: =SUM(MarketingVerschillen[[#This Row],[Jan]:[Dec]]) -> € 9,700.00
B25: Afdrukken marketingmateriaal | C25: =INDEX(MarketingGepland[],MATCH(INDEX(MarketingVerschillen[],ROW()-ROW(MarketingVerschillen[[#Headers],[Jan]]),1),INDEX(MarketingGepland[],,1),0),MATCH(MarketingVerschillen[[#Headers],[Jan]],MarketingGepland[#Headers],0))-INDEX(MarketingWerkelijik[],MATCH(INDEX(MarketingVerschillen[],ROW()-ROW(MarketingVerschillen[[#Headers],[Jan]]),1),INDEX(MarketingGepland[],,1),0),MATCH(MarketingVerschillen[[#Headers],[Jan]],MarketingWerkelijik[#Headers],0)) -> € 100.00 | D25: =INDEX(MarketingGepland[],MATCH(INDEX(MarketingVerschillen[],ROW()-ROW(MarketingVerschillen[[#Headers],[Feb]]),1),INDEX(MarketingGepland[],,1),0),MATCH(MarketingVerschillen[[#Headers],[Feb]],MarketingGepland[#Headers],0))-INDEX(MarketingWerkelijik[],MATCH(INDEX(MarketingVerschillen[],ROW()-ROW(MarketingVerschillen[[#Headers],[Feb]]),1),INDEX(MarketingGepland[],,1),0),MATCH(MarketingVerschillen[[#Headers],[Feb]],MarketingWerkelijik[#Headers],0)) -> € -300.00 | E25: =INDEX(MarketingGepland[],MATCH(INDEX(MarketingVerschillen[],ROW()-ROW(MarketingVerschillen[[#Headers],[Mrt]]),1),INDEX(MarketingGepland[],,1),0),MATCH(MarketingVerschillen[[#Headers],[Mrt]],MarketingGepland[#Headers],0))-INDEX(MarketingWerkelijik[],MATCH(INDEX(MarketingVerschillen[],ROW()-ROW(MarketingVerschillen[[#Headers],[Mrt]]),1),INDEX(MarketingGepland[],,1),0),MATCH(MarketingVerschillen[[#Headers],[Mrt]],MarketingWerkelijik[#Headers],0)) -> € 100.00 | F25: =INDEX(MarketingGepland[],MATCH(INDEX(MarketingVerschillen[],ROW()-ROW(MarketingVerschillen[[#Headers],[Apr]]),1),INDEX(MarketingGepland[],,1),0),MATCH(MarketingVerschillen[[#Headers],[Apr]],MarketingGepland[#Headers],0))-INDEX(MarketingWerkelijik[],MATCH(INDEX(MarketingVerschillen[],ROW()-ROW(MarketingVerschillen[[#Headers],[Apr]]),1),INDEX(MarketingGepland[],,1),0),MATCH(MarketingVerschillen[[#Headers],[Apr]],MarketingWerkelijik[#Headers],0)) -> € 100.00 | G25: =INDEX(MarketingGepland[],MATCH(INDEX(MarketingVerschillen[],ROW()-ROW(MarketingVerschillen[[#Headers],[Mei]]),1),INDEX(MarketingGepland[],,1),0),MATCH(MarketingVerschillen[[#Headers],[Mei]],MarketingGepland[#Headers],0))-INDEX(MarketingWerkelijik[],MATCH(INDEX(MarketingVerschillen[],ROW()-ROW(MarketingVerschillen[[#Headers],[Mei]]),1),INDEX(MarketingGepland[],,1),0),MATCH(MarketingVerschillen[[#Headers],[Mei]],MarketingWerkelijik[#Headers],0)) -> € -400.00 | H25: =INDEX(MarketingGepland[],MATCH(INDEX(MarketingVerschillen[],ROW()-ROW(MarketingVerschillen[[#Headers],[Jun]]),1),INDEX(MarketingGepland[],,1),0),MATCH(MarketingVerschillen[[#Headers],[Jun]],MarketingGepland[#Headers],0))-INDEX(MarketingWerkelijik[],MATCH(INDEX(MarketingVerschillen[],ROW()-ROW(MarketingVerschillen[[#Headers],[Jun]]),1),INDEX(MarketingGepland[],,1),0),MATCH(MarketingVerschillen[[#Headers],[Jun]],MarketingWerkelijik[#Headers],0)) -> € 20.00 | I25: =INDEX(MarketingGepland[],MATCH(INDEX(MarketingVerschillen[],ROW()-ROW(MarketingVerschillen[[#Headers],[Jul]]),1),INDEX(MarketingGepland[],,1),0),MATCH(MarketingVerschillen[[#Headers],[Jul]],MarketingGepland[#Headers],0))-INDEX(MarketingWerkelijik[],MATCH(INDEX(MarketingVerschillen[],ROW()-ROW(MarketingVerschillen[[#Headers],[Jul]]),1),INDEX(MarketingGepland[],,1),0),MATCH(MarketingVerschillen[[#Headers],[Jul]],MarketingWerkelijik[#Headers],0)) -> € 200.00 | J25: =INDEX(MarketingGepland[],MATCH(INDEX(MarketingVerschillen[],ROW()-ROW(MarketingVerschillen[[#Headers],[Aug]]),1),INDEX(MarketingGepland[],,1),0),MATCH(MarketingVerschillen[[#Headers],[Aug]],MarketingGepland[#Headers],0))-INDEX(MarketingWerkelijik[],MATCH(INDEX(MarketingVerschillen[],ROW()-ROW(MarketingVerschillen[[#Headers],[Aug]]),1),INDEX(MarketingGepland[],,1),0),MATCH(MarketingVerschillen[[#Headers],[Aug]],MarketingWerkelijik[#Headers],0)) -> € 200.00 | K25: =INDEX(MarketingGepland[],MATCH(INDEX(MarketingVerschillen[],ROW()-ROW(MarketingVerschillen[[#Headers],[Sep]]),1),INDEX(MarketingGepland[],,1),0),MATCH(MarketingVerschillen[[#Headers],[Sep]],MarketingGepland[#Headers],0))-INDEX(MarketingWerkelijik[],MATCH(INDEX(MarketingVerschillen[],ROW()-ROW(MarketingVerschillen[[#Headers],[Sep]]),1),INDEX(MarketingGepland[],,1),0),MATCH(MarketingVerschillen[[#Headers],[Sep]],MarketingWerkelijik[#Headers],0)) -> € 200.00 | L25: =INDEX(MarketingGepland[],MATCH(INDEX(MarketingVerschillen[],ROW()-ROW(MarketingVerschillen[[#Headers],[Okt]]),1),INDEX(MarketingGepland[],,1),0),MATCH(MarketingVerschillen[[#Headers],[Okt]],MarketingGepland[#Headers],0))-INDEX(MarketingWerkelijik[],MATCH(INDEX(MarketingVerschillen[],ROW()-ROW(MarketingVerschillen[[#Headers],[Okt]]),1),INDEX(MarketingGepland[],,1),0),MATCH(MarketingVerschillen[[#Headers],[Okt]],MarketingWerkelijik[#Headers],0)) -> € 200.00 | M25: =INDEX(MarketingGepland[],MATCH(INDEX(MarketingVerschillen[],ROW()-ROW(MarketingVerschillen[[#Headers],[Nov]]),1),INDEX(MarketingGepland[],,1),0),MATCH(MarketingVerschillen[[#Headers],[Nov]],MarketingGepland[#Headers],0))-INDEX(MarketingWerkelijik[],MATCH(INDEX(MarketingVerschillen[],ROW()-ROW(MarketingVerschillen[[#Headers],[Nov]]),1),INDEX(MarketingGepland[],,1),0),MATCH(MarketingVerschillen[[#Headers],[Nov]],MarketingWerkelijik[#Headers],0)) -> € 200.00 | N25: =INDEX(MarketingGepland[],MATCH(INDEX(MarketingVerschillen[],ROW()-ROW(MarketingVerschillen[[#Headers],[Dec]]),1),INDEX(MarketingGepland[],,1),0),MATCH(MarketingVerschillen[[#Headers],[Dec]],MarketingGepland[#Headers],0))-INDEX(MarketingWerkelijik[],MATCH(INDEX(MarketingVerschillen[],ROW()-ROW(MarketingVerschillen[[#Headers],[Dec]]),1),INDEX(MarketingGepland[],,1),0),MATCH(MarketingVerschillen[[#Headers],[Dec]],MarketingWerkelijik[#Headers],0)) -> € 200.00 | O25: =SUM(MarketingVerschillen[[#This Row],[Jan]:[Dec]]) -> € 820.00
B26: Marketingevenementen | C26: =INDEX(MarketingGepland[],MATCH(INDEX(MarketingVerschillen[],ROW()-ROW(MarketingVerschillen[[#Headers],[Jan]]),1),INDEX(MarketingGepland[],,1),0),MATCH(MarketingVerschillen[[#Headers],[Jan]],MarketingGepland[#Headers],0))-INDEX(MarketingWerkelijik[],MATCH(INDEX(MarketingVerschillen[],ROW()-ROW(MarketingVerschillen[[#Headers],[Jan]]),1),INDEX(MarketingGepland[],,1),0),MATCH(MarketingVerschillen[[#Headers],[Jan]],MarketingWerkelijik[#Headers],0)) -> € 200.00 | D26: =INDEX(MarketingGepland[],MATCH(INDEX(MarketingVerschillen[],ROW()-ROW(MarketingVerschillen[[#Headers],[Feb]]),1),INDEX(MarketingGepland[],,1),0),MATCH(MarketingVerschillen[[#Headers],[Feb]],MarketingGepland[#Headers],0))-INDEX(MarketingWerkelijik[],MATCH(INDEX(MarketingVerschillen[],ROW()-ROW(MarketingVerschillen[[#Headers],[Feb]]),1),INDEX(MarketingGepland[],,1),0),MATCH(MarketingVerschillen[[#Headers],[Feb]],MarketingWerkelijik[#Headers],0)) -> € -200.00 | E26: =INDEX(MarketingGepland[],MATCH(INDEX(MarketingVerschillen[],ROW()-ROW(MarketingVerschillen[[#Headers],[Mrt]]),1),INDEX(MarketingGepland[],,1),0),MATCH(MarketingVerschillen[[#Headers],[Mrt]],MarketingGepland[#Headers],0))-INDEX(MarketingWerkelijik[],MATCH(INDEX(MarketingVerschillen[],ROW()-ROW(MarketingVerschillen[[#Headers],[Mrt]]),1),INDEX(MarketingGepland[],,1),0),MATCH(MarketingVerschillen[[#Headers],[Mrt]],MarketingWerkelijik[#Headers],0)) -> € -200.00 | F26: =INDEX(MarketingGepland[],MATCH(INDEX(MarketingVerschillen[],ROW()-ROW(MarketingVerschillen[[#Headers],[Apr]]),1),INDEX(MarketingGepland[],,1),0),MATCH(MarketingVerschillen[[#Headers],[Apr]],MarketingGepland[#Headers],0))-INDEX(MarketingWerkelijik[],MATCH(INDEX(MarketingVerschillen[],ROW()-ROW(MarketingVerschillen[[#Headers],[Apr]]),1),INDEX(MarketingGepland[],,1),0),MATCH(MarketingVerschillen[[#Headers],[Apr]],MarketingWerkelijik[#Headers],0)) -> € 300.00 | G26: =INDEX(MarketingGepland[],MATCH(INDEX(MarketingVerschillen[],ROW()-ROW(MarketingVerschillen[[#Headers],[Mei]]),1),INDEX(MarketingGepland[],,1),0),MATCH(MarketingVerschillen[[#Headers],[Mei]],MarketingGepland[#Headers],0))-INDEX(MarketingWerkelijik[],MATCH(INDEX(MarketingVerschillen[],ROW()-ROW(MarketingVerschillen[[#Headers],[Mei]]),1),INDEX(MarketingGepland[],,1),0),MATCH(MarketingVerschillen[[#Headers],[Mei]],MarketingWerkelijik[#Headers],0)) -> € 500.00 | H26: =INDEX(MarketingGepland[],MATCH(INDEX(MarketingVerschillen[],ROW()-ROW(MarketingVerschillen[[#Headers],[Jun]]),1),INDEX(MarketingGepland[],,1),0),MATCH(MarketingVerschillen[[#Headers],[Jun]],MarketingGepland[#Headers],0))-INDEX(MarketingWerkelijik[],MATCH(INDEX(MarketingVerschillen[],ROW()-ROW(MarketingVerschillen[[#Headers],[Jun]]),1),INDEX(MarketingGepland[],,1),0),MATCH(MarketingVerschillen[[#Headers],[Jun]],MarketingWerkelijik[#Headers],0)) -> € -300.00 | I26: =INDEX(MarketingGepland[],MATCH(INDEX(MarketingVerschillen[],ROW()-ROW(MarketingVerschillen[[#Headers],[Jul]]),1),INDEX(MarketingGepland[],,1),0),MATCH(MarketingVerschillen[[#Headers],[Jul]],MarketingGepland[#Headers],0))-INDEX(MarketingWerkelijik[],MATCH(INDEX(MarketingVerschillen[],ROW()-ROW(MarketingVerschillen[[#Headers],[Jul]]),1),INDEX(MarketingGepland[],,1),0),MATCH(MarketingVerschillen[[#Headers],[Jul]],MarketingWerkelijik[#Headers],0)) -> € 2,000.00 | J26: =INDEX(MarketingGepland[],MATCH(INDEX(MarketingVerschillen[],ROW()-ROW(MarketingVerschillen[[#Headers],[Aug]]),1),INDEX(MarketingGepland[],,1),0),MATCH(MarketingVerschillen[[#Headers],[Aug]],MarketingGepland[#Headers],0))-INDEX(MarketingWerkelijik[],MATCH(INDEX(MarketingVerschillen[],ROW()-ROW(MarketingVerschillen[[#Headers],[Aug]]),1),INDEX(MarketingGepland[],,1),0),MATCH(MarketingVerschillen[[#Headers],[Aug]],MarketingWerkelijik[#Headers],0)) -> € 5,000.00 | K26: =INDEX(MarketingGepland[],MATCH(INDEX(MarketingVerschillen[],ROW()-ROW(MarketingVerschillen[[#Headers],[Sep]]),1),INDEX(MarketingGepland[],,1),0),MATCH(MarketingVerschillen[[#Headers],[Sep]],MarketingGepland[#Headers],0))-INDEX(MarketingWerkelijik[],MATCH(INDEX(MarketingVerschillen[],ROW()-ROW(MarketingVerschillen[[#Headers],[Sep]]),1),INDEX(MarketingGepland[],,1),0),MATCH(MarketingVerschillen[[#Headers],[Sep]],MarketingWerkelijik[#Headers],0)) -> € 2,000.00 | L26: =INDEX(MarketingGepland[],MATCH(INDEX(MarketingVerschillen[],ROW()-ROW(MarketingVerschillen[[#Headers],[Okt]]),1),INDEX(MarketingGepland[],,1),0),MATCH(MarketingVerschillen[[#Headers],[Okt]],MarketingGepland[#Headers],0))-INDEX(MarketingWerkelijik[],MATCH(INDEX(MarketingVerschillen[],ROW()-ROW(MarketingVerschillen[[#Headers],[Okt]]),1),INDEX(MarketingGepland[],,1),0),MATCH(MarketingVerschillen[[#Headers],[Okt]],MarketingWerkelijik[#Headers],0)) -> € 2,000.00 | M26: =INDEX(MarketingGepland[],MATCH(INDEX(MarketingVerschillen[],ROW()-ROW(MarketingVerschillen[[#Headers],[Nov]]),1),INDEX(MarketingGepland[],,1),0),MATCH(MarketingVerschillen[[#Headers],[Nov]],MarketingGepland[#Headers],0))-INDEX(MarketingWerkelijik[],MATCH(INDEX(MarketingVerschillen[],ROW()-ROW(MarketingVerschillen[[#Headers],[Nov]]),1),INDEX(MarketingGepland[],,1),0),MATCH(MarketingVerschillen[[#Headers],[Nov]],MarketingWerkelijik[#Headers],0)) -> € 2,000.00 | N26: =INDEX(MarketingGepland[],MATCH(INDEX(MarketingVerschillen[],ROW()-ROW(MarketingVerschillen[[#Headers],[Dec]]),1),INDEX(MarketingGepland[],,1),0),MATCH(MarketingVerschillen[[#Headers],[Dec]],MarketingGepland[#Headers],0))-INDEX(MarketingWerkelijik[],MATCH(INDEX(MarketingVerschillen[],ROW()-ROW(MarketingVerschillen[[#Headers],[Dec]]),1),INDEX(MarketingGepland[],,1),0),MATCH(MarketingVerschillen[[#Headers],[Dec]],MarketingWerkelijik[#Headers],0)) -> € 5,000.00 | O26: =SUM(MarketingVerschillen[[#This Row],[Jan]:[Dec]]) -> € 18,300.00
B27: Diverse kosten | C27: =INDEX(MarketingGepland[],MATCH(INDEX(MarketingVerschillen[],ROW()-ROW(MarketingVerschillen[[#Headers],[Jan]]),1),INDEX(MarketingGepland[],,1),0),MATCH(MarketingVerschillen[[#Headers],[Jan]],MarketingGepland[#Headers],0))-INDEX(MarketingWerkelijik[],MATCH(INDEX(MarketingVerschillen[],ROW()-ROW(MarketingVerschillen[[#Headers],[Jan]]),1),INDEX(MarketingGepland[],,1),0),MATCH(MarketingVerschillen[[#Headers],[Jan]],MarketingWerkelijik[#Headers],0)) -> € 55.00 | D27: =INDEX(MarketingGepland[],MATCH(INDEX(MarketingVerschillen[],ROW()-ROW(MarketingVerschillen[[#Headers],[Feb]]),1),INDEX(MarketingGepland[],,1),0),MATCH(MarketingVerschillen[[#Headers],[Feb]],MarketingGepland[#Headers],0))-INDEX(MarketingWerkelijik[],MATCH(INDEX(MarketingVerschillen[],ROW()-ROW(MarketingVerschillen[[#Headers],[Feb]]),1),INDEX(MarketingGepland[],,1),0),MATCH(MarketingVerschillen[[#Headers],[Feb]],MarketingWerkelijik[#Headers],0)) -> € 44.00 | E27: =INDEX(MarketingGepland[],MATCH(INDEX(MarketingVerschillen[],ROW()-ROW(MarketingVerschillen[[#Headers],[Mrt]]),1),INDEX(MarketingGepland[],,1),0),MATCH(MarketingVerschillen[[#Headers],[Mrt]],MarketingGepland[#Headers],0))-INDEX(MarketingWerkelijik[],MATCH(INDEX(MarketingVerschillen[],ROW()-ROW(MarketingVerschillen[[#Headers],[Mrt]]),1),INDEX(MarketingGepland[],,1),0),MATCH(MarketingVerschillen[[#Headers],[Mrt]],MarketingWerkelijik[#Headers],0)) -> € 77.00 | F27: =INDEX(MarketingGepland[],MATCH(INDEX(MarketingVerschillen[],ROW()-ROW(MarketingVerschillen[[#Headers],[Apr]]),1),INDEX(MarketingGepland[],,1),0),MATCH(MarketingVerschillen[[#Headers],[Apr]],MarketingGepland[#Headers],0))-INDEX(MarketingWerkelijik[],MATCH(INDEX(MarketingVerschillen[],ROW()-ROW(MarketingVerschillen[[#Headers],[Apr]]),1),INDEX(MarketingGepland[],,1),0),MATCH(MarketingVerschillen[[#Headers],[Apr]],MarketingWerkelijik[#Headers],0)) -> € -23.00 | G27: =INDEX(MarketingGepland[],MATCH(INDEX(MarketingVerschillen[],ROW()-ROW(MarketingVerschillen[[#Headers],[Mei]]),1),INDEX(MarketingGepland[],,1),0),MATCH(MarketingVerschillen[[#Headers],[Mei]],MarketingGepland[#Headers],0))-INDEX(MarketingWerkelijik[],MATCH(INDEX(MarketingVerschillen[],ROW()-ROW(MarketingVerschillen[[#Headers],[Mei]]),1),INDEX(MarketingGepland[],,1),0),MATCH(MarketingVerschillen[[#Headers],[Mei]],MarketingWerkelijik[#Headers],0)) -> € 13.00 | H27: =INDEX(MarketingGepland[],MATCH(INDEX(MarketingVerschillen[],ROW()-ROW(MarketingVerschillen[[#Headers],[Jun]]),1),INDEX(MarketingGepland[],,1),0),MATCH(MarketingVerschillen[[#Headers],[Jun]],MarketingGepland[#Headers],0))-INDEX(MarketingWerkelijik[],MATCH(INDEX(MarketingVerschillen[],ROW()-ROW(MarketingVerschillen[[#Headers],[Jun]]),1),INDEX(MarketingGepland[],,1),0),MATCH(MarketingVerschillen[[#Headers],[Jun]],MarketingWerkelijik[#Headers],0)) -> € -45.00 | I27: =INDEX(MarketingGepland[],MATCH(INDEX(MarketingVerschillen[],ROW()-ROW(MarketingVerschillen[[#Headers],[Jul]]),1),INDEX(MarketingGepland[],,1),0),MATCH(MarketingVerschillen[[#Headers],[Jul]],MarketingGepland[#Headers],0))-INDEX(MarketingWerkelijik[],MATCH(INDEX(MarketingVerschillen[],ROW()-ROW(MarketingVerschillen[[#Headers],[Jul]]),1),INDEX(MarketingGepland[],,1),0),MATCH(MarketingVerschillen[[#Headers],[Jul]],MarketingWerkelijik[#Headers],0)) -> € 200.00 | J27: =INDEX(MarketingGepland[],MATCH(INDEX(MarketingVerschillen[],ROW()-ROW(MarketingVerschillen[[#Headers],[Aug]]),1),INDEX(MarketingGepland[],,1),0),MATCH(MarketingVerschillen[[#Headers],[Aug]],MarketingGepland[#Headers],0))-INDEX(MarketingWerkelijik[],MATCH(INDEX(MarketingVerschillen[],ROW()-ROW(MarketingVerschillen[[#Headers],[Aug]]),1),INDEX(MarketingGepland[],,1),0),MATCH(MarketingVerschillen[[#Headers],[Aug]],MarketingWerkelijik[#Headers],0)) -> € 200.00 | K27: =INDEX(MarketingGepland[],MATCH(INDEX(MarketingVerschillen[],ROW()-ROW(MarketingVerschillen[[#Headers],[Sep]]),1),INDEX(MarketingGepland[],,1),0),MATCH(MarketingVerschillen[[#Headers],[Sep]],MarketingGepland[#Headers],0))-INDEX(MarketingWerkelijik[],MATCH(INDEX(MarketingVerschillen[],ROW()-ROW(MarketingVerschillen[[#Headers],[Sep]]),1),INDEX(MarketingGepland[],,1),0),MATCH(MarketingVerschillen[[#Headers],[Sep]],MarketingWerkelijik[#Headers],0)) -> € 200.00 | L27: =INDEX(MarketingGepland[],MATCH(INDEX(MarketingVerschillen[],ROW()-ROW(MarketingVerschillen[[#Headers],[Okt]]),1),INDEX(MarketingGepland[],,1),0),MATCH(MarketingVerschillen[[#Headers],[Okt]],MarketingGepland[#Headers],0))-INDEX(MarketingWerkelijik[],MATCH(INDEX(MarketingVerschillen[],ROW()-ROW(MarketingVerschillen[[#Headers],[Okt]]),1),INDEX(MarketingGepland[],,1),0),MATCH(MarketingVerschillen[[#Headers],[Okt]],MarketingWerkelijik[#Headers],0)) -> € 200.00 | M27: =INDEX(MarketingGepland[],MATCH(INDEX(MarketingVerschillen[],ROW()-ROW(MarketingVerschillen[[#Headers],[Nov]]),1),INDEX(MarketingGepland[],,1),0),MATCH(MarketingVerschillen[[#Headers],[Nov]],MarketingGepland[#Headers],0))-INDEX(MarketingWerkelijik[],MATCH(INDEX(MarketingVerschillen[],ROW()-ROW(MarketingVerschillen[[#Headers],[Nov]]),1),INDEX(MarketingGepland[],,1),0),MATCH(MarketingVerschillen[[#Headers],[Nov]],MarketingWerkelijik[#Headers],0)) -> € 200.00 | N27: =INDEX(MarketingGepland[],MATCH(INDEX(MarketingVerschillen[],ROW()-ROW(MarketingVerschillen[[#Headers],[Dec]]),1),INDEX(MarketingGepland[],,1),0),MATCH(MarketingVerschillen[[#Headers],[Dec]],MarketingGepland[#Headers],0))-INDEX(MarketingWerkelijik[],MATCH(INDEX(MarketingVerschillen[],ROW()-ROW(MarketingVerschillen[[#Headers],[Dec]]),1),INDEX(MarketingGepland[],,1),0),MATCH(MarketingVerschillen[[#Headers],[Dec]],MarketingWerkelijik[#Headers],0)) -> € 200.00 | O27: =SUM(MarketingVerschillen[[#This Row],[Jan]:[Dec]]) -> € 1,321.00
B28: Subtotaal | C28: =SUBTOTAL(109,MarketingVerschillen[Jan]) -> € 555.00 | D28: =SUBTOTAL(109,MarketingVerschillen[Feb]) -> € -456.00 | E28: =SUBTOTAL(109,MarketingVerschillen[Mrt]) -> € -23.00 | F28: =SUBTOTAL(109,MarketingVerschillen[Apr]) -> € -123.00 | G28: =SUBTOTAL(109,MarketingVerschillen[Mei]) -> € 113.00 | H28: =SUBTOTAL(109,MarketingVerschillen[Jun]) -> € -825.00 | I28: =SUBTOTAL(109,MarketingVerschillen[Jul]) -> € 8,100.00 | J28: =SUBTOTAL(109,MarketingVerschillen[Aug]) -> € 6,100.00 | K28: =SUBTOTAL(109,MarketingVerschillen[Sep]) -> € 3,100.00 | L28: =SUBTOTAL(109,MarketingVerschillen[Okt]) -> € 8,100.00 | M28: =SUBTOTAL(109,MarketingVerschillen[Nov]) -> € 3,100.00 | N28: =SUBTOTAL(109,MarketingVerschillen[Dec]) -> € 6,900.00 | O28: =SUBTOTAL(109,MarketingVerschillen[JAAR]) -> € 34,641.00
A30: Het verschil in training- of reiskosten wordt automatisch berekend in de tabel TrainingEnReizenVerschillen die in de cel rechts begint. De volgende aanwijzing staat in cel A35. | B30: Training/Reizen | C30: Jan | D30: Feb | E30: Mrt | F30: Apr | G30: Mei | H30: Jun | I30: Jul | J30: Aug | K30: Sep | L30: Okt | M30: Nov | N30: Dec | O30: JAAR
B31: Trainingscursussen | C31: =INDEX(TrainingEnReizenGepland[],MATCH(INDEX(TrainingEnReizenVerschillen[],ROW()-ROW(TrainingEnReizenVerschillen[[#Headers],[Jan]]),1),INDEX(TrainingEnReizenGepland[],,1),0),MATCH(TrainingEnReizenVerschillen[[#Headers],[Jan]],TrainingEnReizenGepland[#Headers],0))-INDEX(TrainingEnReizenWerkelijk[],MATCH(INDEX(TrainingEnReizenVerschillen[],ROW()-ROW(TrainingEnReizenVerschillen[[#Headers],[Jan]]),1),INDEX(TrainingEnReizenGepland[],,1),0),MATCH(TrainingEnReizenVerschillen[[#Headers],[Jan]],TrainingEnReizenWerkelijk[#Headers],0)) -> € 400.00 | D31: =INDEX(TrainingEnReizenGepland[],MATCH(INDEX(TrainingEnReizenVerschillen[],ROW()-ROW(TrainingEnReizenVerschillen[[#Headers],[Feb]]),1),INDEX(TrainingEnReizenGepland[],,1),0),MATCH(TrainingEnReizenVerschillen[[#Headers],[Feb]],TrainingEnReizenGepland[#Headers],0))-INDEX(TrainingEnReizenWerkelijk[],MATCH(INDEX(TrainingEnReizenVerschillen[],ROW()-ROW(TrainingEnReizenVerschillen[[#Headers],[Feb]]),1),INDEX(TrainingEnReizenGepland[],,1),0),MATCH(TrainingEnReizenVerschillen[[#Headers],[Feb]],TrainingEnReizenWerkelijk[#Headers],0)) -> € -400.00 | E31: =INDEX(TrainingEnReizenGepland[],MATCH(INDEX(TrainingEnReizenVerschillen[],ROW()-ROW(TrainingEnReizenVerschillen[[#Headers],[Mrt]]),1),INDEX(TrainingEnReizenGepland[],,1),0),MATCH(TrainingEnReizenVerschillen[[#Headers],[Mrt]],TrainingEnReizenGepland[#Headers],0))-INDEX(TrainingEnReizenWerkelijk[],MATCH(INDEX(TrainingEnReizenVerschillen[],ROW()-ROW(TrainingEnReizenVerschillen[[#Headers],[Mrt]]),1),INDEX(TrainingEnReizenGepland[],,1),0),MATCH(TrainingEnReizenVerschillen[[#Headers],[Mrt]],TrainingEnReizenWerkelijk[#Headers],0)) -> € 600.00 | F31: =INDEX(TrainingEnReizenGepland[],MATCH(INDEX(TrainingEnReizenVerschillen[],ROW()-ROW(TrainingEnReizenVerschillen[[#Headers],[Apr]]),1),INDEX(TrainingEnReizenGepland[],,1),0),MATCH(TrainingEnReizenVerschillen[[#Headers],[Apr]],TrainingEnReizenGepland[#Headers],0))-INDEX(TrainingEnReizenWerkelijk[],MATCH(INDEX(TrainingEnReizenVerschillen[],ROW()-ROW(TrainingEnReizenVerschillen[[#Headers],[Apr]]),1),INDEX(TrainingEnReizenGepland[],,1),0),MATCH(TrainingEnReizenVerschillen[[#Headers],[Apr]],TrainingEnReizenWerkelijk[#Headers],0)) -> € 400.00 | G31: =INDEX(TrainingEnReizenGepland[],MATCH(INDEX(TrainingEnReizenVerschillen[],ROW()-ROW(TrainingEnReizenVerschillen[[#Headers],[Mei]]),1),INDEX(TrainingEnReizenGepland[],,1),0),MATCH(TrainingEnReizenVerschillen[[#Headers],[Mei]],TrainingEnReizenGepland[#Headers],0))-INDEX(TrainingEnReizenWerkelijk[],MATCH(INDEX(TrainingEnReizenVerschillen[],ROW()-ROW(TrainingEnReizenVerschillen[[#Headers],[Mei]]),1),INDEX(TrainingEnReizenGepland[],,1),0),MATCH(TrainingEnReizenVerschillen[[#Headers],[Mei]],TrainingEnReizenWerkelijk[#Headers],0)) -> € 800.00 | H31: =INDEX(TrainingEnReizenGepland[],MATCH(INDEX(TrainingEnReizenVerschillen[],ROW()-ROW(TrainingEnReizenVerschillen[[#Headers],[Jun]]),1),INDEX(TrainingEnReizenGepland[],,1),0),MATCH(TrainingEnReizenVerschillen[[#Headers],[Jun]],TrainingEnReizenGepland[#Headers],0))-INDEX(TrainingEnReizenWerkelijk[],MATCH(INDEX(TrainingEnReizenVerschillen[],ROW()-ROW(TrainingEnReizenVerschillen[[#Headers],[Jun]]),1),INDEX(TrainingEnReizenGepland[],,1),0),MATCH(TrainingEnReizenVerschillen[[#Headers],[Jun]],TrainingEnReizenWerkelijk[#Headers],0)) -> € -800.00 | I31: =INDEX(TrainingEnReizenGepland[],MATCH(INDEX(TrainingEnReizenVerschillen[],ROW()-ROW(TrainingEnReizenVerschillen[[#Headers],[Jul]]),1),INDEX(TrainingEnReizenGepland[],,1),0),MATCH(TrainingEnReizenVerschillen[[#Headers],[Jul]],TrainingEnReizenGepland[#Headers],0))-INDEX(TrainingEnReizenWerkelijk[],MATCH(INDEX(TrainingEnReizenVerschillen[],ROW()-ROW(TrainingEnReizenVerschillen[[#Headers],[Jul]]),1),INDEX(TrainingEnReizenGepland[],,1),0),MATCH(TrainingEnReizenVerschillen[[#Headers],[Jul]],TrainingEnReizenWerkelijk[#Headers],0)) -> € 2,000.00 | J31: =INDEX(TrainingEnReizenGepland[],MATCH(INDEX(TrainingEnReizenVerschillen[],ROW()-ROW(TrainingEnReizenVerschillen[[#Headers],[Aug]]),1),INDEX(TrainingEnReizenGepland[],,1),0),MATCH(TrainingEnReizenVerschillen[[#Headers],[Aug]],TrainingEnReizenGepland[#Headers],0))-INDEX(TrainingEnReizenWerkelijk[],MATCH(INDEX(TrainingEnReizenVerschillen[],ROW()-ROW(TrainingEnReizenVerschillen[[#Headers],[Aug]]),1),INDEX(TrainingEnReizenGepland[],,1),0),MATCH(TrainingEnReizenVerschillen[[#Headers],[Aug]],TrainingEnReizenWerkelijk[#Headers],0)) -> € 2,000.00 | K31: =INDEX(TrainingEnReizenGepland[],MATCH(INDEX(TrainingEnReizenVerschillen[],ROW()-ROW(TrainingEnReizenVerschillen[[#Headers],[Sep]]),1),INDEX(TrainingEnReizenGepland[],,1),0),MATCH(TrainingEnReizenVerschillen[[#Headers],[Sep]],TrainingEnReizenGepland[#Headers],0))-INDEX(TrainingEnReizenWerkelijk[],MATCH(INDEX(TrainingEnReizenVerschillen[],ROW()-ROW(TrainingEnReizenVerschillen[[#Headers],[Sep]]),1),INDEX(TrainingEnReizenGepland[],,1),0),MATCH(TrainingEnReizenVerschillen[[#Headers],[Sep]],TrainingEnReizenWerkelijk[#Headers],0)) -> € 2,000.00 | L31: =INDEX(TrainingEnReizenGepland[],MATCH(INDEX(TrainingEnReizenVerschillen[],ROW()-ROW(TrainingEnReizenVerschillen[[#Headers],[Okt]]),1),INDEX(TrainingEnReizenGepland[],,1),0),MATCH(TrainingEnReizenVerschillen[[#Headers],[Okt]],TrainingEnReizenGepland[#Headers],0))-INDEX(TrainingEnReizenWerkelijk[],MATCH(INDEX(TrainingEnReizenVerschillen[],ROW()-ROW(TrainingEnReizenVerschillen[[#Headers],[Okt]]),1),INDEX(TrainingEnReizenGepland[],,1),0),MATCH(TrainingEnReizenVerschillen[[#Headers],[Okt]],TrainingEnReizenWerkelijk[#Headers],0)) -> € 2,000.00 | M31: =INDEX(TrainingEnReizenGepland[],MATCH(INDEX(TrainingEnReizenVerschillen[],ROW()-ROW(TrainingEnReizenVerschillen[[#Headers],[Nov]]),1),INDEX(TrainingEnReizenGepland[],,1),0),MATCH(TrainingEnReizenVerschillen[[#Headers],[Nov]],TrainingEnReizenGepland[#Headers],0))-INDEX(TrainingEnReizenWerkelijk[],MATCH(INDEX(TrainingEnReizenVerschillen[],ROW()-ROW(TrainingEnReizenVerschillen[[#Headers],[Nov]]),1),INDEX(TrainingEnReizenGepland[],,1),0),MATCH(TrainingEnReizenVerschillen[[#Headers],[Nov]],TrainingEnReizenWerkelijk[#Headers],0)) -> € 2,000.00 | N31: =INDEX(TrainingEnReizenGepland[],MATCH(INDEX(TrainingEnReizenVerschillen[],ROW()-ROW(TrainingEnReizenVerschillen[[#Headers],[Dec]]),1),INDEX(TrainingEnReizenGepland[],,1),0),MATCH(TrainingEnReizenVerschillen[[#Headers],[Dec]],TrainingEnReizenGepland[#Headers],0))-INDEX(TrainingEnReizenWerkelijk[],MATCH(INDEX(TrainingEnReizenVerschillen[],ROW()-ROW(TrainingEnReizenVerschillen[[#Headers],[Dec]]),1),INDEX(TrainingEnReizenGepland[],,1),0),MATCH(TrainingEnReizenVerschillen[[#Headers],[Dec]],TrainingEnReizenWerkelijk[#Headers],0)) -> € 2,000.00 | O31: =SUM(TrainingEnReizenVerschillen[[#This Row],[Jan]:[Dec]]) -> € 13,000.00
B32: Traininggerelateerde reiskosten | C32: =INDEX(TrainingEnReizenGepland[],MATCH(INDEX(TrainingEnReizenVerschillen[],ROW()-ROW(TrainingEnReizenVerschillen[[#Headers],[Jan]]),1),INDEX(TrainingEnReizenGepland[],,1),0),MATCH(TrainingEnReizenVerschillen[[#Headers],[Jan]],TrainingEnReizenGepland[#Headers],0))-INDEX(TrainingEnReizenWerkelijk[],MATCH(INDEX(TrainingEnReizenVerschillen[],ROW()-ROW(TrainingEnReizenVerschillen[[#Headers],[Jan]]),1),INDEX(TrainingEnReizenGepland[],,1),0),MATCH(TrainingEnReizenVerschillen[[#Headers],[Jan]],TrainingEnReizenWerkelijk[#Headers],0)) -> € 800.00 | D32: =INDEX(TrainingEnReizenGepland[],MATCH(INDEX(TrainingEnReizenVerschillen[],ROW()-ROW(TrainingEnReizenVerschillen[[#Headers],[Feb]]),1),INDEX(TrainingEnReizenGepland[],,1),0),MATCH(TrainingEnReizenVerschillen[[#Headers],[Feb]],TrainingEnReizenGepland[#Headers],0))-INDEX(TrainingEnReizenWerkelijk[],MATCH(INDEX(TrainingEnReizenVerschillen[],ROW()-ROW(TrainingEnReizenVerschillen[[#Headers],[Feb]]),1),INDEX(TrainingEnReizenGepland[],,1),0),MATCH(TrainingEnReizenVerschillen[[#Headers],[Feb]],TrainingEnReizenWerkelijk[#Headers],0)) -> € -200.00 | E32: =INDEX(TrainingEnReizenGepland[],MATCH(INDEX(TrainingEnReizenVerschillen[],ROW()-ROW(TrainingEnReizenVerschillen[[#Headers],[Mrt]]),1),INDEX(TrainingEnReizenGepland[],,1),0),MATCH(TrainingEnReizenVerschillen[[#Headers],[Mrt]],TrainingEnReizenGepland[#Headers],0))-INDEX(TrainingEnReizenWerkelijk[],MATCH(INDEX(TrainingEnReizenVerschillen[],ROW()-ROW(TrainingEnReizenVerschillen[[#Headers],[Mrt]]),1),INDEX(TrainingEnReizenGepland[],,1),0),MATCH(TrainingEnReizenVerschillen[[#Headers],[Mrt]],TrainingEnReizenWerkelijk[#Headers],0)) -> € 600.00 | F32: =INDEX(TrainingEnReizenGepland[],MATCH(INDEX(TrainingEnReizenVerschillen[],ROW()-ROW(TrainingEnReizenVerschillen[[#Headers],[Apr]]),1),INDEX(TrainingEnReizenGepland[],,1),0),MATCH(TrainingEnReizenVerschillen[[#Headers],[Apr]],TrainingEnReizenGepland[#Headers],0))-INDEX(TrainingEnReizenWerkelijk[],MATCH(INDEX(TrainingEnReizenVerschillen[],ROW()-ROW(TrainingEnReizenVerschillen[[#Headers],[Apr]]),1),INDEX(TrainingEnReizenGepland[],,1),0),MATCH(TrainingEnReizenVerschillen[[#Headers],[Apr]],TrainingEnReizenWerkelijk[#Headers],0)) -> € 800.00 | G32: =INDEX(TrainingEnReizenGepland[],MATCH(INDEX(TrainingEnReizenVerschillen[],ROW()-ROW(TrainingEnReizenVerschillen[[#Headers],[Mei]]),1),INDEX(TrainingEnReizenGepland[],,1),0),MATCH(TrainingEnReizenVerschillen[[#Headers],[Mei]],TrainingEnReizenGepland[#Headers],0))-INDEX(TrainingEnReizenWerkelijk[],MATCH(INDEX(TrainingEnReizenVerschillen[],ROW()-ROW(TrainingEnReizenVerschillen[[#Headers],[Mei]]),1),INDEX(TrainingEnReizenGepland[],,1),0),MATCH(TrainingEnReizenVerschillen[[#Headers],[Mei]],TrainingEnReizenWerkelijk[#Headers],0)) -> € 1,200.00 | H32: =INDEX(TrainingEnReizenGepland[],MATCH(INDEX(TrainingEnReizenVerschillen[],ROW()-ROW(TrainingEnReizenVerschillen[[#Headers],[Jun]]),1),INDEX(TrainingEnReizenGepland[],,1),0),MATCH(TrainingEnReizenVerschillen[[#Headers],[Jun]],TrainingEnReizenGepland[#Headers],0))-INDEX(TrainingEnReizenWerkelijk[],MATCH(INDEX(TrainingEnReizenVerschillen[],ROW()-ROW(TrainingEnReizenVerschillen[[#Headers],[Jun]]),1),INDEX(TrainingEnReizenGepland[],,1),0),MATCH(TrainingEnReizenVerschillen[[#Headers],[Jun]],TrainingEnReizenWerkelijk[#Headers],0)) -> € -1,500.00 | I32: =INDEX(TrainingEnReizenGepland[],MATCH(INDEX(TrainingEnReizenVerschillen[],ROW()-ROW(TrainingEnReizenVerschillen[[#Headers],[Jul]]),1),INDEX(TrainingEnReizenGepland[],,1),0),MATCH(TrainingEnReizenVerschillen[[#Headers],[Jul]],TrainingEnReizenGepland[#Headers],0))-INDEX(TrainingEnReizenWerkelijk[],MATCH(INDEX(TrainingEnReizenVerschillen[],ROW()-ROW(TrainingEnReizenVerschillen[[#Headers],[Jul]]),1),INDEX(TrainingEnReizenGepland[],,1),0),MATCH(TrainingEnReizenVerschillen[[#Headers],[Jul]],TrainingEnReizenWerkelijk[#Headers],0)) -> € 2,000.00 | J32: =INDEX(TrainingEnReizenGepland[],MATCH(INDEX(TrainingEnReizenVerschillen[],ROW()-ROW(TrainingEnReizenVerschillen[[#Headers],[Aug]]),1),INDEX(TrainingEnReizenGepland[],,1),0),MATCH(TrainingEnReizenVerschillen[[#Headers],[Aug]],TrainingEnReizenGepland[#Headers],0))-INDEX(TrainingEnReizenWerkelijk[],MATCH(INDEX(TrainingEnReizenVerschillen[],ROW()-ROW(TrainingEnReizenVerschillen[[#Headers],[Aug]]),1),INDEX(TrainingEnReizenGepland[],,1),0),MATCH(TrainingEnReizenVerschillen[[#Headers],[Aug]],TrainingEnReizenWerkelijk[#Headers],0)) -> € 2,000.00 | K32: =INDEX(TrainingEnReizenGepland[],MATCH(INDEX(TrainingEnReizenVerschillen[],ROW()-ROW(TrainingEnReizenVerschillen[[#Headers],[Sep]]),1),INDEX(TrainingEnReizenGepland[],,1),0),MATCH(TrainingEnReizenVerschillen[[#Headers],[Sep]],TrainingEnReizenGepland[#Headers],0))-INDEX(TrainingEnReizenWerkelijk[],MATCH(INDEX(TrainingEnReizenVerschillen[],ROW()-ROW(TrainingEnReizenVerschillen[[#Headers],[Sep]]),1),INDEX(TrainingEnReizenGepland[],,1),0),MATCH(TrainingEnReizenVerschillen[[#Headers],[Sep]],TrainingEnReizenWerkelijk[#Headers],0)) -> € 2,000.00 | L32: =INDEX(TrainingEnReizenGepland[],MATCH(INDEX(TrainingEnReizenVerschillen[],ROW()-ROW(TrainingEnReizenVerschillen[[#Headers],[Okt]]),1),INDEX(TrainingEnReizenGepland[],,1),0),MATCH(TrainingEnReizenVerschillen[[#Headers],[Okt]],TrainingEnReizenGepland[#Headers],0))-INDEX(TrainingEnReizenWerkelijk[],MATCH(INDEX(TrainingEnReizenVerschillen[],ROW()-ROW(TrainingEnReizenVerschillen[[#Headers],[Okt]]),1),INDEX(TrainingEnReizenGepland[],,1),0),MATCH(TrainingEnReizenVerschillen[[#Headers],[Okt]],TrainingEnReizenWerkelijk[#Headers],0)) -> € 2,000.00 | M32: =INDEX(TrainingEnReizenGepland[],MATCH(INDEX(TrainingEnReizenVerschillen[],ROW()-ROW(TrainingEnReizenVerschillen[[#Headers],[Nov]]),1),INDEX(TrainingEnReizenGepland[],,1),0),MATCH(TrainingEnReizenVerschillen[[#Headers],[Nov]],TrainingEnReizenGepland[#Headers],0))-INDEX(TrainingEnReizenWerkelijk[],MATCH(INDEX(TrainingEnReizenVerschillen[],ROW()-ROW(TrainingEnReizenVerschillen[[#Headers],[Nov]]),1),INDEX(TrainingEnReizenGepland[],,1),0),MATCH(TrainingEnReizenVerschillen[[#Headers],[Nov]],TrainingEnReizenWerkelijk[#Headers],0)) -> € 2,000.00 | N32: =INDEX(TrainingEnReizenGepland[],MATCH(INDEX(TrainingEnReizenVerschillen[],ROW()-ROW(TrainingEnReizenVerschillen[[#Headers],[Dec]]),1),INDEX(TrainingEnReizenGepland[],,1),0),MATCH(TrainingEnReizenVerschillen[[#Headers],[Dec]],TrainingEnReizenGepland[#Headers],0))-INDEX(TrainingEnReizenWerkelijk[],MATCH(INDEX(TrainingEnReizenVerschillen[],ROW()-ROW(TrainingEnReizenVerschillen[[#Headers],[Dec]]),1),INDEX(TrainingEnReizenGepland[],,1),0),MATCH(TrainingEnReizenVerschillen[[#Headers],[Dec]],TrainingEnReizenWerkelijk[#Headers],0)) -> € 2,000.00 | O32: =SUM(TrainingEnReizenVerschillen[[#This Row],[Jan]:[Dec]]) -> € 13,700.00
B33: Subtotaal | C33: =SUBTOTAL(109,TrainingEnReizenVerschillen[Jan]) -> € 1,200.00 | D33: =SUBTOTAL(109,TrainingEnReizenVerschillen[Feb]) -> € -600.00 | E33: =SUBTOTAL(109,TrainingEnReizenVerschillen[Mrt]) -> € 1,200.00 | F33: =SUBTOTAL(109,TrainingEnReizenVerschillen[Apr]) -> € 1,200.00 | G33: =SUBTOTAL(109,TrainingEnReizenVerschillen[Mei]) -> € 2,000.00 | H33: =SUBTOTAL(109,TrainingEnReizenVerschillen[Jun]) -> € -2,300.00 | I33: =SUBTOTAL(109,TrainingEnReizenVerschillen[Jul]) -> € 4,000.00 | J33: =SUBTOTAL(109,TrainingEnReizenVerschillen[Aug]) -> € 4,000.00 | K33: =SUBTOTAL(109,TrainingEnReizenVerschillen[Sep]) -> € 4,000.00 | L33: =SUBTOTAL(109,TrainingEnReizenVerschillen[Okt]) -> € 4,000.00 | M33: =SUBTOTAL(109,TrainingEnReizenVerschillen[Nov]) -> € 4,000.00 | N33: =SUBTOTAL(109,TrainingEnReizenVerschillen[Dec]) -> € 4,000.00 | O33: =SUBTOTAL(109,TrainingEnReizenVerschillen[JAAR]) -> € 26,700.00
A35: Kostenverschillen worden automatisch berekend in de tabel TotaalVerschillen die in de cel rechts begint. | B35: TOTALEN | C35: Jan | D35: Feb | E35: Mrt | F35: Apr | G35: Mei | H35: Jun | I35: Jul | J35: Aug | K35: Sep | L35: Okt | M35: Nov | N35: Dec | O35: Jaar
B36: Werkelijke kosten per maand | C36: =TrainingEnReizenVerschillen[[#Totals],[Jan]]+MarketingVerschillen[[#Totals],[Jan]]+KantoorVerschillen[[#Totals],[Jan]]+PersoneelVerschillen[[#Totals],[Jan]] -> € 1,738.00 | D36: =TrainingEnReizenVerschillen[[#Totals],[Feb]]+MarketingVerschillen[[#Totals],[Feb]]+KantoorVerschillen[[#Totals],[Feb]]+PersoneelVerschillen[[#Totals],[Feb]] -> € -984.00 | E36: =TrainingEnReizenVerschillen[[#Totals],[Mrt]]+MarketingVerschillen[[#Totals],[Mrt]]+KantoorVerschillen[[#Totals],[Mrt]]+PersoneelVerschillen[[#Totals],[Mrt]] -> € 1,255.00 | F36: =TrainingEnReizenVerschillen[[#Totals],[Apr]]+MarketingVerschillen[[#Totals],[Apr]]+KantoorVerschillen[[#Totals],[Apr]]+PersoneelVerschillen[[#Totals],[Apr]] -> € 301.00 | G36: =TrainingEnReizenVerschillen[[#Totals],[Mei]]+MarketingVerschillen[[#Totals],[Mei]]+KantoorVerschillen[[#Totals],[Mei]]+PersoneelVerschillen[[#Totals],[Mei]] -> € 1,440.00 | H36: =TrainingEnReizenVerschillen[[#Totals],[Jun]]+MarketingVerschillen[[#Totals],[Jun]]+KantoorVerschillen[[#Totals],[Jun]]+PersoneelVerschillen[[#Totals],[Jun]] -> € -3,744.00 | I36: =TrainingEnReizenVerschillen[[#Totals],[Jul]]+MarketingVerschillen[[#Totals],[Jul]]+KantoorVerschillen[[#Totals],[Jul]]+PersoneelVerschillen[[#Totals],[Jul]] -> € 134,695.00 | J36: =TrainingEnReizenVerschillen[[#Totals],[Aug]]+MarketingVerschillen[[#Totals],[Aug]]+KantoorVerschillen[[#Totals],[Aug]]+PersoneelVerschillen[[#Totals],[Aug]] -> € 138,918.00 | K36: =TrainingEnReizenVerschillen[[#Totals],[Sep]]+MarketingVerschillen[[#Totals],[Sep]]+KantoorVerschillen[[#Totals],[Sep]]+PersoneelVerschillen[[#Totals],[Sep]] -> € 135,918.00 | L36: =TrainingEnReizenVerschillen[[#Totals],[Okt]]+MarketingVerschillen[[#Totals],[Okt]]+KantoorVerschillen[[#Totals],[Okt]]+PersoneelVerschillen[[#Totals],[Okt]] -> € 140,918.00 | M36: =TrainingEnReizenVerschillen[[#Totals],[Nov]]+MarketingVerschillen[[#Totals],[Nov]]+KantoorVerschillen[[#Totals],[Nov]]+PersoneelVerschillen[[#Totals],[Nov]] -> € 136,218.00 | N36: =TrainingEnReizenVerschillen[[#Totals],[Dec]]+MarketingVerschillen[[#Totals],[Dec]]+KantoorVerschillen[[#Totals],[Dec]]+PersoneelVerschillen[[#Totals],[Dec]] -> € 140,018.00 | O36: =TrainingEnReizenVerschillen[[#Totals],[JAAR]]+MarketingVerschillen[[#Totals],[JAAR]]+KantoorVerschillen[[#Totals],[JAAR]]+PersoneelVerschillen[[#Totals],[JAAR]] -> € 826,691.00
B37: TOTALE werkelijke kosten | C37: =SUM($C$36:C36) -> € 1,738.00 | D37: =SUM($C$36:D36) -> € 754.00 | E37: =SUM($C$36:E36) -> € 2,009.00 | F37: =SUM($C$36:F36) -> € 2,310.00 | G37: =SUM($C$36:G36) -> € 3,750.00 | H37: =SUM($C$36:H36) -> € 6.00 | I37: =SUM($C$36:I36) -> € 134,701.00 | J37: =SUM($C$36:J36) -> € 273,619.00 | K37: =SUM($C$36:K36) -> € 409,537.00 | L37: =SUM($C$36:L36) -> € 550,455.00 | M37: =SUM($C$36:M36) -> € 686,673.00 | N37: =SUM($C$36:N36) -> € 826,691.00

Sheet KOSTENANALYSE
A1: Jaarlijkse geplande en werkelijke kosten, kostenverschillen en verschilpercentage worden automatisch bijgewerkt voor elke kostencategorie in dit werkblad. Cellen in deze kolom bevatten handige instructies voor het gebruik van deze sjabloon. Druk op de pijl-omlaag-toets om aan de slag te gaan.
A2: Bedrijfsnaam wordt automatisch bijgewerkt in de cel rechts. Voer het logo in cel F2 in. | B2: ='GEPLANDE KOSTEN'!B2:D3 -> Bedrijfsnaam | F2: Tijdelijke aanduiding voor logo bevindt zich in deze cel.
A3: De titel van dit werkblad staat in cel E3. De volgende aanwijzing staat in cel A5. | E3: =werkbladtitel -> Gedetailleerde kostenschattingen
A5: Geplande kosten, werkelijke kosten, kostenverschillen, en verschilpercentage worden automatisch berekend in de tabel Analyse die begint in de cel rechts. De volgende aanwijzing staat in cel A12. | B5: Kostencategorie | C5: Geplande kosten | D5: Werkelijke kosten | E5: Kostenverschillen | F5: Verschilpercentage
B6: Personeelskosten | C6: =PersoneelGepland[[#Totals],[JAAR]] -> € 1,355,090.00 | D6: =PersoneelWerkelijk[[#Totals],[JAAR]] -> € 659,130.00 | E6: =C6-D6 -> € 695,960.00 | F6: =E6/C6 -> 51%
B7: ='GEPLANDE KOSTEN'!B10 -> Kantoorkosten | C7: =KantoorGepland[[#Totals],[JAAR]] -> € 138,740.00 | D7: =KantoorWerkelijk[[#Totals],[JAAR]] -> € 69,350.00 | E7: =C7-D7 -> € 69,390.00 | F7: =E7/C7 -> 50%
B8: ='GEPLANDE KOSTEN'!B21 -> Marketingkosten | C8: =MarketingGepland[[#Totals],[JAAR]] -> € 67,800.00 | D8: =MarketingWerkelijik[[#Totals],[JAAR]] -> € 33,159.00 | E8: =C8-D8 -> € 34,641.00 | F8: =E8/C8 -> 51%
B9: ='GEPLANDE KOSTEN'!B30 -> Training/Reizen | C9: =TrainingEnReizenGepland[[#Totals],[JAAR]] -> € 48,000.00 | D9: =TrainingEnReizenWerkelijk[[#Totals],[JAAR]] -> € 21,300.00 | E9: =C9-D9 -> € 26,700.00 | F9: =E9/C9 -> 56%
B10: ='GEPLANDE KOSTEN'!B35 -> TOTALEN | C10: ='GEPLANDE KOSTEN'!O36 -> € 1,609,630.00 | D10: ='WERKELIJKE KOSTEN'!O36 -> € 782,939.00 | E10: =C10-D10 -> € 826,691.00 | F10: =E10/C10 -> 51%
A12: Het cirkeldiagram Geplande kosten bevindt zich in de cel rechts, en het cirkeldiagram Werkelijke kosten in cel D12. De volgende aanwijzing staat in cel A14. | B12: Deze cel bevat een cirkeldiagram met geplande kosten in verschillende categorieën. | D12: Deze cel bevat een cirkeldiagram met werkelijke kosten in verschillende categorieën.
A14: De grafiek met gepland en werkelijk kosten en verschil per maandelijkse kosten bevindt zich in de cel rechts.
